Workbook

Sheet Control
E6: PS actual power
E7: T-Former: 935 W
E8: Ferro: 987 W

Sheet AUX2 (hidden)
A1: ='Net42'!B1+'Net41'!B1+'Net32'!B1+'Net31'!B1+'Net22'!B1+'Net21'!B1+'Net12'!B1+'Net11'!B1+SUM(A7:A18) -> 0 | B1: Vtriac(vba) | C1: 1.5 | D1: =+'Net11'!D1+'Net12'!D1+'Net21'!D1+'Net22'!D1+'Net31'!D1+'Net32'!D1+'Net41'!D1+'Net42'!D1 -> 0 | S1: 66 | T1: 66V | U1: V0 | V1: 1
C2: =+C5*1 -> 66 | J2: m | S2: 61.80188995 | T2: 61.8V | U2: V01 | V2: 2
J3: ft | S3: 62.21690756 | T3: 62.2V | U3: V02 | V3: 3
A4: 1.32 | D4: V | E4: m | F4: i temp | G4: i | H4: drop | I4: k | J4: dist | K4: L | L4: cable | M4: Vinput | N4: 0.0001 | S4: 63.09176371 | T4: 63.1V | U4: V03 | V4: 4
A5: PS - Imax Vout | B5: 15 | C5: 66 | D5: V | E5: - | F5: A | G5: A | H5: V | I5: - | J5: m | K5: km | M5: V | N5: accuracy | S5: 63.09182412 | T5: 63.1V | U5: V04 | V5: 5
A6: Vmin amp. | B6: 44 | C6: =IF(C2=60,66,90) -> 90 | D6: 63.09176371 | N6: =ABS(SUM(N7:N14)) -> 9.749658062e-06 | S6: 2.015431253 | T6: 2A | U6: I01 | V6: 6
A7: =IF(D7<0,1,0) -> 0 | B7: 7 | C7: 11 | D7: =+D15-H7 -> 61.80188995 | E7: 1 | F7: =+'Net11'!D2 -> 1.00558354 | G7: =+F7*E7 -> 1.00558354 | H7: =+G7*K7*VLOOKUP(L7,specs!$K$5:$L$19,2) -> 0 | I7: 1 | J7: 0 | K7: =+IF($J$5="m",J7,(J7*0.3048))/1000*I7 -> 0 | L7: cable | M7: 61.80188704 | N7: =E7*(+M7-D7) -> -2.908367456e-06 | S7: 3.012590076 | T7: 3A | U7: I02 | V7: 7
A8: 0 | B8: 8 | C8: 12 | D8: =+D15-H8 -> 61.80188995 | E8: 1 | F8: =+'Net12'!D2 -> 1.009847713 | G8: =+F8*E8 -> 1.009847713 | H8: =+G8*K8*VLOOKUP(L8,specs!$K$5:$L$19,2) -> 0 | I8: 1 | J8: 0 | K8: =+IF($J$5="m",J8,(J8*0.3048))/1000*I8 -> 0 | L8: cable | M8: 61.80188704 | N8: =E8*(+M8-D8) -> -2.908367456e-06 | S8: 6.245424735 | T8: 6.2A | U8: I03 | V8: 8
A9: 0 | B9: 9 | C9: 21 | D9: =+D16-H9 -> 62.21690756 | E9: 1 | F9: =+'Net21'!D2 -> 0.4986958603 | G9: 0.4986958603 | H9: =+G9*K9*VLOOKUP(L9,specs!$K$5:$L$19,2) -> 0 | I9: 1 | J9: 0 | K9: 0 | L9: cable | M9: 62.21690559 | N9: -1.966461575e-06 | S9: 13.3461695 | T9: 13.3A | U9: I04 | V9: 9
A10: 0 | B10: 10 | C10: 22 | D10: =+D16-H10 -> 62.21690756 | E10: 1 | F10: =+'Net22'!D2 -> 0.4984629634 | G10: 0.4984629634 | H10: =+G10*K10*VLOOKUP(L10,specs!$K$5:$L$19,2) -> 0 | I10: 1 | J10: 0 | K10: 0 | L10: cable | M10: 62.21690559 | N10: -1.966461575e-06 | S10: 61.80188995 | T10: 61.8V | U10: V11 | V10: 10
A11: 0 | B11: 11 | C11: 31 | D11: =+D17-H11 -> 63.09176371 | E11: 1 | F11: =+'Net31'!D2 -> 0.4969978135 | G11: 0.4969978135 | H11: =+G11*K11*VLOOKUP(L11,specs!$K$5:$L$19,2) -> 0 | I11: 1 | J11: 0 | K11: 0 | L11: cable | M11: 63.09176371 | N11: 0 | S11: 61.80188995 | T11: 61.8V | U11: V12 | V11: 11
A12: 0 | B12: 12 | C12: 32 | D12: =+D17-H12 -> 63.09176371 | E12: 1 | F12: =+'Net32'!D2 -> 2.735836845 | G12: 2.735836845 | H12: =+G12*K12*VLOOKUP(L12,specs!$K$5:$L$19,2) -> 0 | I12: 1 | J12: 0 | K12: 0 | L12: cable | M12: 63.09176371 | N12: 0 | S12: 62.21690756 | T12: 62.2V | U12: V21 | V12: 12
A13: 0 | B13: 13 | C13: 41 | D13: =+D18-H13 -> 63.09176371 | E13: 1 | F13: =+'Net41'!D2 -> 0.9960674209 | G13: 0.9960674209 | H13: =+G13*K13*VLOOKUP(L13,specs!$K$5:$L$19,2) -> 0 | I13: 1 | J13: 0 | K13: 0 | L13: cable | M13: 63.09176371 | N13: 0 | S13: 62.21690756 | T13: 62.2V | U13: V22 | V13: 13
A14: 0 | B14: 14 | C14: 42 | D14: =+D18-H14 -> 63.09176371 | E14: 1 | F14: =+'Net42'!D2 -> 2.340636591 | G14: 2.340636591 | H14: =+G14*K14*VLOOKUP(L14,specs!$K$5:$L$19,2) -> 0 | I14: 1 | J14: 0 | K14: 0 | L14: cable | M14: 63.09176371 | N14: 0 | S14: 63.09176371 | T14: 63.1V | U14: V31 | V14: 14
A15: =IF(D15<0,1,0) -> 0 | B15: 15 | C15: 01 | D15: =+D16-H15 -> 61.80188995 | E15: 1 | F15: =SUM(F7:F8) -> 2.015431253 | G15: =+F15*E15 -> 2.015431253 | H15: =+G15*K15*VLOOKUP(L15,specs!$K$5:$L$19,2) -> 0.4150176036 | I15: 1 | J15: 39 | K15: =+IF($J$5="m",J15,(J15*0.3048))/1000*I15 -> 0.039 | L15: QR540 | M15: =K15*VLOOKUP(L15,specs!$K$5:$L$19,2) -> 0.20592 | S15: 63.09176371 | T15: 63.1V | U15: V32 | V15: 15
A16: =IF(D16<0,1,0) -> 0 | B16: 16 | C16: 02 | D16: =+D17-H16 -> 62.21690756 | E16: 1 | F16: =SUM(F7:F10) -> 3.012590076 | G16: =+F16*E16 -> 3.012590076 | H16: =+G16*K16*VLOOKUP(L16,specs!$K$5:$L$19,2) -> 0.8748561582 | I16: 1 | J16: 55 | K16: =+IF($J$5="m",J16,(J16*0.3048))/1000*I16 -> 0.055 | L16: QR540 | M16: =K16*VLOOKUP(L16,specs!$K$5:$L$19,2) -> 0.2904 | S16: 63.09176371 | T16: 63.1V | U16: V41 | V16: 16
A17: =IF(D17<0,1,0) -> 0 | B17: 17 | C17: 03 | D17: =+D18-H17 -> 63.09176371 | E17: 1 | F17: =SUM(F7:F12) -> 6.245424735 | G17: =+F17*E17 -> 6.245424735 | H17: =+G17*K17*VLOOKUP(L17,specs!$K$5:$L$19,2) -> 0 | I17: 1 | J17: 0 | K17: =+IF($J$5="m",J17,(J17*0.3048))/1000*I17 -> 0 | L17: cable | M17: =K17*VLOOKUP(L17,specs!$K$5:$L$19,2) -> 0 | S17: 63.09176371 | T17: 63.1V | U17: V42 | V17: 17
A18: =IF(D18<0,1,0) -> 0 | B18: 18 | C18: 04 | D18: =+D6-H18 -> 63.09176371 | E18: 0 | F18: =SUM(F7:F14) -> 9.582128747 | G18: =+F18*E18 -> 0 | H18: =+G18*K18*VLOOKUP(L18,specs!$K$5:$L$19,2) -> 0 | I18: 1 | J18: 600 | K18: =+IF($J$5="m",J18,(J18*0.3048))/1000*I18 -> 0.6 | L18: QR860 | M18: =K18*VLOOKUP(L18,specs!$K$5:$L$19,2) -> 1.422 | S18: 1.00558354 | T18: 1A | U18: I11 | V18: 18
H19: D6:L18 | S19: 1.009847713 | T19: 1A | U19: I12 | V19: 19
S20: 0.4986958603 | T20: .5A | U20: I21 | V20: 20
B21: Booster Data | S21: 0.4984629634 | T21: .5A | U21: I22 | V21: 21
C22: vba | D22: vba | E22: vba | S22: 0.4969978135 | T22: .5A | U22: I31 | V22: 22
A23: Vin | B23: Ranges | C23: Mcont | D23: TrEff | E23: Bgain | F23: Vout | G23: Pin | H23: Iin | I23: Final Gain | J23: Efficiency | K23: P-triac | L23: P-transformer | M23: Pout | N23: Iout | S23: 2.735836845 | T23: 2.7A | U23: I32 | V23: 23
A24: 62 | B24: 57.5-66 | C24: 1 | D24: 97 | E24: 1.033 | F24: =A24*E24/C24-1.5 -> 62.546 | G24: =M24+L24+K24 -> 204.9944698 | H24: =G24/A24 -> 3.306362416 | I24: =F24/A24 -> 1.008806452 | J24: =M24/G24 -> 0.9756360754 | K24: =N24*1.5 -> 4.796469798 | L24: =M24*(E24-1)*0.03 -> 0.198 | M24: 200 | N24: =M24/F24 -> 3.197646532 | S24: 0.9960674209 | T24: 1A | U24: I41 | V24: 24
A25: 57.5 | B25: 49.9-57.5 | C25: 1.025 | D25: 96.8 | E25: 1.211 | F25: =A25*E25/C25-1.5 -> 66.43414634 | G25: =M25+L25+K25 -> 205.8661501 | H25: =G25/A25 -> 3.580280871 | I25: =F25/A25 -> 1.155376458 | J25: =M25/G25 -> 0.9715050286 | K25: =N25*1.5 -> 4.515750055 | L25: =M25*(E25-1)*0.032 -> 1.3504 | M25: 200 | N25: =M25/F25 -> 3.010500037 | S25: 2.340636591 | T25: 2.3A | U25: I42 | V25: 25
A26: 49.9 | B26: 0-49.9 | C26: 1.025 | D26: 96.5 | E26: 1.408 | F26: =A26*E26/C26-1.5 -> 67.04556098 | G26: =M26+L26+K26 -> 207.3305692 | H26: =G26/A26 -> 4.154921226 | I26: =F26/A26 -> 1.343598416 | J26: =M26/G26 -> 0.9646430857 | K26: =N26*1.5 -> 4.474569168 | L26: =M26*(E26-1)*0.035 -> 2.856 | M26: 200 | N26: =M26/F26 -> 2.983046112 | S26: 61.26173176 | T26: 61.3V | U26: Vend11 | V26: 26
S27: 61.05205004 | T27: 61.1V | U27: Vend12 | V27: 27
S28: 61.96161321 | T28: 62V | U28: Vend21 | V28: 28
A29: Vin | F29: Vout | G29: Pin | H29: Iin | J29: Efficiency | K29: P-triac | L29: P-transformer | M29: Pout | N29: Iout | S29: 61.99056353 | T29: 62V | U29: Vend22 | V29: 29
A30: 83 | B30: 74.9-90 | C30: 1 | D30: 97 | E30: 1.048 | F30: =A30*E30/C30-1.5 -> 85.484 | G30: =M30+L30+K30 -> 203.7974287 | H30: =G30/A30 -> 2.455390707 | I30: =F30/A30 -> 1.029927711 | J30: =M30/G30 -> 0.9813666507 | K30: =N30*1.5 -> 3.509428665 | L30: =M30*(E30-1)*0.03 -> 0.288 | M30: 200 | N30: =M30/F30 -> 2.33961911 | S30: 62.17331176 | T30: 62.2V | U30: Vend31 | V30: 30
A31: 74.9 | B31: 62-74.9 | C31: 1.025 | D31: 96.8 | E31: 1.279 | F31: =A31*E31/C31-1.5 -> 91.96058537 | G31: =M31+L31+K31 -> 205.0478672 | H31: =G31/A31 -> 2.737621725 | I31: =F31/A31 -> 1.227778176 | J31: =M31/G31 -> 0.9753820059 | K31: =N31*1.5 -> 3.262267186 | L31: =M31*(E31-1)*0.032 -> 1.7856 | M31: 200 | N31: =M31/F31 -> 2.17484479 | S31: 55.9983848 | T31: 56V | U31: Vend32 | V31: 31
A32: 61.9 | B32: 0-61.9 | C32: 1.025 | D32: 96.5 | E32: 1.538 | F32: =A32*E32/C32-1.5 -> 91.38019512 | G32: =M32+L32+K32 -> 207.0489871 | H32: =G32/A32 -> 3.344894783 | I32: =F32/A32 -> 1.476255172 | J32: =M32/G32 -> 0.9659549792 | K32: =N32*1.5 -> 3.282987081 | L32: =M32*(E32-1)*0.035 -> 3.766 | M32: 200 | N32: =M32/F32 -> 2.188658054 | S32: 61.76657381 | T32: 61.8V | U32: Vend41 | V32: 32
S33: 61.85056823 | T33: 61.9V | U33: Vend42 | V33: 33
A34: Pin = Pout + Ptriac + Pdelta-transformer, where | S34: 47.02174696 | T34: 47V | U34: PBVin | V34: 34
S35: 63.09182412 | T35: 63.1V | U35: PBVout | V35: 35
A36: Pout = Vout x Iout; | S36: 13.3461695 | T36: 13.3A | U36: PBcurin | V36: 36
S37: 9.582128747 | T37: 9.6A | U37: PBcurout | V37: 37
A38: Ptriac = Vtriac * Iout , where Vtriac=1.5V; | S38: 1.341758403 | T38: 1.34 | U38: Bgain | V38: 38
T39: PB Location I | U39: STitleLocation | V39: 39
A40: Pdelta-transformer = (100 - K) / 100 * (n – 1) * Pout , where K=96.5% for range"1.32" , K=96.8% for range "1.2" and K=97% for range "1" | T40: V in | U40: sTitleVin | V40: 40
T41: V out | U41: sTitleVout | V41: 41
A42: Then, assuming | T42: I in | U42: STitleIin | V42: 42
T43: I out | U43: sTitleIout | V43: 43
A44: Vout = Vin * n / Mcont – Vtriac , where Mcont = 1 for range"1", Mcont=1.025 for other two ranges; | T44: Gain | U44: sTitleGain | V44: 44
U45: time | V45: 45
A46: We get finally the booster input current Iin, derived from above, as a function of the booster output current Iout and the booster input voltage Vin: | S46: 18 | U46: cntext | V46: 46
S47: 1 | U47: cntloc | V47: 47
A48: Iin = Iout * { Bgain / Mcont + (1 - TrEff / 100) * (Bgain – 1) * ( Bgain / Mcont – Vtriac*Mcont * (PBVout + Vtriac) / Bgain)} | S48: 41 | U48: cntsum | V48: 48
U49: cntloc04 | V49: 49
U50: cntsum04 | V50: 50
U51: cntloc03 | V51: 51
U52: cntsum03 | V52: 52
U53: cntloc02 | V53: 53
U54: cntsum02 | V54: 54

Sheet Net42 (hidden)
B1: =SUM(F22:O22) -> 0 | D1: =IF(O21<'AUX2'!B6,1,0) -> 0 | E1: =+'AUX2'!J5 -> m
B2: =+'AUX2'!M14 -> 63.09176371 | C2: U start, V | D2: =+O5*1 -> 2.340636591 | F2: 1 | G2: 2 | H2: 3 | I2: 4 | J2: 5 | K2: 6 | L2: 7 | M2: 8 | N2: 9 | O2: iteration10
E3: mult. | F3: =F6+F5*F4 -> 64.30868788 | G3: =G6+G5*G4 -> 63.11555116 | H3: 63.09223793 | I3: 63.09177317 | J3: 63.0917639 | K3: 63.09176372 | L3: 63.09176371 | M3: 63.09176371 | N3: 63.09176371 | O3: 63.09176371
C4: cable type | D4: cable | E4: 0 | F4: =VLOOKUP($D4,specs!$K$5:$L$19,2)*IF($E$1="m",$D5,($D5*0.3048))/1000 -> 0 | G4: =VLOOKUP($D4,specs!$K$5:$L$19,2)*IF($E$1="m",$D5,($D5*0.3048))/1000 -> 0 | H4: =VLOOKUP($D4,specs!$K$5:$L$19,2)*IF($E$1="m",$D5,($D5*0.3048))/1000 -> 0 | I4: =VLOOKUP($D4,specs!$K$5:$L$19,2)*IF($E$1="m",$D5,($D5*0.3048))/1000 -> 0 | J4: =VLOOKUP($D4,specs!$K$5:$L$19,2)*IF($E$1="m",$D5,($D5*0.3048))/1000 -> 0 | K4: =VLOOKUP($D4,specs!$K$5:$L$19,2)*IF($E$1="m",$D5,($D5*0.3048))/1000 -> 0 | L4: =VLOOKUP($D4,specs!$K$5:$L$19,2)*IF($E$1="m",$D5,($D5*0.3048))/1000 -> 0 | M4: =VLOOKUP($D4,specs!$K$5:$L$19,2)*IF($E$1="m",$D5,($D5*0.3048))/1000 -> 0 | N4: =VLOOKUP($D4,specs!$K$5:$L$19,2)*IF($E$1="m",$D5,($D5*0.3048))/1000 -> 0 | O4: =VLOOKUP($D4,specs!$K$5:$L$19,2)*IF($E$1="m",$D5,($D5*0.3048))/1000 -> 0
C5: span length,m | D5: 0 | E5: 0 | F5: =VLOOKUP($D6,specs!$D$5:$H$17,4)/IF(F6<67,(F6/1.03),65)*$E6+F8 -> 2.295493528 | G5: =VLOOKUP($D6,specs!$D$5:$H$17,4)/IF(G6<67,(G6/1.03),65)*$E6+G8 -> 2.339736986 | H5: =VLOOKUP($D6,specs!$D$5:$H$17,4)/IF(H6<67,(H6/1.03),65)*$E6+H8 -> 2.34061865 | I5: =VLOOKUP($D6,specs!$D$5:$H$17,4)/IF(I6<67,(I6/1.03),65)*$E6+I8 -> 2.340636233 | J5: =VLOOKUP($D6,specs!$D$5:$H$17,4)/IF(J6<67,(J6/1.03),65)*$E6+J8 -> 2.340636584 | K5: =VLOOKUP($D6,specs!$D$5:$H$17,4)/IF(K6<67,(K6/1.03),65)*$E6+K8 -> 2.340636591 | L5: =VLOOKUP($D6,specs!$D$5:$H$17,4)/IF(L6<67,(L6/1.03),65)*$E6+L8 -> 2.340636591 | M5: =VLOOKUP($D6,specs!$D$5:$H$17,4)/IF(M6<67,(M6/1.03),65)*$E6+M8 -> 2.340636591 | N5: =VLOOKUP($D6,specs!$D$5:$H$17,4)/IF(N6<67,(N6/1.03),65)*$E6+N8 -> 2.340636591 | O5: =VLOOKUP($D6,specs!$D$5:$H$17,4)/IF(O6<67,(O6/1.03),65)*$E6+O8 -> 2.340636591
C6: amplifier | D6: TNA | E6: 1 | F6: =F9+F8*F7 -> 64.30868788 | G6: =G9+G8*G7 -> 63.11555116 | H6: 63.09223793 | I6: 63.09177317 | J6: 63.0917639 | K6: 63.09176372 | L6: 63.09176371 | M6: 63.09176371 | N6: 63.09176371 | O6: 63.09176371
C7: cable type | D7: QR540 | E7: 0 | F7: =VLOOKUP($D7,specs!$K$5:$L$19,2)*IF($E$1="m",$D8,($D8*0.3048))/1000 -> 0.46992 | G7: =VLOOKUP($D7,specs!$K$5:$L$19,2)*IF($E$1="m",$D8,($D8*0.3048))/1000 -> 0.46992 | H7: =VLOOKUP($D7,specs!$K$5:$L$19,2)*IF($E$1="m",$D8,($D8*0.3048))/1000 -> 0.46992 | I7: =VLOOKUP($D7,specs!$K$5:$L$19,2)*IF($E$1="m",$D8,($D8*0.3048))/1000 -> 0.46992 | J7: =VLOOKUP($D7,specs!$K$5:$L$19,2)*IF($E$1="m",$D8,($D8*0.3048))/1000 -> 0.46992 | K7: =VLOOKUP($D7,specs!$K$5:$L$19,2)*IF($E$1="m",$D8,($D8*0.3048))/1000 -> 0.46992 | L7: =VLOOKUP($D7,specs!$K$5:$L$19,2)*IF($E$1="m",$D8,($D8*0.3048))/1000 -> 0.46992 | M7: =VLOOKUP($D7,specs!$K$5:$L$19,2)*IF($E$1="m",$D8,($D8*0.3048))/1000 -> 0.46992 | N7: =VLOOKUP($D7,specs!$K$5:$L$19,2)*IF($E$1="m",$D8,($D8*0.3048))/1000 -> 0.46992 | O7: =VLOOKUP($D7,specs!$K$5:$L$19,2)*IF($E$1="m",$D8,($D8*0.3048))/1000 -> 0.46992
C8: span length,m | D8: 89 | E8: 0 | F8: =VLOOKUP($D9,specs!$D$5:$H$17,4)/IF(F9<67,(F9/1.03),65)*$E9+F11 -> 1.462635609 | G8: =VLOOKUP($D9,specs!$D$5:$H$17,4)/IF(G9<67,(G9/1.03),65)*$E9+G11 -> 1.491134716 | H8: =VLOOKUP($D9,specs!$D$5:$H$17,4)/IF(H9<67,(H9/1.03),65)*$E9+H11 -> 1.491702812 | I8: =VLOOKUP($D9,specs!$D$5:$H$17,4)/IF(I9<67,(I9/1.03),65)*$E9+I11 -> 1.491714142 | J8: =VLOOKUP($D9,specs!$D$5:$H$17,4)/IF(J9<67,(J9/1.03),65)*$E9+J11 -> 1.491714368 | K8: =VLOOKUP($D9,specs!$D$5:$H$17,4)/IF(K9<67,(K9/1.03),65)*$E9+K11 -> 1.491714372 | L8: =VLOOKUP($D9,specs!$D$5:$H$17,4)/IF(L9<67,(L9/1.03),65)*$E9+L11 -> 1.491714373 | M8: =VLOOKUP($D9,specs!$D$5:$H$17,4)/IF(M9<67,(M9/1.03),65)*$E9+M11 -> 1.491714373 | N8: =VLOOKUP($D9,specs!$D$5:$H$17,4)/IF(N9<67,(N9/1.03),65)*$E9+N11 -> 1.491714373 | O8: =VLOOKUP($D9,specs!$D$5:$H$17,4)/IF(O9<67,(O9/1.03),65)*$E9+O11 -> 1.491714373
C9: amplifier | D9: LEX | E9: 1 | F9: =F12+F11*F10 -> 63.62136616 | G9: =G12+G11*G10 -> 62.41483713 | H9: 62.39125695 | I9: 62.39078686 | J9: 62.39077749 | K9: 62.3907773 | L9: 62.3907773 | M9: 62.3907773 | N9: 62.3907773 | O9: 62.3907773
C10: cable type | D10: QR540 | E10: 0 | F10: =VLOOKUP($D10,specs!$K$5:$L$19,2)*IF($E$1="m",$D11,($D11*0.3048))/1000 -> 0.20064 | G10: =VLOOKUP($D10,specs!$K$5:$L$19,2)*IF($E$1="m",$D11,($D11*0.3048))/1000 -> 0.20064 | H10: =VLOOKUP($D10,specs!$K$5:$L$19,2)*IF($E$1="m",$D11,($D11*0.3048))/1000 -> 0.20064 | I10: =VLOOKUP($D10,specs!$K$5:$L$19,2)*IF($E$1="m",$D11,($D11*0.3048))/1000 -> 0.20064 | J10: =VLOOKUP($D10,specs!$K$5:$L$19,2)*IF($E$1="m",$D11,($D11*0.3048))/1000 -> 0.20064 | K10: =VLOOKUP($D10,specs!$K$5:$L$19,2)*IF($E$1="m",$D11,($D11*0.3048))/1000 -> 0.20064 | L10: =VLOOKUP($D10,specs!$K$5:$L$19,2)*IF($E$1="m",$D11,($D11*0.3048))/1000 -> 0.20064 | M10: =VLOOKUP($D10,specs!$K$5:$L$19,2)*IF($E$1="m",$D11,($D11*0.3048))/1000 -> 0.20064 | N10: =VLOOKUP($D10,specs!$K$5:$L$19,2)*IF($E$1="m",$D11,($D11*0.3048))/1000 -> 0.20064 | O10: =VLOOKUP($D10,specs!$K$5:$L$19,2)*IF($E$1="m",$D11,($D11*0.3048))/1000 -> 0.20064
C11: span length,m | D11: 38 | E11: 0 | F11: =VLOOKUP($D12,specs!$D$5:$H$17,4)/IF(F12<67,(F12/1.03),65)*$E12+F14 -> 0.9769497163 | G11: =VLOOKUP($D12,specs!$D$5:$H$17,4)/IF(G12<67,(G12/1.03),65)*$E12+G14 -> 0.9960601246 | H11: =VLOOKUP($D12,specs!$D$5:$H$17,4)/IF(H12<67,(H12/1.03),65)*$E12+H14 -> 0.9964411119 | I11: =VLOOKUP($D12,specs!$D$5:$H$17,4)/IF(I12<67,(I12/1.03),65)*$E12+I14 -> 0.9964487101 | J11: =VLOOKUP($D12,specs!$D$5:$H$17,4)/IF(J12<67,(J12/1.03),65)*$E12+J14 -> 0.9964488616 | K11: =VLOOKUP($D12,specs!$D$5:$H$17,4)/IF(K12<67,(K12/1.03),65)*$E12+K14 -> 0.9964488647 | L11: =VLOOKUP($D12,specs!$D$5:$H$17,4)/IF(L12<67,(L12/1.03),65)*$E12+L14 -> 0.9964488647 | M11: =VLOOKUP($D12,specs!$D$5:$H$17,4)/IF(M12<67,(M12/1.03),65)*$E12+M14 -> 0.9964488647 | N11: =VLOOKUP($D12,specs!$D$5:$H$17,4)/IF(N12<67,(N12/1.03),65)*$E12+N14 -> 0.9964488647 | O11: =VLOOKUP($D12,specs!$D$5:$H$17,4)/IF(O12<67,(O12/1.03),65)*$E12+O14 -> 0.9964488647
C12: amplifier | D12: LEX | E12: 1 | F12: =F15+F14*F13 -> 63.42535097 | G12: =G15+G14*G13 -> 62.21498763 | H12: 62.191331 | I12: 62.19085939 | J12: 62.19084999 | K12: 62.1908498 | L12: 62.1908498 | M12: 62.1908498 | N12: 62.1908498 | O12: 62.1908498
C13: cable type | D13: QR540 | E13: 0 | F13: =VLOOKUP($D13,specs!$K$5:$L$19,2)*IF($E$1="m",$D14,($D14*0.3048))/1000 -> 0.68112 | G13: =VLOOKUP($D13,specs!$K$5:$L$19,2)*IF($E$1="m",$D14,($D14*0.3048))/1000 -> 0.68112 | H13: =VLOOKUP($D13,specs!$K$5:$L$19,2)*IF($E$1="m",$D14,($D14*0.3048))/1000 -> 0.68112 | I13: =VLOOKUP($D13,specs!$K$5:$L$19,2)*IF($E$1="m",$D14,($D14*0.3048))/1000 -> 0.68112 | J13: =VLOOKUP($D13,specs!$K$5:$L$19,2)*IF($E$1="m",$D14,($D14*0.3048))/1000 -> 0.68112 | K13: =VLOOKUP($D13,specs!$K$5:$L$19,2)*IF($E$1="m",$D14,($D14*0.3048))/1000 -> 0.68112 | L13: =VLOOKUP($D13,specs!$K$5:$L$19,2)*IF($E$1="m",$D14,($D14*0.3048))/1000 -> 0.68112 | M13: =VLOOKUP($D13,specs!$K$5:$L$19,2)*IF($E$1="m",$D14,($D14*0.3048))/1000 -> 0.68112 | N13: =VLOOKUP($D13,specs!$K$5:$L$19,2)*IF($E$1="m",$D14,($D14*0.3048))/1000 -> 0.68112 | O13: =VLOOKUP($D13,specs!$K$5:$L$19,2)*IF($E$1="m",$D14,($D14*0.3048))/1000 -> 0.68112
C14: span length,m | D14: 129 | E14: 0 | F14: =VLOOKUP($D15,specs!$D$5:$H$17,4)/IF(F15<67,(F15/1.03),65)*$E15+F17 -> 0.4897628182 | G14: =VLOOKUP($D15,specs!$D$5:$H$17,4)/IF(G15<67,(G15/1.03),65)*$E15+G17 -> 0.4993952344 | H14: =VLOOKUP($D15,specs!$D$5:$H$17,4)/IF(H15<67,(H15/1.03),65)*$E15+H17 -> 0.499587298 | I14: =VLOOKUP($D15,specs!$D$5:$H$17,4)/IF(I15<67,(I15/1.03),65)*$E15+I17 -> 0.4995911284 | J14: =VLOOKUP($D15,specs!$D$5:$H$17,4)/IF(J15<67,(J15/1.03),65)*$E15+J17 -> 0.4995912048 | K14: =VLOOKUP($D15,specs!$D$5:$H$17,4)/IF(K15<67,(K15/1.03),65)*$E15+K17 -> 0.4995912064 | L14: =VLOOKUP($D15,specs!$D$5:$H$17,4)/IF(L15<67,(L15/1.03),65)*$E15+L17 -> 0.4995912064 | M14: =VLOOKUP($D15,specs!$D$5:$H$17,4)/IF(M15<67,(M15/1.03),65)*$E15+M17 -> 0.4995912064 | N14: =VLOOKUP($D15,specs!$D$5:$H$17,4)/IF(N15<67,(N15/1.03),65)*$E15+N17 -> 0.4995912064 | O14: =VLOOKUP($D15,specs!$D$5:$H$17,4)/IF(O15<67,(O15/1.03),65)*$E15+O17 -> 0.4995912064
C15: amplifier | D15: LEX | E15: 1 | F15: =F18+F17*F16 -> 63.09176371 | G15: =G18+G17*G16 -> 61.87483955 | H15: 61.8510521 | I15: 61.85057788 | J15: 61.85056843 | K15: 61.85056824 | L15: 61.85056823 | M15: 61.85056823 | N15: 61.85056823 | O15: 61.85056823
C16: cable type | D16: cable | E16: 0 | F16: =VLOOKUP($D16,specs!$K$5:$L$19,2)*IF($E$1="m",$D17,($D17*0.3048))/1000 -> 0 | G16: =VLOOKUP($D16,specs!$K$5:$L$19,2)*IF($E$1="m",$D17,($D17*0.3048))/1000 -> 0 | H16: =VLOOKUP($D16,specs!$K$5:$L$19,2)*IF($E$1="m",$D17,($D17*0.3048))/1000 -> 0 | I16: =VLOOKUP($D16,specs!$K$5:$L$19,2)*IF($E$1="m",$D17,($D17*0.3048))/1000 -> 0 | J16: =VLOOKUP($D16,specs!$K$5:$L$19,2)*IF($E$1="m",$D17,($D17*0.3048))/1000 -> 0 | K16: =VLOOKUP($D16,specs!$K$5:$L$19,2)*IF($E$1="m",$D17,($D17*0.3048))/1000 -> 0 | L16: =VLOOKUP($D16,specs!$K$5:$L$19,2)*IF($E$1="m",$D17,($D17*0.3048))/1000 -> 0 | M16: =VLOOKUP($D16,specs!$K$5:$L$19,2)*IF($E$1="m",$D17,($D17*0.3048))/1000 -> 0 | N16: =VLOOKUP($D16,specs!$K$5:$L$19,2)*IF($E$1="m",$D17,($D17*0.3048))/1000 -> 0 | O16: =VLOOKUP($D16,specs!$K$5:$L$19,2)*IF($E$1="m",$D17,($D17*0.3048))/1000 -> 0
C17: span length,m | D17: 0 | E17: 0 | F17: =VLOOKUP($D18,specs!$D$5:$H$17,4)/IF(F18<67,(F18/1.03),65)*$E18+F20 -> 0 | G17: =VLOOKUP($D18,specs!$D$5:$H$17,4)/IF(G18<67,(G18/1.03),65)*$E18+G20 -> 0 | H17: =VLOOKUP($D18,specs!$D$5:$H$17,4)/IF(H18<67,(H18/1.03),65)*$E18+H20 -> 0 | I17: =VLOOKUP($D18,specs!$D$5:$H$17,4)/IF(I18<67,(I18/1.03),65)*$E18+I20 -> 0 | J17: =VLOOKUP($D18,specs!$D$5:$H$17,4)/IF(J18<67,(J18/1.03),65)*$E18+J20 -> 0 | K17: =VLOOKUP($D18,specs!$D$5:$H$17,4)/IF(K18<67,(K18/1.03),65)*$E18+K20 -> 0 | L17: =VLOOKUP($D18,specs!$D$5:$H$17,4)/IF(L18<67,(L18/1.03),65)*$E18+L20 -> 0 | M17: =VLOOKUP($D18,specs!$D$5:$H$17,4)/IF(M18<67,(M18/1.03),65)*$E18+M20 -> 0 | N17: =VLOOKUP($D18,specs!$D$5:$H$17,4)/IF(N18<67,(N18/1.03),65)*$E18+N20 -> 0 | O17: =VLOOKUP($D18,specs!$D$5:$H$17,4)/IF(O18<67,(O18/1.03),65)*$E18+O20 -> 0
C18: amplifier | D18: load | E18: 0 | F18: =F21+F20*F19 -> 63.09176371 | G18: =G21+G20*G19 -> 61.87483955 | H18: 61.8510521 | I18: 61.85057788 | J18: 61.85056843 | K18: 61.85056824 | L18: 61.85056823 | M18: 61.85056823 | N18: 61.85056823 | O18: 61.85056823
C19: cable type | D19: cable | E19: 0 | F19: =VLOOKUP($D19,specs!$K$5:$L$19,2)*IF($E$1="m",$D20,($D20*0.3048))/1000 -> 0 | G19: =VLOOKUP($D19,specs!$K$5:$L$19,2)*IF($E$1="m",$D20,($D20*0.3048))/1000 -> 0 | H19: =VLOOKUP($D19,specs!$K$5:$L$19,2)*IF($E$1="m",$D20,($D20*0.3048))/1000 -> 0 | I19: =VLOOKUP($D19,specs!$K$5:$L$19,2)*IF($E$1="m",$D20,($D20*0.3048))/1000 -> 0 | J19: =VLOOKUP($D19,specs!$K$5:$L$19,2)*IF($E$1="m",$D20,($D20*0.3048))/1000 -> 0 | K19: =VLOOKUP($D19,specs!$K$5:$L$19,2)*IF($E$1="m",$D20,($D20*0.3048))/1000 -> 0 | L19: =VLOOKUP($D19,specs!$K$5:$L$19,2)*IF($E$1="m",$D20,($D20*0.3048))/1000 -> 0 | M19: =VLOOKUP($D19,specs!$K$5:$L$19,2)*IF($E$1="m",$D20,($D20*0.3048))/1000 -> 0 | N19: =VLOOKUP($D19,specs!$K$5:$L$19,2)*IF($E$1="m",$D20,($D20*0.3048))/1000 -> 0 | O19: =VLOOKUP($D19,specs!$K$5:$L$19,2)*IF($E$1="m",$D20,($D20*0.3048))/1000 -> 0
C20: span length,m | D20: 0 | E20: 0 | F20: =$E21*VLOOKUP($D21,specs!$D$5:$H$17,4)/IF(F21<67,(F21/1.03),65) -> 0 | G20: =$E21*VLOOKUP($D21,specs!$D$5:$H$17,4)/IF(G21<67,(G21/1.03),65) -> 0 | H20: =$E21*VLOOKUP($D21,specs!$D$5:$H$17,4)/IF(H21<67,(H21/1.03),65) -> 0 | I20: =$E21*VLOOKUP($D21,specs!$D$5:$H$17,4)/IF(I21<67,(I21/1.03),65) -> 0 | J20: =$E21*VLOOKUP($D21,specs!$D$5:$H$17,4)/IF(J21<67,(J21/1.03),65) -> 0 | K20: =$E21*VLOOKUP($D21,specs!$D$5:$H$17,4)/IF(K21<67,(K21/1.03),65) -> 0 | L20: =$E21*VLOOKUP($D21,specs!$D$5:$H$17,4)/IF(L21<67,(L21/1.03),65) -> 0 | M20: =$E21*VLOOKUP($D21,specs!$D$5:$H$17,4)/IF(M21<67,(M21/1.03),65) -> 0 | N20: =$E21*VLOOKUP($D21,specs!$D$5:$H$17,4)/IF(N21<67,(N21/1.03),65) -> 0 | O20: =$E21*VLOOKUP($D21,specs!$D$5:$H$17,4)/IF(O21<67,(O21/1.03),65) -> 0
C21: amplifier | D21: load | E21: 0 | F21: =B2 -> 63.09176371 | G21: =F21-(F3-$B$2) -> 61.87483955 | H21: 61.8510521 | I21: 61.85057788 | J21: 61.85056843 | K21: 61.85056824 | L21: 61.85056823 | M21: 61.85056823 | N21: 61.85056823 | O21: 61.85056823
F22: =IF(F21<0,1,0) -> 0 | G22: =IF(G21<0,1,0) -> 0 | H22: 0 | I22: 0 | J22: 0 | K22: 0 | L22: 0 | M22: 0 | N22: 0 | O22: 0
C24: User added Branch
M27: =O21 -> 61.85056823
F34: Main Branch Net42

Sheet Net41 (hidden)
B1: =SUM(F22:O22) -> 0 | D1: =IF(O21<'AUX2'!B6,1,0) -> 0 | E1: =+'AUX2'!J5 -> m
B2: =+'AUX2'!M13 -> 63.09176371 | C2: U start, V | D2: =+O5*1 -> 0.9960674209 | F2: 1 | G2: 2 | H2: 3 | I2: 4 | J2: 5 | K2: 6 | L2: 7 | M2: 8 | N2: 9 | O2: iteration10
E3: mult. | F3: =F6+F5*F4 -> 64.38925825 | G3: =G6+G5*G4 -> 63.11886821 | H3: 63.09234197 | I3: 63.09177606 | J3: 63.09176398 | K3: 63.09176372 | L3: 63.09176371 | M3: 63.09176371 | N3: 63.09176371 | O3: 63.09176371
C4: cable type | D4: QR540 | E4: 0 | F4: =VLOOKUP($D4,specs!$K$5:$L$19,2)*IF($E$1="m",$D5,($D5*0.3048))/1000 -> 0.77088 | G4: =VLOOKUP($D4,specs!$K$5:$L$19,2)*IF($E$1="m",$D5,($D5*0.3048))/1000 -> 0.77088 | H4: =VLOOKUP($D4,specs!$K$5:$L$19,2)*IF($E$1="m",$D5,($D5*0.3048))/1000 -> 0.77088 | I4: =VLOOKUP($D4,specs!$K$5:$L$19,2)*IF($E$1="m",$D5,($D5*0.3048))/1000 -> 0.77088 | J4: =VLOOKUP($D4,specs!$K$5:$L$19,2)*IF($E$1="m",$D5,($D5*0.3048))/1000 -> 0.77088 | K4: =VLOOKUP($D4,specs!$K$5:$L$19,2)*IF($E$1="m",$D5,($D5*0.3048))/1000 -> 0.77088 | L4: =VLOOKUP($D4,specs!$K$5:$L$19,2)*IF($E$1="m",$D5,($D5*0.3048))/1000 -> 0.77088 | M4: =VLOOKUP($D4,specs!$K$5:$L$19,2)*IF($E$1="m",$D5,($D5*0.3048))/1000 -> 0.77088 | N4: =VLOOKUP($D4,specs!$K$5:$L$19,2)*IF($E$1="m",$D5,($D5*0.3048))/1000 -> 0.77088 | O4: =VLOOKUP($D4,specs!$K$5:$L$19,2)*IF($E$1="m",$D5,($D5*0.3048))/1000 -> 0.77088
C5: span length,m | D5: 146 | E5: 0 | F5: =VLOOKUP($D6,specs!$D$5:$H$17,4)/IF(F6<67,(F6/1.03),65)*$E6+F8 -> 0.9753263491 | G5: =VLOOKUP($D6,specs!$D$5:$H$17,4)/IF(G6<67,(G6/1.03),65)*$E6+G8 -> 0.9956249684 | H5: =VLOOKUP($D6,specs!$D$5:$H$17,4)/IF(H6<67,(H6/1.03),65)*$E6+H8 -> 0.9960579772 | I5: =VLOOKUP($D6,specs!$D$5:$H$17,4)/IF(I6<67,(I6/1.03),65)*$E6+I8 -> 0.9960672193 | J5: =VLOOKUP($D6,specs!$D$5:$H$17,4)/IF(J6<67,(J6/1.03),65)*$E6+J8 -> 0.9960674166 | K5: =VLOOKUP($D6,specs!$D$5:$H$17,4)/IF(K6<67,(K6/1.03),65)*$E6+K8 -> 0.9960674208 | L5: =VLOOKUP($D6,specs!$D$5:$H$17,4)/IF(L6<67,(L6/1.03),65)*$E6+L8 -> 0.9960674209 | M5: =VLOOKUP($D6,specs!$D$5:$H$17,4)/IF(M6<67,(M6/1.03),65)*$E6+M8 -> 0.9960674209 | N5: =VLOOKUP($D6,specs!$D$5:$H$17,4)/IF(N6<67,(N6/1.03),65)*$E6+N8 -> 0.9960674209 | O5: =VLOOKUP($D6,specs!$D$5:$H$17,4)/IF(O6<67,(O6/1.03),65)*$E6+O8 -> 0.9960674209
C6: amplifier | D6: LEX | E6: 1 | F6: =F9+F8*F7 -> 63.63739868 | G6: =G9+G8*G7 -> 62.35136084 | H6: 62.3245008 | I6: 62.32392776 | J6: 62.32391553 | K6: 62.32391527 | L6: 62.32391526 | M6: 62.32391526 | N6: 62.32391526 | O6: 62.32391526
C7: cable type | D7: QR540 | E7: 0 | F7: =VLOOKUP($D7,specs!$K$5:$L$19,2)*IF($E$1="m",$D8,($D8*0.3048))/1000 -> 1.11408 | G7: =VLOOKUP($D7,specs!$K$5:$L$19,2)*IF($E$1="m",$D8,($D8*0.3048))/1000 -> 1.11408 | H7: =VLOOKUP($D7,specs!$K$5:$L$19,2)*IF($E$1="m",$D8,($D8*0.3048))/1000 -> 1.11408 | I7: =VLOOKUP($D7,specs!$K$5:$L$19,2)*IF($E$1="m",$D8,($D8*0.3048))/1000 -> 1.11408 | J7: =VLOOKUP($D7,specs!$K$5:$L$19,2)*IF($E$1="m",$D8,($D8*0.3048))/1000 -> 1.11408 | K7: =VLOOKUP($D7,specs!$K$5:$L$19,2)*IF($E$1="m",$D8,($D8*0.3048))/1000 -> 1.11408 | L7: =VLOOKUP($D7,specs!$K$5:$L$19,2)*IF($E$1="m",$D8,($D8*0.3048))/1000 -> 1.11408 | M7: =VLOOKUP($D7,specs!$K$5:$L$19,2)*IF($E$1="m",$D8,($D8*0.3048))/1000 -> 1.11408 | N7: =VLOOKUP($D7,specs!$K$5:$L$19,2)*IF($E$1="m",$D8,($D8*0.3048))/1000 -> 1.11408 | O7: =VLOOKUP($D7,specs!$K$5:$L$19,2)*IF($E$1="m",$D8,($D8*0.3048))/1000 -> 1.11408
C8: span length,m | D8: 211 | E8: 0 | F8: =VLOOKUP($D9,specs!$D$5:$H$17,4)/IF(F9<67,(F9/1.03),65)*$E9+F11 -> 0.4897628182 | G8: =VLOOKUP($D9,specs!$D$5:$H$17,4)/IF(G9<67,(G9/1.03),65)*$E9+G11 -> 0.5000463702 | H8: =VLOOKUP($D9,specs!$D$5:$H$17,4)/IF(H9<67,(H9/1.03),65)*$E9+H11 -> 0.5002657992 | I8: =VLOOKUP($D9,specs!$D$5:$H$17,4)/IF(I9<67,(I9/1.03),65)*$E9+I11 -> 0.5002704827 | J8: =VLOOKUP($D9,specs!$D$5:$H$17,4)/IF(J9<67,(J9/1.03),65)*$E9+J11 -> 0.5002705826 | K8: =VLOOKUP($D9,specs!$D$5:$H$17,4)/IF(K9<67,(K9/1.03),65)*$E9+K11 -> 0.5002705848 | L8: =VLOOKUP($D9,specs!$D$5:$H$17,4)/IF(L9<67,(L9/1.03),65)*$E9+L11 -> 0.5002705848 | M8: =VLOOKUP($D9,specs!$D$5:$H$17,4)/IF(M9<67,(M9/1.03),65)*$E9+M11 -> 0.5002705848 | N8: =VLOOKUP($D9,specs!$D$5:$H$17,4)/IF(N9<67,(N9/1.03),65)*$E9+N11 -> 0.5002705848 | O8: =VLOOKUP($D9,specs!$D$5:$H$17,4)/IF(O9<67,(O9/1.03),65)*$E9+O11 -> 0.5002705848
C9: amplifier | D9: LEX | E9: 1 | F9: =F12+F11*F10 -> 63.09176371 | G9: =G12+G11*G10 -> 61.79426918 | H9: 61.76716468 | I9: 61.76658642 | J9: 61.76657408 | K9: 61.76657381 | L9: 61.76657381 | M9: 61.76657381 | N9: 61.76657381 | O9: 61.76657381
C10: cable type | D10: cable | E10: 0 | F10: =VLOOKUP($D10,specs!$K$5:$L$19,2)*IF($E$1="m",$D11,($D11*0.3048))/1000 -> 0 | G10: =VLOOKUP($D10,specs!$K$5:$L$19,2)*IF($E$1="m",$D11,($D11*0.3048))/1000 -> 0 | H10: =VLOOKUP($D10,specs!$K$5:$L$19,2)*IF($E$1="m",$D11,($D11*0.3048))/1000 -> 0 | I10: =VLOOKUP($D10,specs!$K$5:$L$19,2)*IF($E$1="m",$D11,($D11*0.3048))/1000 -> 0 | J10: =VLOOKUP($D10,specs!$K$5:$L$19,2)*IF($E$1="m",$D11,($D11*0.3048))/1000 -> 0 | K10: =VLOOKUP($D10,specs!$K$5:$L$19,2)*IF($E$1="m",$D11,($D11*0.3048))/1000 -> 0 | L10: =VLOOKUP($D10,specs!$K$5:$L$19,2)*IF($E$1="m",$D11,($D11*0.3048))/1000 -> 0 | M10: =VLOOKUP($D10,specs!$K$5:$L$19,2)*IF($E$1="m",$D11,($D11*0.3048))/1000 -> 0 | N10: =VLOOKUP($D10,specs!$K$5:$L$19,2)*IF($E$1="m",$D11,($D11*0.3048))/1000 -> 0 | O10: =VLOOKUP($D10,specs!$K$5:$L$19,2)*IF($E$1="m",$D11,($D11*0.3048))/1000 -> 0
C11: span length,m | D11: 0 | E11: 0 | F11: =VLOOKUP($D12,specs!$D$5:$H$17,4)/IF(F12<67,(F12/1.03),65)*$E12+F14 -> 0 | G11: =VLOOKUP($D12,specs!$D$5:$H$17,4)/IF(G12<67,(G12/1.03),65)*$E12+G14 -> 0 | H11: =VLOOKUP($D12,specs!$D$5:$H$17,4)/IF(H12<67,(H12/1.03),65)*$E12+H14 -> 0 | I11: =VLOOKUP($D12,specs!$D$5:$H$17,4)/IF(I12<67,(I12/1.03),65)*$E12+I14 -> 0 | J11: =VLOOKUP($D12,specs!$D$5:$H$17,4)/IF(J12<67,(J12/1.03),65)*$E12+J14 -> 0 | K11: =VLOOKUP($D12,specs!$D$5:$H$17,4)/IF(K12<67,(K12/1.03),65)*$E12+K14 -> 0 | L11: =VLOOKUP($D12,specs!$D$5:$H$17,4)/IF(L12<67,(L12/1.03),65)*$E12+L14 -> 0 | M11: =VLOOKUP($D12,specs!$D$5:$H$17,4)/IF(M12<67,(M12/1.03),65)*$E12+M14 -> 0 | N11: =VLOOKUP($D12,specs!$D$5:$H$17,4)/IF(N12<67,(N12/1.03),65)*$E12+N14 -> 0 | O11: =VLOOKUP($D12,specs!$D$5:$H$17,4)/IF(O12<67,(O12/1.03),65)*$E12+O14 -> 0
C12: amplifier | D12: load | E12: 0 | F12: =F15+F14*F13 -> 63.09176371 | G12: =G15+G14*G13 -> 61.79426918 | H12: 61.76716468 | I12: 61.76658642 | J12: 61.76657408 | K12: 61.76657381 | L12: 61.76657381 | M12: 61.76657381 | N12: 61.76657381 | O12: 61.76657381
C13: cable type | D13: cable | E13: 0 | F13: =VLOOKUP($D13,specs!$K$5:$L$19,2)*IF($E$1="m",$D14,($D14*0.3048))/1000 -> 0 | G13: =VLOOKUP($D13,specs!$K$5:$L$19,2)*IF($E$1="m",$D14,($D14*0.3048))/1000 -> 0 | H13: =VLOOKUP($D13,specs!$K$5:$L$19,2)*IF($E$1="m",$D14,($D14*0.3048))/1000 -> 0 | I13: =VLOOKUP($D13,specs!$K$5:$L$19,2)*IF($E$1="m",$D14,($D14*0.3048))/1000 -> 0 | J13: =VLOOKUP($D13,specs!$K$5:$L$19,2)*IF($E$1="m",$D14,($D14*0.3048))/1000 -> 0 | K13: =VLOOKUP($D13,specs!$K$5:$L$19,2)*IF($E$1="m",$D14,($D14*0.3048))/1000 -> 0 | L13: =VLOOKUP($D13,specs!$K$5:$L$19,2)*IF($E$1="m",$D14,($D14*0.3048))/1000 -> 0 | M13: =VLOOKUP($D13,specs!$K$5:$L$19,2)*IF($E$1="m",$D14,($D14*0.3048))/1000 -> 0 | N13: =VLOOKUP($D13,specs!$K$5:$L$19,2)*IF($E$1="m",$D14,($D14*0.3048))/1000 -> 0 | O13: =VLOOKUP($D13,specs!$K$5:$L$19,2)*IF($E$1="m",$D14,($D14*0.3048))/1000 -> 0
C14: span length,m | D14: 0 | E14: 0 | F14: =VLOOKUP($D15,specs!$D$5:$H$17,4)/IF(F15<67,(F15/1.03),65)*$E15+F17 -> 0 | G14: =VLOOKUP($D15,specs!$D$5:$H$17,4)/IF(G15<67,(G15/1.03),65)*$E15+G17 -> 0 | H14: =VLOOKUP($D15,specs!$D$5:$H$17,4)/IF(H15<67,(H15/1.03),65)*$E15+H17 -> 0 | I14: =VLOOKUP($D15,specs!$D$5:$H$17,4)/IF(I15<67,(I15/1.03),65)*$E15+I17 -> 0 | J14: =VLOOKUP($D15,specs!$D$5:$H$17,4)/IF(J15<67,(J15/1.03),65)*$E15+J17 -> 0 | K14: =VLOOKUP($D15,specs!$D$5:$H$17,4)/IF(K15<67,(K15/1.03),65)*$E15+K17 -> 0 | L14: =VLOOKUP($D15,specs!$D$5:$H$17,4)/IF(L15<67,(L15/1.03),65)*$E15+L17 -> 0 | M14: =VLOOKUP($D15,specs!$D$5:$H$17,4)/IF(M15<67,(M15/1.03),65)*$E15+M17 -> 0 | N14: =VLOOKUP($D15,specs!$D$5:$H$17,4)/IF(N15<67,(N15/1.03),65)*$E15+N17 -> 0 | O14: =VLOOKUP($D15,specs!$D$5:$H$17,4)/IF(O15<67,(O15/1.03),65)*$E15+O17 -> 0
C15: amplifier | D15: load | E15: 0 | F15: =F18+F17*F16 -> 63.09176371 | G15: =G18+G17*G16 -> 61.79426918 | H15: 61.76716468 | I15: 61.76658642 | J15: 61.76657408 | K15: 61.76657381 | L15: 61.76657381 | M15: 61.76657381 | N15: 61.76657381 | O15: 61.76657381
C16: cable type | D16: cable | E16: 0 | F16: =VLOOKUP($D16,specs!$K$5:$L$19,2)*IF($E$1="m",$D17,($D17*0.3048))/1000 -> 0 | G16: =VLOOKUP($D16,specs!$K$5:$L$19,2)*IF($E$1="m",$D17,($D17*0.3048))/1000 -> 0 | H16: =VLOOKUP($D16,specs!$K$5:$L$19,2)*IF($E$1="m",$D17,($D17*0.3048))/1000 -> 0 | I16: =VLOOKUP($D16,specs!$K$5:$L$19,2)*IF($E$1="m",$D17,($D17*0.3048))/1000 -> 0 | J16: =VLOOKUP($D16,specs!$K$5:$L$19,2)*IF($E$1="m",$D17,($D17*0.3048))/1000 -> 0 | K16: =VLOOKUP($D16,specs!$K$5:$L$19,2)*IF($E$1="m",$D17,($D17*0.3048))/1000 -> 0 | L16: =VLOOKUP($D16,specs!$K$5:$L$19,2)*IF($E$1="m",$D17,($D17*0.3048))/1000 -> 0 | M16: =VLOOKUP($D16,specs!$K$5:$L$19,2)*IF($E$1="m",$D17,($D17*0.3048))/1000 -> 0 | N16: =VLOOKUP($D16,specs!$K$5:$L$19,2)*IF($E$1="m",$D17,($D17*0.3048))/1000 -> 0 | O16: =VLOOKUP($D16,specs!$K$5:$L$19,2)*IF($E$1="m",$D17,($D17*0.3048))/1000 -> 0
C17: span length,m | D17: 0 | E17: 0 | F17: =VLOOKUP($D18,specs!$D$5:$H$17,4)/IF(F18<67,(F18/1.03),65)*$E18+F20 -> 0 | G17: =VLOOKUP($D18,specs!$D$5:$H$17,4)/IF(G18<67,(G18/1.03),65)*$E18+G20 -> 0 | H17: =VLOOKUP($D18,specs!$D$5:$H$17,4)/IF(H18<67,(H18/1.03),65)*$E18+H20 -> 0 | I17: =VLOOKUP($D18,specs!$D$5:$H$17,4)/IF(I18<67,(I18/1.03),65)*$E18+I20 -> 0 | J17: =VLOOKUP($D18,specs!$D$5:$H$17,4)/IF(J18<67,(J18/1.03),65)*$E18+J20 -> 0 | K17: =VLOOKUP($D18,specs!$D$5:$H$17,4)/IF(K18<67,(K18/1.03),65)*$E18+K20 -> 0 | L17: =VLOOKUP($D18,specs!$D$5:$H$17,4)/IF(L18<67,(L18/1.03),65)*$E18+L20 -> 0 | M17: =VLOOKUP($D18,specs!$D$5:$H$17,4)/IF(M18<67,(M18/1.03),65)*$E18+M20 -> 0 | N17: =VLOOKUP($D18,specs!$D$5:$H$17,4)/IF(N18<67,(N18/1.03),65)*$E18+N20 -> 0 | O17: =VLOOKUP($D18,specs!$D$5:$H$17,4)/IF(O18<67,(O18/1.03),65)*$E18+O20 -> 0
C18: amplifier | D18: load | E18: 0 | F18: =F21+F20*F19 -> 63.09176371 | G18: =G21+G20*G19 -> 61.79426918 | H18: 61.76716468 | I18: 61.76658642 | J18: 61.76657408 | K18: 61.76657381 | L18: 61.76657381 | M18: 61.76657381 | N18: 61.76657381 | O18: 61.76657381
C19: cable type | D19: cable | E19: 0 | F19: =VLOOKUP($D19,specs!$K$5:$L$19,2)*IF($E$1="m",$D20,($D20*0.3048))/1000 -> 0 | G19: =VLOOKUP($D19,specs!$K$5:$L$19,2)*IF($E$1="m",$D20,($D20*0.3048))/1000 -> 0 | H19: =VLOOKUP($D19,specs!$K$5:$L$19,2)*IF($E$1="m",$D20,($D20*0.3048))/1000 -> 0 | I19: =VLOOKUP($D19,specs!$K$5:$L$19,2)*IF($E$1="m",$D20,($D20*0.3048))/1000 -> 0 | J19: =VLOOKUP($D19,specs!$K$5:$L$19,2)*IF($E$1="m",$D20,($D20*0.3048))/1000 -> 0 | K19: =VLOOKUP($D19,specs!$K$5:$L$19,2)*IF($E$1="m",$D20,($D20*0.3048))/1000 -> 0 | L19: =VLOOKUP($D19,specs!$K$5:$L$19,2)*IF($E$1="m",$D20,($D20*0.3048))/1000 -> 0 | M19: =VLOOKUP($D19,specs!$K$5:$L$19,2)*IF($E$1="m",$D20,($D20*0.3048))/1000 -> 0 | N19: =VLOOKUP($D19,specs!$K$5:$L$19,2)*IF($E$1="m",$D20,($D20*0.3048))/1000 -> 0 | O19: =VLOOKUP($D19,specs!$K$5:$L$19,2)*IF($E$1="m",$D20,($D20*0.3048))/1000 -> 0
C20: span length,m | D20: 0 | E20: 0 | F20: =$E21*VLOOKUP($D21,specs!$D$5:$H$17,4)/IF(F21<67,(F21/1.03),65) -> 0 | G20: =$E21*VLOOKUP($D21,specs!$D$5:$H$17,4)/IF(G21<67,(G21/1.03),65) -> 0 | H20: =$E21*VLOOKUP($D21,specs!$D$5:$H$17,4)/IF(H21<67,(H21/1.03),65) -> 0 | I20: =$E21*VLOOKUP($D21,specs!$D$5:$H$17,4)/IF(I21<67,(I21/1.03),65) -> 0 | J20: =$E21*VLOOKUP($D21,specs!$D$5:$H$17,4)/IF(J21<67,(J21/1.03),65) -> 0 | K20: =$E21*VLOOKUP($D21,specs!$D$5:$H$17,4)/IF(K21<67,(K21/1.03),65) -> 0 | L20: =$E21*VLOOKUP($D21,specs!$D$5:$H$17,4)/IF(L21<67,(L21/1.03),65) -> 0 | M20: =$E21*VLOOKUP($D21,specs!$D$5:$H$17,4)/IF(M21<67,(M21/1.03),65) -> 0 | N20: =$E21*VLOOKUP($D21,specs!$D$5:$H$17,4)/IF(N21<67,(N21/1.03),65) -> 0 | O20: =$E21*VLOOKUP($D21,specs!$D$5:$H$17,4)/IF(O21<67,(O21/1.03),65) -> 0
C21: amplifier | D21: load | E21: 0 | F21: =B2 -> 63.09176371 | G21: =F21-(F3-$B$2) -> 61.79426918 | H21: 61.76716468 | I21: 61.76658642 | J21: 61.76657408 | K21: 61.76657381 | L21: 61.76657381 | M21: 61.76657381 | N21: 61.76657381 | O21: 61.76657381
F22: =IF(F21<0,1,0) -> 0 | G22: =IF(G21<0,1,0) -> 0 | H22: 0 | I22: 0 | J22: 0 | K22: 0 | L22: 0 | M22: 0 | N22: 0 | O22: 0
C24: User added Branch
M27: =O21 -> 61.76657381
F34: Main Branch Net41

Sheet Net32 (hidden)
B1: =SUM(F22:O22) -> 0 | D1: =IF(O21<'AUX2'!B6,1,0) -> 0 | E1: =+'AUX2'!J5 -> m
B2: ='AUX2'!M12 -> 63.09176371 | C2: U start, V | D2: =+O5*1 -> 2.735836845 | F2: 1 | G2: 2 | H2: 3 | I2: 4 | J2: 5 | K2: 6 | L2: 7 | M2: 8 | N2: 9 | O2: iteration10
E3: mult. | F3: =F6+F5*F4 -> 69.39757158 | G3: =G6+G5*G4 -> 63.78238405 | H3: 63.17663603 | I3: 63.10233516 | J3: 63.09308266 | K3: 63.09192831 | L3: 63.09178425 | M3: 63.09176628 | N3: 63.09176403 | O3: 63.09176375
C4: cable type | D4: QR540 | E4: 0 | F4: =VLOOKUP($D4,specs!$K$5:$L$19,2)*IF($E$1="m",$D5,($D5*0.3048))/1000 -> 2.112 | G4: =VLOOKUP($D4,specs!$K$5:$L$19,2)*IF($E$1="m",$D5,($D5*0.3048))/1000 -> 2.112 | H4: =VLOOKUP($D4,specs!$K$5:$L$19,2)*IF($E$1="m",$D5,($D5*0.3048))/1000 -> 2.112 | I4: =VLOOKUP($D4,specs!$K$5:$L$19,2)*IF($E$1="m",$D5,($D5*0.3048))/1000 -> 2.112 | J4: =VLOOKUP($D4,specs!$K$5:$L$19,2)*IF($E$1="m",$D5,($D5*0.3048))/1000 -> 2.112 | K4: =VLOOKUP($D4,specs!$K$5:$L$19,2)*IF($E$1="m",$D5,($D5*0.3048))/1000 -> 2.112 | L4: =VLOOKUP($D4,specs!$K$5:$L$19,2)*IF($E$1="m",$D5,($D5*0.3048))/1000 -> 2.112 | M4: =VLOOKUP($D4,specs!$K$5:$L$19,2)*IF($E$1="m",$D5,($D5*0.3048))/1000 -> 2.112 | N4: =VLOOKUP($D4,specs!$K$5:$L$19,2)*IF($E$1="m",$D5,($D5*0.3048))/1000 -> 2.112 | O4: =VLOOKUP($D4,specs!$K$5:$L$19,2)*IF($E$1="m",$D5,($D5*0.3048))/1000 -> 2.112
C5: span length,m | D5: 400 | E5: 0 | F5: =VLOOKUP($D6,specs!$D$5:$H$17,4)/IF(F6<67,(F6/1.03),65)*$E6+F8 -> 2.432550134 | G5: =VLOOKUP($D6,specs!$D$5:$H$17,4)/IF(G6<67,(G6/1.03),65)*$E6+G8 -> 2.69851158 | H5: =VLOOKUP($D6,specs!$D$5:$H$17,4)/IF(H6<67,(H6/1.03),65)*$E6+H8 -> 2.731186894 | I5: =VLOOKUP($D6,specs!$D$5:$H$17,4)/IF(I6<67,(I6/1.03),65)*$E6+I8 -> 2.735256685 | J5: =VLOOKUP($D6,specs!$D$5:$H$17,4)/IF(J6<67,(J6/1.03),65)*$E6+J8 -> 2.735764449 | K5: =VLOOKUP($D6,specs!$D$5:$H$17,4)/IF(K6<67,(K6/1.03),65)*$E6+K8 -> 2.735827813 | L5: =VLOOKUP($D6,specs!$D$5:$H$17,4)/IF(L6<67,(L6/1.03),65)*$E6+L8 -> 2.73583572 | M5: =VLOOKUP($D6,specs!$D$5:$H$17,4)/IF(M6<67,(M6/1.03),65)*$E6+M8 -> 2.735836707 | N5: =VLOOKUP($D6,specs!$D$5:$H$17,4)/IF(N6<67,(N6/1.03),65)*$E6+N8 -> 2.73583683 | O5: =VLOOKUP($D6,specs!$D$5:$H$17,4)/IF(O6<67,(O6/1.03),65)*$E6+O8 -> 2.735836845
C6: amplifier | D6: LEX | E6: 1 | F6: =F9+F8*F7 -> 64.2600257 | G6: =G9+G8*G7 -> 58.08312759 | H6: 57.40836931 | I6: 57.32547304 | J6: 57.31514814 | K6: 57.31385997 | L6: 57.31369921 | M6: 57.31367915 | N6: 57.31367665 | O6: 57.31367634
C7: cable type | D7: QR540 | E7: 0 | F7: =VLOOKUP($D7,specs!$K$5:$L$19,2)*IF($E$1="m",$D8,($D8*0.3048))/1000 -> 0.39072 | G7: =VLOOKUP($D7,specs!$K$5:$L$19,2)*IF($E$1="m",$D8,($D8*0.3048))/1000 -> 0.39072 | H7: =VLOOKUP($D7,specs!$K$5:$L$19,2)*IF($E$1="m",$D8,($D8*0.3048))/1000 -> 0.39072 | I7: =VLOOKUP($D7,specs!$K$5:$L$19,2)*IF($E$1="m",$D8,($D8*0.3048))/1000 -> 0.39072 | J7: =VLOOKUP($D7,specs!$K$5:$L$19,2)*IF($E$1="m",$D8,($D8*0.3048))/1000 -> 0.39072 | K7: =VLOOKUP($D7,specs!$K$5:$L$19,2)*IF($E$1="m",$D8,($D8*0.3048))/1000 -> 0.39072 | L7: =VLOOKUP($D7,specs!$K$5:$L$19,2)*IF($E$1="m",$D8,($D8*0.3048))/1000 -> 0.39072 | M7: =VLOOKUP($D7,specs!$K$5:$L$19,2)*IF($E$1="m",$D8,($D8*0.3048))/1000 -> 0.39072 | N7: =VLOOKUP($D7,specs!$K$5:$L$19,2)*IF($E$1="m",$D8,($D8*0.3048))/1000 -> 0.39072 | O7: =VLOOKUP($D7,specs!$K$5:$L$19,2)*IF($E$1="m",$D8,($D8*0.3048))/1000 -> 0.39072
C8: span length,m | D8: 74 | E8: 0 | F8: =VLOOKUP($D9,specs!$D$5:$H$17,4)/IF(F9<67,(F9/1.03),65)*$E9+F11 -> 1.951691316 | G8: =VLOOKUP($D9,specs!$D$5:$H$17,4)/IF(G9<67,(G9/1.03),65)*$E9+G11 -> 2.166515435 | H8: =VLOOKUP($D9,specs!$D$5:$H$17,4)/IF(H9<67,(H9/1.03),65)*$E9+H11 -> 2.192937848 | I8: =VLOOKUP($D9,specs!$D$5:$H$17,4)/IF(I9<67,(I9/1.03),65)*$E9+I11 -> 2.196229297 | J8: =VLOOKUP($D9,specs!$D$5:$H$17,4)/IF(J9<67,(J9/1.03),65)*$E9+J11 -> 2.196639959 | K8: =VLOOKUP($D9,specs!$D$5:$H$17,4)/IF(K9<67,(K9/1.03),65)*$E9+K11 -> 2.196691206 | L8: =VLOOKUP($D9,specs!$D$5:$H$17,4)/IF(L9<67,(L9/1.03),65)*$E9+L11 -> 2.196697601 | M8: =VLOOKUP($D9,specs!$D$5:$H$17,4)/IF(M9<67,(M9/1.03),65)*$E9+M11 -> 2.196698399 | N8: =VLOOKUP($D9,specs!$D$5:$H$17,4)/IF(N9<67,(N9/1.03),65)*$E9+N11 -> 2.196698499 | O8: =VLOOKUP($D9,specs!$D$5:$H$17,4)/IF(O9<67,(O9/1.03),65)*$E9+O11 -> 2.196698511
C9: amplifier | D9: LEX | E9: 2 | F9: =F12+F11*F10 -> 63.49746087 | G9: =G12+G11*G10 -> 57.23662668 | H9: 56.55154463 | I9: 56.46736233 | J9: 56.45687698 | K9: 56.45556878 | L9: 56.45540553 | M9: 56.45538515 | N9: 56.45538261 | O9: 56.45538229
C10: cable type | D10: QR540 | E10: 0 | F10: =VLOOKUP($D10,specs!$K$5:$L$19,2)*IF($E$1="m",$D11,($D11*0.3048))/1000 -> 0.26928 | G10: =VLOOKUP($D10,specs!$K$5:$L$19,2)*IF($E$1="m",$D11,($D11*0.3048))/1000 -> 0.26928 | H10: =VLOOKUP($D10,specs!$K$5:$L$19,2)*IF($E$1="m",$D11,($D11*0.3048))/1000 -> 0.26928 | I10: =VLOOKUP($D10,specs!$K$5:$L$19,2)*IF($E$1="m",$D11,($D11*0.3048))/1000 -> 0.26928 | J10: =VLOOKUP($D10,specs!$K$5:$L$19,2)*IF($E$1="m",$D11,($D11*0.3048))/1000 -> 0.26928 | K10: =VLOOKUP($D10,specs!$K$5:$L$19,2)*IF($E$1="m",$D11,($D11*0.3048))/1000 -> 0.26928 | L10: =VLOOKUP($D10,specs!$K$5:$L$19,2)*IF($E$1="m",$D11,($D11*0.3048))/1000 -> 0.26928 | M10: =VLOOKUP($D10,specs!$K$5:$L$19,2)*IF($E$1="m",$D11,($D11*0.3048))/1000 -> 0.26928 | N10: =VLOOKUP($D10,specs!$K$5:$L$19,2)*IF($E$1="m",$D11,($D11*0.3048))/1000 -> 0.26928 | O10: =VLOOKUP($D10,specs!$K$5:$L$19,2)*IF($E$1="m",$D11,($D11*0.3048))/1000 -> 0.26928
C11: span length,m | D11: 51 | E11: 0 | F11: =VLOOKUP($D12,specs!$D$5:$H$17,4)/IF(F12<67,(F12/1.03),65)*$E12+F14 -> 0.9784240523 | G11: =VLOOKUP($D12,specs!$D$5:$H$17,4)/IF(G12<67,(G12/1.03),65)*$E12+G14 -> 1.086787233 | H11: =VLOOKUP($D12,specs!$D$5:$H$17,4)/IF(H12<67,(H12/1.03),65)*$E12+H14 -> 1.100129501 | I11: =VLOOKUP($D12,specs!$D$5:$H$17,4)/IF(I12<67,(I12/1.03),65)*$E12+I14 -> 1.101791777 | J11: =VLOOKUP($D12,specs!$D$5:$H$17,4)/IF(J12<67,(J12/1.03),65)*$E12+J14 -> 1.101999176 | K11: =VLOOKUP($D12,specs!$D$5:$H$17,4)/IF(K12<67,(K12/1.03),65)*$E12+K14 -> 1.102025058 | L11: =VLOOKUP($D12,specs!$D$5:$H$17,4)/IF(L12<67,(L12/1.03),65)*$E12+L14 -> 1.102028288 | M11: =VLOOKUP($D12,specs!$D$5:$H$17,4)/IF(M12<67,(M12/1.03),65)*$E12+M14 -> 1.102028691 | N11: =VLOOKUP($D12,specs!$D$5:$H$17,4)/IF(N12<67,(N12/1.03),65)*$E12+N14 -> 1.102028741 | O11: =VLOOKUP($D12,specs!$D$5:$H$17,4)/IF(O12<67,(O12/1.03),65)*$E12+O14 -> 1.102028747
C12: amplifier | D12: LEX | E12: 1 | F12: =F15+F14*F13 -> 63.23399084 | G12: =G15+G14*G13 -> 56.94397661 | H12: 56.25530176 | I12: 56.17067184 | J12: 56.16013064 | K12: 56.15881547 | L12: 56.15865135 | M12: 56.15863087 | N12: 56.15862831 | O12: 56.15862799
C13: cable type | D13: QR540 | E13: 0 | F13: =VLOOKUP($D13,specs!$K$5:$L$19,2)*IF($E$1="m",$D14,($D14*0.3048))/1000 -> 0.2904 | G13: =VLOOKUP($D13,specs!$K$5:$L$19,2)*IF($E$1="m",$D14,($D14*0.3048))/1000 -> 0.2904 | H13: =VLOOKUP($D13,specs!$K$5:$L$19,2)*IF($E$1="m",$D14,($D14*0.3048))/1000 -> 0.2904 | I13: =VLOOKUP($D13,specs!$K$5:$L$19,2)*IF($E$1="m",$D14,($D14*0.3048))/1000 -> 0.2904 | J13: =VLOOKUP($D13,specs!$K$5:$L$19,2)*IF($E$1="m",$D14,($D14*0.3048))/1000 -> 0.2904 | K13: =VLOOKUP($D13,specs!$K$5:$L$19,2)*IF($E$1="m",$D14,($D14*0.3048))/1000 -> 0.2904 | L13: =VLOOKUP($D13,specs!$K$5:$L$19,2)*IF($E$1="m",$D14,($D14*0.3048))/1000 -> 0.2904 | M13: =VLOOKUP($D13,specs!$K$5:$L$19,2)*IF($E$1="m",$D14,($D14*0.3048))/1000 -> 0.2904 | N13: =VLOOKUP($D13,specs!$K$5:$L$19,2)*IF($E$1="m",$D14,($D14*0.3048))/1000 -> 0.2904 | O13: =VLOOKUP($D13,specs!$K$5:$L$19,2)*IF($E$1="m",$D14,($D14*0.3048))/1000 -> 0.2904
C14: span length,m | D14: 55 | E14: 0 | F14: =VLOOKUP($D15,specs!$D$5:$H$17,4)/IF(F15<67,(F15/1.03),65)*$E15+F17 -> 0.4897628182 | G14: =VLOOKUP($D15,specs!$D$5:$H$17,4)/IF(G15<67,(G15/1.03),65)*$E15+G17 -> 0.5441486286 | H14: =VLOOKUP($D15,specs!$D$5:$H$17,4)/IF(H15<67,(H15/1.03),65)*$E15+H17 -> 0.5508479398 | I14: =VLOOKUP($D15,specs!$D$5:$H$17,4)/IF(I15<67,(I15/1.03),65)*$E15+I17 -> 0.5516826363 | J14: =VLOOKUP($D15,specs!$D$5:$H$17,4)/IF(J15<67,(J15/1.03),65)*$E15+J17 -> 0.5517867808 | K14: =VLOOKUP($D15,specs!$D$5:$H$17,4)/IF(K15<67,(K15/1.03),65)*$E15+K17 -> 0.5517997771 | L14: =VLOOKUP($D15,specs!$D$5:$H$17,4)/IF(L15<67,(L15/1.03),65)*$E15+L17 -> 0.551801399 | M14: =VLOOKUP($D15,specs!$D$5:$H$17,4)/IF(M15<67,(M15/1.03),65)*$E15+M17 -> 0.5518016014 | N14: =VLOOKUP($D15,specs!$D$5:$H$17,4)/IF(N15<67,(N15/1.03),65)*$E15+N17 -> 0.5518016267 | O14: =VLOOKUP($D15,specs!$D$5:$H$17,4)/IF(O15<67,(O15/1.03),65)*$E15+O17 -> 0.5518016298
C15: amplifier | D15: LEX | E15: 1 | F15: =F18+F17*F16 -> 63.09176371 | G15: =G18+G17*G16 -> 56.78595585 | H15: 56.09533552 | I15: 56.0104632 | J15: 55.99989176 | K15: 55.99857282 | L15: 55.99840822 | M15: 55.99838768 | N15: 55.99838512 | O15: 55.9983848
C16: cable type | D16: cable | E16: 0 | F16: =VLOOKUP($D16,specs!$K$5:$L$19,2)*IF($E$1="m",$D17,($D17*0.3048))/1000 -> 0 | G16: =VLOOKUP($D16,specs!$K$5:$L$19,2)*IF($E$1="m",$D17,($D17*0.3048))/1000 -> 0 | H16: =VLOOKUP($D16,specs!$K$5:$L$19,2)*IF($E$1="m",$D17,($D17*0.3048))/1000 -> 0 | I16: =VLOOKUP($D16,specs!$K$5:$L$19,2)*IF($E$1="m",$D17,($D17*0.3048))/1000 -> 0 | J16: =VLOOKUP($D16,specs!$K$5:$L$19,2)*IF($E$1="m",$D17,($D17*0.3048))/1000 -> 0 | K16: =VLOOKUP($D16,specs!$K$5:$L$19,2)*IF($E$1="m",$D17,($D17*0.3048))/1000 -> 0 | L16: =VLOOKUP($D16,specs!$K$5:$L$19,2)*IF($E$1="m",$D17,($D17*0.3048))/1000 -> 0 | M16: =VLOOKUP($D16,specs!$K$5:$L$19,2)*IF($E$1="m",$D17,($D17*0.3048))/1000 -> 0 | N16: =VLOOKUP($D16,specs!$K$5:$L$19,2)*IF($E$1="m",$D17,($D17*0.3048))/1000 -> 0 | O16: =VLOOKUP($D16,specs!$K$5:$L$19,2)*IF($E$1="m",$D17,($D17*0.3048))/1000 -> 0
C17: span length,m | D17: 0 | E17: 0 | F17: =VLOOKUP($D18,specs!$D$5:$H$17,4)/IF(F18<67,(F18/1.03),65)*$E18+F20 -> 0 | G17: =VLOOKUP($D18,specs!$D$5:$H$17,4)/IF(G18<67,(G18/1.03),65)*$E18+G20 -> 0 | H17: =VLOOKUP($D18,specs!$D$5:$H$17,4)/IF(H18<67,(H18/1.03),65)*$E18+H20 -> 0 | I17: =VLOOKUP($D18,specs!$D$5:$H$17,4)/IF(I18<67,(I18/1.03),65)*$E18+I20 -> 0 | J17: =VLOOKUP($D18,specs!$D$5:$H$17,4)/IF(J18<67,(J18/1.03),65)*$E18+J20 -> 0 | K17: =VLOOKUP($D18,specs!$D$5:$H$17,4)/IF(K18<67,(K18/1.03),65)*$E18+K20 -> 0 | L17: =VLOOKUP($D18,specs!$D$5:$H$17,4)/IF(L18<67,(L18/1.03),65)*$E18+L20 -> 0 | M17: =VLOOKUP($D18,specs!$D$5:$H$17,4)/IF(M18<67,(M18/1.03),65)*$E18+M20 -> 0 | N17: =VLOOKUP($D18,specs!$D$5:$H$17,4)/IF(N18<67,(N18/1.03),65)*$E18+N20 -> 0 | O17: =VLOOKUP($D18,specs!$D$5:$H$17,4)/IF(O18<67,(O18/1.03),65)*$E18+O20 -> 0
C18: amplifier | D18: load | E18: 0 | F18: =F21+F20*F19 -> 63.09176371 | G18: =G21+G20*G19 -> 56.78595585 | H18: 56.09533552 | I18: 56.0104632 | J18: 55.99989176 | K18: 55.99857282 | L18: 55.99840822 | M18: 55.99838768 | N18: 55.99838512 | O18: 55.9983848
C19: cable type | D19: cable | E19: 0 | F19: =VLOOKUP($D19,specs!$K$5:$L$19,2)*IF($E$1="m",$D20,($D20*0.3048))/1000 -> 0 | G19: =VLOOKUP($D19,specs!$K$5:$L$19,2)*IF($E$1="m",$D20,($D20*0.3048))/1000 -> 0 | H19: =VLOOKUP($D19,specs!$K$5:$L$19,2)*IF($E$1="m",$D20,($D20*0.3048))/1000 -> 0 | I19: =VLOOKUP($D19,specs!$K$5:$L$19,2)*IF($E$1="m",$D20,($D20*0.3048))/1000 -> 0 | J19: =VLOOKUP($D19,specs!$K$5:$L$19,2)*IF($E$1="m",$D20,($D20*0.3048))/1000 -> 0 | K19: =VLOOKUP($D19,specs!$K$5:$L$19,2)*IF($E$1="m",$D20,($D20*0.3048))/1000 -> 0 | L19: =VLOOKUP($D19,specs!$K$5:$L$19,2)*IF($E$1="m",$D20,($D20*0.3048))/1000 -> 0 | M19: =VLOOKUP($D19,specs!$K$5:$L$19,2)*IF($E$1="m",$D20,($D20*0.3048))/1000 -> 0 | N19: =VLOOKUP($D19,specs!$K$5:$L$19,2)*IF($E$1="m",$D20,($D20*0.3048))/1000 -> 0 | O19: =VLOOKUP($D19,specs!$K$5:$L$19,2)*IF($E$1="m",$D20,($D20*0.3048))/1000 -> 0
C20: span length,m | D20: 0 | E20: 0 | F20: =$E21*VLOOKUP($D21,specs!$D$5:$H$17,4)/IF(F21<67,(F21/1.03),65) -> 0 | G20: =$E21*VLOOKUP($D21,specs!$D$5:$H$17,4)/IF(G21<67,(G21/1.03),65) -> 0 | H20: =$E21*VLOOKUP($D21,specs!$D$5:$H$17,4)/IF(H21<67,(H21/1.03),65) -> 0 | I20: =$E21*VLOOKUP($D21,specs!$D$5:$H$17,4)/IF(I21<67,(I21/1.03),65) -> 0 | J20: =$E21*VLOOKUP($D21,specs!$D$5:$H$17,4)/IF(J21<67,(J21/1.03),65) -> 0 | K20: =$E21*VLOOKUP($D21,specs!$D$5:$H$17,4)/IF(K21<67,(K21/1.03),65) -> 0 | L20: =$E21*VLOOKUP($D21,specs!$D$5:$H$17,4)/IF(L21<67,(L21/1.03),65) -> 0 | M20: =$E21*VLOOKUP($D21,specs!$D$5:$H$17,4)/IF(M21<67,(M21/1.03),65) -> 0 | N20: =$E21*VLOOKUP($D21,specs!$D$5:$H$17,4)/IF(N21<67,(N21/1.03),65) -> 0 | O20: =$E21*VLOOKUP($D21,specs!$D$5:$H$17,4)/IF(O21<67,(O21/1.03),65) -> 0
C21: amplifier | D21: load | E21: 0 | F21: =B2 -> 63.09176371 | G21: =F21-(F3-$B$2) -> 56.78595585 | H21: 56.09533552 | I21: 56.0104632 | J21: 55.99989176 | K21: 55.99857282 | L21: 55.99840822 | M21: 55.99838768 | N21: 55.99838512 | O21: 55.9983848
F22: =IF(F21<0,1,0) -> 0 | G22: =IF(G21<0,1,0) -> 0 | H22: 0 | I22: 0 | J22: 0 | K22: 0 | L22: 0 | M22: 0 | N22: 0 | O22: 0
C24: User added Branch
M27: =O21 -> 55.9983848
F34: Main Branch Net32

Sheet Net31 (hidden)
B1: =SUM(F22:O22) -> 0 | D1: =IF(O21<'AUX2'!B6,1,0) -> 0 | E1: =+'AUX2'!J5 -> m
B2: =+'AUX2'!M11 -> 63.09176371 | C2: U start, V | D2: =+O5*1 -> 0.4969978135 | F2: 1 | G2: 2 | H2: 3 | I2: 4 | J2: 5 | K2: 6 | L2: 7 | M2: 8 | N2: 9 | O2: iteration10
E3: mult. | F3: =F6+F5*F4 -> 63.9968454 | G3: =G6+G5*G4 -> 63.10493652 | H3: 63.09195827 | I3: 63.09176659 | J3: 63.09176376 | K3: 63.09176372 | L3: 63.09176371 | M3: 63.09176371 | N3: 63.09176371 | O3: 63.09176371
C4: cable type | D4: QR540 | E4: 0 | F4: =VLOOKUP($D4,specs!$K$5:$L$19,2)*IF($E$1="m",$D5,($D5*0.3048))/1000 -> 1.848 | G4: =VLOOKUP($D4,specs!$K$5:$L$19,2)*IF($E$1="m",$D5,($D5*0.3048))/1000 -> 1.848 | H4: =VLOOKUP($D4,specs!$K$5:$L$19,2)*IF($E$1="m",$D5,($D5*0.3048))/1000 -> 1.848 | I4: =VLOOKUP($D4,specs!$K$5:$L$19,2)*IF($E$1="m",$D5,($D5*0.3048))/1000 -> 1.848 | J4: =VLOOKUP($D4,specs!$K$5:$L$19,2)*IF($E$1="m",$D5,($D5*0.3048))/1000 -> 1.848 | K4: =VLOOKUP($D4,specs!$K$5:$L$19,2)*IF($E$1="m",$D5,($D5*0.3048))/1000 -> 1.848 | L4: =VLOOKUP($D4,specs!$K$5:$L$19,2)*IF($E$1="m",$D5,($D5*0.3048))/1000 -> 1.848 | M4: =VLOOKUP($D4,specs!$K$5:$L$19,2)*IF($E$1="m",$D5,($D5*0.3048))/1000 -> 1.848 | N4: =VLOOKUP($D4,specs!$K$5:$L$19,2)*IF($E$1="m",$D5,($D5*0.3048))/1000 -> 1.848 | O4: =VLOOKUP($D4,specs!$K$5:$L$19,2)*IF($E$1="m",$D5,($D5*0.3048))/1000 -> 1.848
C5: span length,m | D5: 350 | E5: 0 | F5: =VLOOKUP($D6,specs!$D$5:$H$17,4)/IF(F6<67,(F6/1.03),65)*$E6+F8 -> 0.4897628182 | G5: =VLOOKUP($D6,specs!$D$5:$H$17,4)/IF(G6<67,(G6/1.03),65)*$E6+G8 -> 0.4968909579 | H5: =VLOOKUP($D6,specs!$D$5:$H$17,4)/IF(H6<67,(H6/1.03),65)*$E6+H8 -> 0.496996235 | I5: =VLOOKUP($D6,specs!$D$5:$H$17,4)/IF(I6<67,(I6/1.03),65)*$E6+I8 -> 0.4969977902 | J5: =VLOOKUP($D6,specs!$D$5:$H$17,4)/IF(J6<67,(J6/1.03),65)*$E6+J8 -> 0.4969978131 | K5: =VLOOKUP($D6,specs!$D$5:$H$17,4)/IF(K6<67,(K6/1.03),65)*$E6+K8 -> 0.4969978135 | L5: =VLOOKUP($D6,specs!$D$5:$H$17,4)/IF(L6<67,(L6/1.03),65)*$E6+L8 -> 0.4969978135 | M5: =VLOOKUP($D6,specs!$D$5:$H$17,4)/IF(M6<67,(M6/1.03),65)*$E6+M8 -> 0.4969978135 | N5: =VLOOKUP($D6,specs!$D$5:$H$17,4)/IF(N6<67,(N6/1.03),65)*$E6+N8 -> 0.4969978135 | O5: =VLOOKUP($D6,specs!$D$5:$H$17,4)/IF(O6<67,(O6/1.03),65)*$E6+O8 -> 0.4969978135
C6: amplifier | D6: LEX | E6: 1 | F6: =F9+F8*F7 -> 63.09176371 | G6: =G9+G8*G7 -> 62.18668203 | H6: 62.17350922 | I6: 62.17331467 | J6: 62.1733118 | K6: 62.17331176 | L6: 62.17331176 | M6: 62.17331176 | N6: 62.17331176 | O6: 62.17331176
C7: cable type | D7: cable | E7: 0 | F7: =VLOOKUP($D7,specs!$K$5:$L$19,2)*IF($E$1="m",$D8,($D8*0.3048))/1000 -> 0 | G7: =VLOOKUP($D7,specs!$K$5:$L$19,2)*IF($E$1="m",$D8,($D8*0.3048))/1000 -> 0 | H7: =VLOOKUP($D7,specs!$K$5:$L$19,2)*IF($E$1="m",$D8,($D8*0.3048))/1000 -> 0 | I7: =VLOOKUP($D7,specs!$K$5:$L$19,2)*IF($E$1="m",$D8,($D8*0.3048))/1000 -> 0 | J7: =VLOOKUP($D7,specs!$K$5:$L$19,2)*IF($E$1="m",$D8,($D8*0.3048))/1000 -> 0 | K7: =VLOOKUP($D7,specs!$K$5:$L$19,2)*IF($E$1="m",$D8,($D8*0.3048))/1000 -> 0 | L7: =VLOOKUP($D7,specs!$K$5:$L$19,2)*IF($E$1="m",$D8,($D8*0.3048))/1000 -> 0 | M7: =VLOOKUP($D7,specs!$K$5:$L$19,2)*IF($E$1="m",$D8,($D8*0.3048))/1000 -> 0 | N7: =VLOOKUP($D7,specs!$K$5:$L$19,2)*IF($E$1="m",$D8,($D8*0.3048))/1000 -> 0 | O7: =VLOOKUP($D7,specs!$K$5:$L$19,2)*IF($E$1="m",$D8,($D8*0.3048))/1000 -> 0
C8: span length,m | D8: 0 | E8: 0 | F8: =VLOOKUP($D9,specs!$D$5:$H$17,4)/IF(F9<67,(F9/1.03),65)*$E9+F11 -> 0 | G8: =VLOOKUP($D9,specs!$D$5:$H$17,4)/IF(G9<67,(G9/1.03),65)*$E9+G11 -> 0 | H8: =VLOOKUP($D9,specs!$D$5:$H$17,4)/IF(H9<67,(H9/1.03),65)*$E9+H11 -> 0 | I8: =VLOOKUP($D9,specs!$D$5:$H$17,4)/IF(I9<67,(I9/1.03),65)*$E9+I11 -> 0 | J8: =VLOOKUP($D9,specs!$D$5:$H$17,4)/IF(J9<67,(J9/1.03),65)*$E9+J11 -> 0 | K8: =VLOOKUP($D9,specs!$D$5:$H$17,4)/IF(K9<67,(K9/1.03),65)*$E9+K11 -> 0 | L8: =VLOOKUP($D9,specs!$D$5:$H$17,4)/IF(L9<67,(L9/1.03),65)*$E9+L11 -> 0 | M8: =VLOOKUP($D9,specs!$D$5:$H$17,4)/IF(M9<67,(M9/1.03),65)*$E9+M11 -> 0 | N8: =VLOOKUP($D9,specs!$D$5:$H$17,4)/IF(N9<67,(N9/1.03),65)*$E9+N11 -> 0 | O8: =VLOOKUP($D9,specs!$D$5:$H$17,4)/IF(O9<67,(O9/1.03),65)*$E9+O11 -> 0
C9: amplifier | D9: load | E9: 0 | F9: =F12+F11*F10 -> 63.09176371 | G9: =G12+G11*G10 -> 62.18668203 | H9: 62.17350922 | I9: 62.17331467 | J9: 62.1733118 | K9: 62.17331176 | L9: 62.17331176 | M9: 62.17331176 | N9: 62.17331176 | O9: 62.17331176
C10: cable type | D10: cable | E10: 0 | F10: =VLOOKUP($D10,specs!$K$5:$L$19,2)*IF($E$1="m",$D11,($D11*0.3048))/1000 -> 0 | G10: =VLOOKUP($D10,specs!$K$5:$L$19,2)*IF($E$1="m",$D11,($D11*0.3048))/1000 -> 0 | H10: =VLOOKUP($D10,specs!$K$5:$L$19,2)*IF($E$1="m",$D11,($D11*0.3048))/1000 -> 0 | I10: =VLOOKUP($D10,specs!$K$5:$L$19,2)*IF($E$1="m",$D11,($D11*0.3048))/1000 -> 0 | J10: =VLOOKUP($D10,specs!$K$5:$L$19,2)*IF($E$1="m",$D11,($D11*0.3048))/1000 -> 0 | K10: =VLOOKUP($D10,specs!$K$5:$L$19,2)*IF($E$1="m",$D11,($D11*0.3048))/1000 -> 0 | L10: =VLOOKUP($D10,specs!$K$5:$L$19,2)*IF($E$1="m",$D11,($D11*0.3048))/1000 -> 0 | M10: =VLOOKUP($D10,specs!$K$5:$L$19,2)*IF($E$1="m",$D11,($D11*0.3048))/1000 -> 0 | N10: =VLOOKUP($D10,specs!$K$5:$L$19,2)*IF($E$1="m",$D11,($D11*0.3048))/1000 -> 0 | O10: =VLOOKUP($D10,specs!$K$5:$L$19,2)*IF($E$1="m",$D11,($D11*0.3048))/1000 -> 0
C11: span length,m | D11: 0 | E11: 0 | F11: =VLOOKUP($D12,specs!$D$5:$H$17,4)/IF(F12<67,(F12/1.03),65)*$E12+F14 -> 0 | G11: =VLOOKUP($D12,specs!$D$5:$H$17,4)/IF(G12<67,(G12/1.03),65)*$E12+G14 -> 0 | H11: =VLOOKUP($D12,specs!$D$5:$H$17,4)/IF(H12<67,(H12/1.03),65)*$E12+H14 -> 0 | I11: =VLOOKUP($D12,specs!$D$5:$H$17,4)/IF(I12<67,(I12/1.03),65)*$E12+I14 -> 0 | J11: =VLOOKUP($D12,specs!$D$5:$H$17,4)/IF(J12<67,(J12/1.03),65)*$E12+J14 -> 0 | K11: =VLOOKUP($D12,specs!$D$5:$H$17,4)/IF(K12<67,(K12/1.03),65)*$E12+K14 -> 0 | L11: =VLOOKUP($D12,specs!$D$5:$H$17,4)/IF(L12<67,(L12/1.03),65)*$E12+L14 -> 0 | M11: =VLOOKUP($D12,specs!$D$5:$H$17,4)/IF(M12<67,(M12/1.03),65)*$E12+M14 -> 0 | N11: =VLOOKUP($D12,specs!$D$5:$H$17,4)/IF(N12<67,(N12/1.03),65)*$E12+N14 -> 0 | O11: =VLOOKUP($D12,specs!$D$5:$H$17,4)/IF(O12<67,(O12/1.03),65)*$E12+O14 -> 0
C12: amplifier | D12: load | E12: 0 | F12: =F15+F14*F13 -> 63.09176371 | G12: =G15+G14*G13 -> 62.18668203 | H12: 62.17350922 | I12: 62.17331467 | J12: 62.1733118 | K12: 62.17331176 | L12: 62.17331176 | M12: 62.17331176 | N12: 62.17331176 | O12: 62.17331176
C13: cable type | D13: cable | E13: 0 | F13: =VLOOKUP($D13,specs!$K$5:$L$19,2)*IF($E$1="m",$D14,($D14*0.3048))/1000 -> 0 | G13: =VLOOKUP($D13,specs!$K$5:$L$19,2)*IF($E$1="m",$D14,($D14*0.3048))/1000 -> 0 | H13: =VLOOKUP($D13,specs!$K$5:$L$19,2)*IF($E$1="m",$D14,($D14*0.3048))/1000 -> 0 | I13: =VLOOKUP($D13,specs!$K$5:$L$19,2)*IF($E$1="m",$D14,($D14*0.3048))/1000 -> 0 | J13: =VLOOKUP($D13,specs!$K$5:$L$19,2)*IF($E$1="m",$D14,($D14*0.3048))/1000 -> 0 | K13: =VLOOKUP($D13,specs!$K$5:$L$19,2)*IF($E$1="m",$D14,($D14*0.3048))/1000 -> 0 | L13: =VLOOKUP($D13,specs!$K$5:$L$19,2)*IF($E$1="m",$D14,($D14*0.3048))/1000 -> 0 | M13: =VLOOKUP($D13,specs!$K$5:$L$19,2)*IF($E$1="m",$D14,($D14*0.3048))/1000 -> 0 | N13: =VLOOKUP($D13,specs!$K$5:$L$19,2)*IF($E$1="m",$D14,($D14*0.3048))/1000 -> 0 | O13: =VLOOKUP($D13,specs!$K$5:$L$19,2)*IF($E$1="m",$D14,($D14*0.3048))/1000 -> 0
C14: span length,m | D14: 0 | E14: 0 | F14: =VLOOKUP($D15,specs!$D$5:$H$17,4)/IF(F15<67,(F15/1.03),65)*$E15+F17 -> 0 | G14: =VLOOKUP($D15,specs!$D$5:$H$17,4)/IF(G15<67,(G15/1.03),65)*$E15+G17 -> 0 | H14: =VLOOKUP($D15,specs!$D$5:$H$17,4)/IF(H15<67,(H15/1.03),65)*$E15+H17 -> 0 | I14: =VLOOKUP($D15,specs!$D$5:$H$17,4)/IF(I15<67,(I15/1.03),65)*$E15+I17 -> 0 | J14: =VLOOKUP($D15,specs!$D$5:$H$17,4)/IF(J15<67,(J15/1.03),65)*$E15+J17 -> 0 | K14: =VLOOKUP($D15,specs!$D$5:$H$17,4)/IF(K15<67,(K15/1.03),65)*$E15+K17 -> 0 | L14: =VLOOKUP($D15,specs!$D$5:$H$17,4)/IF(L15<67,(L15/1.03),65)*$E15+L17 -> 0 | M14: =VLOOKUP($D15,specs!$D$5:$H$17,4)/IF(M15<67,(M15/1.03),65)*$E15+M17 -> 0 | N14: =VLOOKUP($D15,specs!$D$5:$H$17,4)/IF(N15<67,(N15/1.03),65)*$E15+N17 -> 0 | O14: =VLOOKUP($D15,specs!$D$5:$H$17,4)/IF(O15<67,(O15/1.03),65)*$E15+O17 -> 0
C15: amplifier | D15: load | E15: 0 | F15: =F18+F17*F16 -> 63.09176371 | G15: =G18+G17*G16 -> 62.18668203 | H15: 62.17350922 | I15: 62.17331467 | J15: 62.1733118 | K15: 62.17331176 | L15: 62.17331176 | M15: 62.17331176 | N15: 62.17331176 | O15: 62.17331176
C16: cable type | D16: cable | E16: 0 | F16: =VLOOKUP($D16,specs!$K$5:$L$19,2)*IF($E$1="m",$D17,($D17*0.3048))/1000 -> 0 | G16: =VLOOKUP($D16,specs!$K$5:$L$19,2)*IF($E$1="m",$D17,($D17*0.3048))/1000 -> 0 | H16: =VLOOKUP($D16,specs!$K$5:$L$19,2)*IF($E$1="m",$D17,($D17*0.3048))/1000 -> 0 | I16: =VLOOKUP($D16,specs!$K$5:$L$19,2)*IF($E$1="m",$D17,($D17*0.3048))/1000 -> 0 | J16: =VLOOKUP($D16,specs!$K$5:$L$19,2)*IF($E$1="m",$D17,($D17*0.3048))/1000 -> 0 | K16: =VLOOKUP($D16,specs!$K$5:$L$19,2)*IF($E$1="m",$D17,($D17*0.3048))/1000 -> 0 | L16: =VLOOKUP($D16,specs!$K$5:$L$19,2)*IF($E$1="m",$D17,($D17*0.3048))/1000 -> 0 | M16: =VLOOKUP($D16,specs!$K$5:$L$19,2)*IF($E$1="m",$D17,($D17*0.3048))/1000 -> 0 | N16: =VLOOKUP($D16,specs!$K$5:$L$19,2)*IF($E$1="m",$D17,($D17*0.3048))/1000 -> 0 | O16: =VLOOKUP($D16,specs!$K$5:$L$19,2)*IF($E$1="m",$D17,($D17*0.3048))/1000 -> 0
C17: span length,m | D17: 0 | E17: 0 | F17: =VLOOKUP($D18,specs!$D$5:$H$17,4)/IF(F18<67,(F18/1.03),65)*$E18+F20 -> 0 | G17: =VLOOKUP($D18,specs!$D$5:$H$17,4)/IF(G18<67,(G18/1.03),65)*$E18+G20 -> 0 | H17: =VLOOKUP($D18,specs!$D$5:$H$17,4)/IF(H18<67,(H18/1.03),65)*$E18+H20 -> 0 | I17: =VLOOKUP($D18,specs!$D$5:$H$17,4)/IF(I18<67,(I18/1.03),65)*$E18+I20 -> 0 | J17: =VLOOKUP($D18,specs!$D$5:$H$17,4)/IF(J18<67,(J18/1.03),65)*$E18+J20 -> 0 | K17: =VLOOKUP($D18,specs!$D$5:$H$17,4)/IF(K18<67,(K18/1.03),65)*$E18+K20 -> 0 | L17: =VLOOKUP($D18,specs!$D$5:$H$17,4)/IF(L18<67,(L18/1.03),65)*$E18+L20 -> 0 | M17: =VLOOKUP($D18,specs!$D$5:$H$17,4)/IF(M18<67,(M18/1.03),65)*$E18+M20 -> 0 | N17: =VLOOKUP($D18,specs!$D$5:$H$17,4)/IF(N18<67,(N18/1.03),65)*$E18+N20 -> 0 | O17: =VLOOKUP($D18,specs!$D$5:$H$17,4)/IF(O18<67,(O18/1.03),65)*$E18+O20 -> 0
C18: amplifier | D18: load | E18: 0 | F18: =F21+F20*F19 -> 63.09176371 | G18: =G21+G20*G19 -> 62.18668203 | H18: 62.17350922 | I18: 62.17331467 | J18: 62.1733118 | K18: 62.17331176 | L18: 62.17331176 | M18: 62.17331176 | N18: 62.17331176 | O18: 62.17331176
C19: cable type | D19: cable | E19: 0 | F19: =VLOOKUP($D19,specs!$K$5:$L$19,2)*IF($E$1="m",$D20,($D20*0.3048))/1000 -> 0 | G19: =VLOOKUP($D19,specs!$K$5:$L$19,2)*IF($E$1="m",$D20,($D20*0.3048))/1000 -> 0 | H19: =VLOOKUP($D19,specs!$K$5:$L$19,2)*IF($E$1="m",$D20,($D20*0.3048))/1000 -> 0 | I19: =VLOOKUP($D19,specs!$K$5:$L$19,2)*IF($E$1="m",$D20,($D20*0.3048))/1000 -> 0 | J19: =VLOOKUP($D19,specs!$K$5:$L$19,2)*IF($E$1="m",$D20,($D20*0.3048))/1000 -> 0 | K19: =VLOOKUP($D19,specs!$K$5:$L$19,2)*IF($E$1="m",$D20,($D20*0.3048))/1000 -> 0 | L19: =VLOOKUP($D19,specs!$K$5:$L$19,2)*IF($E$1="m",$D20,($D20*0.3048))/1000 -> 0 | M19: =VLOOKUP($D19,specs!$K$5:$L$19,2)*IF($E$1="m",$D20,($D20*0.3048))/1000 -> 0 | N19: =VLOOKUP($D19,specs!$K$5:$L$19,2)*IF($E$1="m",$D20,($D20*0.3048))/1000 -> 0 | O19: =VLOOKUP($D19,specs!$K$5:$L$19,2)*IF($E$1="m",$D20,($D20*0.3048))/1000 -> 0
C20: span length,m | D20: 0 | E20: 0 | F20: =$E21*VLOOKUP($D21,specs!$D$5:$H$17,4)/IF(F21<67,(F21/1.03),65) -> 0 | G20: =$E21*VLOOKUP($D21,specs!$D$5:$H$17,4)/IF(G21<67,(G21/1.03),65) -> 0 | H20: =$E21*VLOOKUP($D21,specs!$D$5:$H$17,4)/IF(H21<67,(H21/1.03),65) -> 0 | I20: =$E21*VLOOKUP($D21,specs!$D$5:$H$17,4)/IF(I21<67,(I21/1.03),65) -> 0 | J20: =$E21*VLOOKUP($D21,specs!$D$5:$H$17,4)/IF(J21<67,(J21/1.03),65) -> 0 | K20: =$E21*VLOOKUP($D21,specs!$D$5:$H$17,4)/IF(K21<67,(K21/1.03),65) -> 0 | L20: =$E21*VLOOKUP($D21,specs!$D$5:$H$17,4)/IF(L21<67,(L21/1.03),65) -> 0 | M20: =$E21*VLOOKUP($D21,specs!$D$5:$H$17,4)/IF(M21<67,(M21/1.03),65) -> 0 | N20: =$E21*VLOOKUP($D21,specs!$D$5:$H$17,4)/IF(N21<67,(N21/1.03),65) -> 0 | O20: =$E21*VLOOKUP($D21,specs!$D$5:$H$17,4)/IF(O21<67,(O21/1.03),65) -> 0
C21: amplifier | D21: load | E21: 0 | F21: =B2 -> 63.09176371 | G21: =F21-(F3-$B$2) -> 62.18668203 | H21: 62.17350922 | I21: 62.17331467 | J21: 62.1733118 | K21: 62.17331176 | L21: 62.17331176 | M21: 62.17331176 | N21: 62.17331176 | O21: 62.17331176
F22: =IF(F21<0,1,0) -> 0 | G22: =IF(G21<0,1,0) -> 0 | H22: 0 | I22: 0 | J22: 0 | K22: 0 | L22: 0 | M22: 0 | N22: 0 | O22: 0
C24: User added Branch
M27: =O21 -> 62.17331176
F34: Main Branch Net31

Sheet Net22 (hidden)
B1: =SUM(F22:O22) -> 0 | D1: =IF(O21<'AUX2'!B6,1,0) -> 0 | E1: =+'AUX2'!J5 -> m
B2: =+'AUX2'!M10 -> 62.21690559 | C2: U start, V | D2: =+O5*1 -> 0.4984629634 | F2: 1 | G2: 2 | H2: 3 | I2: 4 | J2: 5 | K2: 6 | L2: 7 | M2: 8 | N2: 9 | O2: iteration10
E3: mult. | F3: =F6+F5*F4 -> 62.44242423 | G3: =G6+G5*G4 -> 62.21772601 | H3: 62.21690859 | I3: 62.2169056 | J3: 62.21690559 | K3: 62.21690559 | L3: 62.21690559 | M3: 62.21690559 | N3: 62.21690559 | O3: 62.21690559
C4: cable type | D4: QR540 | E4: 0 | F4: =VLOOKUP($D4,specs!$K$5:$L$19,2)*IF($E$1="m",$D5,($D5*0.3048))/1000 -> 0.45408 | G4: =VLOOKUP($D4,specs!$K$5:$L$19,2)*IF($E$1="m",$D5,($D5*0.3048))/1000 -> 0.45408 | H4: =VLOOKUP($D4,specs!$K$5:$L$19,2)*IF($E$1="m",$D5,($D5*0.3048))/1000 -> 0.45408 | I4: =VLOOKUP($D4,specs!$K$5:$L$19,2)*IF($E$1="m",$D5,($D5*0.3048))/1000 -> 0.45408 | J4: =VLOOKUP($D4,specs!$K$5:$L$19,2)*IF($E$1="m",$D5,($D5*0.3048))/1000 -> 0.45408 | K4: =VLOOKUP($D4,specs!$K$5:$L$19,2)*IF($E$1="m",$D5,($D5*0.3048))/1000 -> 0.45408 | L4: =VLOOKUP($D4,specs!$K$5:$L$19,2)*IF($E$1="m",$D5,($D5*0.3048))/1000 -> 0.45408 | M4: =VLOOKUP($D4,specs!$K$5:$L$19,2)*IF($E$1="m",$D5,($D5*0.3048))/1000 -> 0.45408 | N4: =VLOOKUP($D4,specs!$K$5:$L$19,2)*IF($E$1="m",$D5,($D5*0.3048))/1000 -> 0.45408 | O4: =VLOOKUP($D4,specs!$K$5:$L$19,2)*IF($E$1="m",$D5,($D5*0.3048))/1000 -> 0.45408
C5: span length,m | D5: 86 | E5: 0 | F5: =VLOOKUP($D6,specs!$D$5:$H$17,4)/IF(F6<67,(F6/1.03),65)*$E6+F8 -> 0.4966495795 | G5: =VLOOKUP($D6,specs!$D$5:$H$17,4)/IF(G6<67,(G6/1.03),65)*$E6+G8 -> 0.4984563424 | H5: =VLOOKUP($D6,specs!$D$5:$H$17,4)/IF(H6<67,(H6/1.03),65)*$E6+H8 -> 0.4984629392 | I5: =VLOOKUP($D6,specs!$D$5:$H$17,4)/IF(I6<67,(I6/1.03),65)*$E6+I8 -> 0.4984629633 | J5: =VLOOKUP($D6,specs!$D$5:$H$17,4)/IF(J6<67,(J6/1.03),65)*$E6+J8 -> 0.4984629634 | K5: =VLOOKUP($D6,specs!$D$5:$H$17,4)/IF(K6<67,(K6/1.03),65)*$E6+K8 -> 0.4984629634 | L5: =VLOOKUP($D6,specs!$D$5:$H$17,4)/IF(L6<67,(L6/1.03),65)*$E6+L8 -> 0.4984629634 | M5: =VLOOKUP($D6,specs!$D$5:$H$17,4)/IF(M6<67,(M6/1.03),65)*$E6+M8 -> 0.4984629634 | N5: =VLOOKUP($D6,specs!$D$5:$H$17,4)/IF(N6<67,(N6/1.03),65)*$E6+N8 -> 0.4984629634 | O5: =VLOOKUP($D6,specs!$D$5:$H$17,4)/IF(O6<67,(O6/1.03),65)*$E6+O8 -> 0.4984629634
C6: amplifier | D6: LEX | E6: 1 | F6: =F9+F8*F7 -> 62.21690559 | G6: =G9+G8*G7 -> 61.99138695 | H6: 61.99056653 | I6: 61.99056354 | J6: 61.99056353 | K6: 61.99056353 | L6: 61.99056353 | M6: 61.99056353 | N6: 61.99056353 | O6: 61.99056353
C7: cable type | D7: cable | E7: 0 | F7: =VLOOKUP($D7,specs!$K$5:$L$19,2)*IF($E$1="m",$D8,($D8*0.3048))/1000 -> 0 | G7: =VLOOKUP($D7,specs!$K$5:$L$19,2)*IF($E$1="m",$D8,($D8*0.3048))/1000 -> 0 | H7: =VLOOKUP($D7,specs!$K$5:$L$19,2)*IF($E$1="m",$D8,($D8*0.3048))/1000 -> 0 | I7: =VLOOKUP($D7,specs!$K$5:$L$19,2)*IF($E$1="m",$D8,($D8*0.3048))/1000 -> 0 | J7: =VLOOKUP($D7,specs!$K$5:$L$19,2)*IF($E$1="m",$D8,($D8*0.3048))/1000 -> 0 | K7: =VLOOKUP($D7,specs!$K$5:$L$19,2)*IF($E$1="m",$D8,($D8*0.3048))/1000 -> 0 | L7: =VLOOKUP($D7,specs!$K$5:$L$19,2)*IF($E$1="m",$D8,($D8*0.3048))/1000 -> 0 | M7: =VLOOKUP($D7,specs!$K$5:$L$19,2)*IF($E$1="m",$D8,($D8*0.3048))/1000 -> 0 | N7: =VLOOKUP($D7,specs!$K$5:$L$19,2)*IF($E$1="m",$D8,($D8*0.3048))/1000 -> 0 | O7: =VLOOKUP($D7,specs!$K$5:$L$19,2)*IF($E$1="m",$D8,($D8*0.3048))/1000 -> 0
C8: span length,m | D8: 0 | E8: 0 | F8: =VLOOKUP($D9,specs!$D$5:$H$17,4)/IF(F9<67,(F9/1.03),65)*$E9+F11 -> 0 | G8: =VLOOKUP($D9,specs!$D$5:$H$17,4)/IF(G9<67,(G9/1.03),65)*$E9+G11 -> 0 | H8: =VLOOKUP($D9,specs!$D$5:$H$17,4)/IF(H9<67,(H9/1.03),65)*$E9+H11 -> 0 | I8: =VLOOKUP($D9,specs!$D$5:$H$17,4)/IF(I9<67,(I9/1.03),65)*$E9+I11 -> 0 | J8: =VLOOKUP($D9,specs!$D$5:$H$17,4)/IF(J9<67,(J9/1.03),65)*$E9+J11 -> 0 | K8: =VLOOKUP($D9,specs!$D$5:$H$17,4)/IF(K9<67,(K9/1.03),65)*$E9+K11 -> 0 | L8: =VLOOKUP($D9,specs!$D$5:$H$17,4)/IF(L9<67,(L9/1.03),65)*$E9+L11 -> 0 | M8: =VLOOKUP($D9,specs!$D$5:$H$17,4)/IF(M9<67,(M9/1.03),65)*$E9+M11 -> 0 | N8: =VLOOKUP($D9,specs!$D$5:$H$17,4)/IF(N9<67,(N9/1.03),65)*$E9+N11 -> 0 | O8: =VLOOKUP($D9,specs!$D$5:$H$17,4)/IF(O9<67,(O9/1.03),65)*$E9+O11 -> 0
C9: amplifier | D9: load | E9: 0 | F9: =F12+F11*F10 -> 62.21690559 | G9: =G12+G11*G10 -> 61.99138695 | H9: 61.99056653 | I9: 61.99056354 | J9: 61.99056353 | K9: 61.99056353 | L9: 61.99056353 | M9: 61.99056353 | N9: 61.99056353 | O9: 61.99056353
C10: cable type | D10: cable | E10: 0 | F10: =VLOOKUP($D10,specs!$K$5:$L$19,2)*IF($E$1="m",$D11,($D11*0.3048))/1000 -> 0 | G10: =VLOOKUP($D10,specs!$K$5:$L$19,2)*IF($E$1="m",$D11,($D11*0.3048))/1000 -> 0 | H10: =VLOOKUP($D10,specs!$K$5:$L$19,2)*IF($E$1="m",$D11,($D11*0.3048))/1000 -> 0 | I10: =VLOOKUP($D10,specs!$K$5:$L$19,2)*IF($E$1="m",$D11,($D11*0.3048))/1000 -> 0 | J10: =VLOOKUP($D10,specs!$K$5:$L$19,2)*IF($E$1="m",$D11,($D11*0.3048))/1000 -> 0 | K10: =VLOOKUP($D10,specs!$K$5:$L$19,2)*IF($E$1="m",$D11,($D11*0.3048))/1000 -> 0 | L10: =VLOOKUP($D10,specs!$K$5:$L$19,2)*IF($E$1="m",$D11,($D11*0.3048))/1000 -> 0 | M10: =VLOOKUP($D10,specs!$K$5:$L$19,2)*IF($E$1="m",$D11,($D11*0.3048))/1000 -> 0 | N10: =VLOOKUP($D10,specs!$K$5:$L$19,2)*IF($E$1="m",$D11,($D11*0.3048))/1000 -> 0 | O10: =VLOOKUP($D10,specs!$K$5:$L$19,2)*IF($E$1="m",$D11,($D11*0.3048))/1000 -> 0
C11: span length,m | D11: 0 | E11: 0 | F11: =VLOOKUP($D12,specs!$D$5:$H$17,4)/IF(F12<67,(F12/1.03),65)*$E12+F14 -> 0 | G11: =VLOOKUP($D12,specs!$D$5:$H$17,4)/IF(G12<67,(G12/1.03),65)*$E12+G14 -> 0 | H11: =VLOOKUP($D12,specs!$D$5:$H$17,4)/IF(H12<67,(H12/1.03),65)*$E12+H14 -> 0 | I11: =VLOOKUP($D12,specs!$D$5:$H$17,4)/IF(I12<67,(I12/1.03),65)*$E12+I14 -> 0 | J11: =VLOOKUP($D12,specs!$D$5:$H$17,4)/IF(J12<67,(J12/1.03),65)*$E12+J14 -> 0 | K11: =VLOOKUP($D12,specs!$D$5:$H$17,4)/IF(K12<67,(K12/1.03),65)*$E12+K14 -> 0 | L11: =VLOOKUP($D12,specs!$D$5:$H$17,4)/IF(L12<67,(L12/1.03),65)*$E12+L14 -> 0 | M11: =VLOOKUP($D12,specs!$D$5:$H$17,4)/IF(M12<67,(M12/1.03),65)*$E12+M14 -> 0 | N11: =VLOOKUP($D12,specs!$D$5:$H$17,4)/IF(N12<67,(N12/1.03),65)*$E12+N14 -> 0 | O11: =VLOOKUP($D12,specs!$D$5:$H$17,4)/IF(O12<67,(O12/1.03),65)*$E12+O14 -> 0
C12: amplifier | D12: load | E12: 0 | F12: =F15+F14*F13 -> 62.21690559 | G12: =G15+G14*G13 -> 61.99138695 | H12: 61.99056653 | I12: 61.99056354 | J12: 61.99056353 | K12: 61.99056353 | L12: 61.99056353 | M12: 61.99056353 | N12: 61.99056353 | O12: 61.99056353
C13: cable type | D13: cable | E13: 0 | F13: =VLOOKUP($D13,specs!$K$5:$L$19,2)*IF($E$1="m",$D14,($D14*0.3048))/1000 -> 0 | G13: =VLOOKUP($D13,specs!$K$5:$L$19,2)*IF($E$1="m",$D14,($D14*0.3048))/1000 -> 0 | H13: =VLOOKUP($D13,specs!$K$5:$L$19,2)*IF($E$1="m",$D14,($D14*0.3048))/1000 -> 0 | I13: =VLOOKUP($D13,specs!$K$5:$L$19,2)*IF($E$1="m",$D14,($D14*0.3048))/1000 -> 0 | J13: =VLOOKUP($D13,specs!$K$5:$L$19,2)*IF($E$1="m",$D14,($D14*0.3048))/1000 -> 0 | K13: =VLOOKUP($D13,specs!$K$5:$L$19,2)*IF($E$1="m",$D14,($D14*0.3048))/1000 -> 0 | L13: =VLOOKUP($D13,specs!$K$5:$L$19,2)*IF($E$1="m",$D14,($D14*0.3048))/1000 -> 0 | M13: =VLOOKUP($D13,specs!$K$5:$L$19,2)*IF($E$1="m",$D14,($D14*0.3048))/1000 -> 0 | N13: =VLOOKUP($D13,specs!$K$5:$L$19,2)*IF($E$1="m",$D14,($D14*0.3048))/1000 -> 0 | O13: =VLOOKUP($D13,specs!$K$5:$L$19,2)*IF($E$1="m",$D14,($D14*0.3048))/1000 -> 0
C14: span length,m | D14: 0 | E14: 0 | F14: =VLOOKUP($D15,specs!$D$5:$H$17,4)/IF(F15<67,(F15/1.03),65)*$E15+F17 -> 0 | G14: =VLOOKUP($D15,specs!$D$5:$H$17,4)/IF(G15<67,(G15/1.03),65)*$E15+G17 -> 0 | H14: =VLOOKUP($D15,specs!$D$5:$H$17,4)/IF(H15<67,(H15/1.03),65)*$E15+H17 -> 0 | I14: =VLOOKUP($D15,specs!$D$5:$H$17,4)/IF(I15<67,(I15/1.03),65)*$E15+I17 -> 0 | J14: =VLOOKUP($D15,specs!$D$5:$H$17,4)/IF(J15<67,(J15/1.03),65)*$E15+J17 -> 0 | K14: =VLOOKUP($D15,specs!$D$5:$H$17,4)/IF(K15<67,(K15/1.03),65)*$E15+K17 -> 0 | L14: =VLOOKUP($D15,specs!$D$5:$H$17,4)/IF(L15<67,(L15/1.03),65)*$E15+L17 -> 0 | M14: =VLOOKUP($D15,specs!$D$5:$H$17,4)/IF(M15<67,(M15/1.03),65)*$E15+M17 -> 0 | N14: =VLOOKUP($D15,specs!$D$5:$H$17,4)/IF(N15<67,(N15/1.03),65)*$E15+N17 -> 0 | O14: =VLOOKUP($D15,specs!$D$5:$H$17,4)/IF(O15<67,(O15/1.03),65)*$E15+O17 -> 0
C15: amplifier | D15: load | E15: 0 | F15: =F18+F17*F16 -> 62.21690559 | G15: =G18+G17*G16 -> 61.99138695 | H15: 61.99056653 | I15: 61.99056354 | J15: 61.99056353 | K15: 61.99056353 | L15: 61.99056353 | M15: 61.99056353 | N15: 61.99056353 | O15: 61.99056353
C16: cable type | D16: cable | E16: 0 | F16: =VLOOKUP($D16,specs!$K$5:$L$19,2)*IF($E$1="m",$D17,($D17*0.3048))/1000 -> 0 | G16: =VLOOKUP($D16,specs!$K$5:$L$19,2)*IF($E$1="m",$D17,($D17*0.3048))/1000 -> 0 | H16: =VLOOKUP($D16,specs!$K$5:$L$19,2)*IF($E$1="m",$D17,($D17*0.3048))/1000 -> 0 | I16: =VLOOKUP($D16,specs!$K$5:$L$19,2)*IF($E$1="m",$D17,($D17*0.3048))/1000 -> 0 | J16: =VLOOKUP($D16,specs!$K$5:$L$19,2)*IF($E$1="m",$D17,($D17*0.3048))/1000 -> 0 | K16: =VLOOKUP($D16,specs!$K$5:$L$19,2)*IF($E$1="m",$D17,($D17*0.3048))/1000 -> 0 | L16: =VLOOKUP($D16,specs!$K$5:$L$19,2)*IF($E$1="m",$D17,($D17*0.3048))/1000 -> 0 | M16: =VLOOKUP($D16,specs!$K$5:$L$19,2)*IF($E$1="m",$D17,($D17*0.3048))/1000 -> 0 | N16: =VLOOKUP($D16,specs!$K$5:$L$19,2)*IF($E$1="m",$D17,($D17*0.3048))/1000 -> 0 | O16: =VLOOKUP($D16,specs!$K$5:$L$19,2)*IF($E$1="m",$D17,($D17*0.3048))/1000 -> 0
C17: span length,m | D17: 0 | E17: 0 | F17: =VLOOKUP($D18,specs!$D$5:$H$17,4)/IF(F18<67,(F18/1.03),65)*$E18+F20 -> 0 | G17: =VLOOKUP($D18,specs!$D$5:$H$17,4)/IF(G18<67,(G18/1.03),65)*$E18+G20 -> 0 | H17: =VLOOKUP($D18,specs!$D$5:$H$17,4)/IF(H18<67,(H18/1.03),65)*$E18+H20 -> 0 | I17: =VLOOKUP($D18,specs!$D$5:$H$17,4)/IF(I18<67,(I18/1.03),65)*$E18+I20 -> 0 | J17: =VLOOKUP($D18,specs!$D$5:$H$17,4)/IF(J18<67,(J18/1.03),65)*$E18+J20 -> 0 | K17: =VLOOKUP($D18,specs!$D$5:$H$17,4)/IF(K18<67,(K18/1.03),65)*$E18+K20 -> 0 | L17: =VLOOKUP($D18,specs!$D$5:$H$17,4)/IF(L18<67,(L18/1.03),65)*$E18+L20 -> 0 | M17: =VLOOKUP($D18,specs!$D$5:$H$17,4)/IF(M18<67,(M18/1.03),65)*$E18+M20 -> 0 | N17: =VLOOKUP($D18,specs!$D$5:$H$17,4)/IF(N18<67,(N18/1.03),65)*$E18+N20 -> 0 | O17: =VLOOKUP($D18,specs!$D$5:$H$17,4)/IF(O18<67,(O18/1.03),65)*$E18+O20 -> 0
C18: amplifier | D18: load | E18: 0 | F18: =F21+F20*F19 -> 62.21690559 | G18: =G21+G20*G19 -> 61.99138695 | H18: 61.99056653 | I18: 61.99056354 | J18: 61.99056353 | K18: 61.99056353 | L18: 61.99056353 | M18: 61.99056353 | N18: 61.99056353 | O18: 61.99056353
C19: cable type | D19: cable | E19: 0 | F19: =VLOOKUP($D19,specs!$K$5:$L$19,2)*IF($E$1="m",$D20,($D20*0.3048))/1000 -> 0 | G19: =VLOOKUP($D19,specs!$K$5:$L$19,2)*IF($E$1="m",$D20,($D20*0.3048))/1000 -> 0 | H19: =VLOOKUP($D19,specs!$K$5:$L$19,2)*IF($E$1="m",$D20,($D20*0.3048))/1000 -> 0 | I19: =VLOOKUP($D19,specs!$K$5:$L$19,2)*IF($E$1="m",$D20,($D20*0.3048))/1000 -> 0 | J19: =VLOOKUP($D19,specs!$K$5:$L$19,2)*IF($E$1="m",$D20,($D20*0.3048))/1000 -> 0 | K19: =VLOOKUP($D19,specs!$K$5:$L$19,2)*IF($E$1="m",$D20,($D20*0.3048))/1000 -> 0 | L19: =VLOOKUP($D19,specs!$K$5:$L$19,2)*IF($E$1="m",$D20,($D20*0.3048))/1000 -> 0 | M19: =VLOOKUP($D19,specs!$K$5:$L$19,2)*IF($E$1="m",$D20,($D20*0.3048))/1000 -> 0 | N19: =VLOOKUP($D19,specs!$K$5:$L$19,2)*IF($E$1="m",$D20,($D20*0.3048))/1000 -> 0 | O19: =VLOOKUP($D19,specs!$K$5:$L$19,2)*IF($E$1="m",$D20,($D20*0.3048))/1000 -> 0
C20: span length,m | D20: 0 | E20: 0 | F20: =$E21*VLOOKUP($D21,specs!$D$5:$H$17,4)/IF(F21<67,(F21/1.03),65) -> 0 | G20: =$E21*VLOOKUP($D21,specs!$D$5:$H$17,4)/IF(G21<67,(G21/1.03),65) -> 0 | H20: =$E21*VLOOKUP($D21,specs!$D$5:$H$17,4)/IF(H21<67,(H21/1.03),65) -> 0 | I20: =$E21*VLOOKUP($D21,specs!$D$5:$H$17,4)/IF(I21<67,(I21/1.03),65) -> 0 | J20: =$E21*VLOOKUP($D21,specs!$D$5:$H$17,4)/IF(J21<67,(J21/1.03),65) -> 0 | K20: =$E21*VLOOKUP($D21,specs!$D$5:$H$17,4)/IF(K21<67,(K21/1.03),65) -> 0 | L20: =$E21*VLOOKUP($D21,specs!$D$5:$H$17,4)/IF(L21<67,(L21/1.03),65) -> 0 | M20: =$E21*VLOOKUP($D21,specs!$D$5:$H$17,4)/IF(M21<67,(M21/1.03),65) -> 0 | N20: =$E21*VLOOKUP($D21,specs!$D$5:$H$17,4)/IF(N21<67,(N21/1.03),65) -> 0 | O20: =$E21*VLOOKUP($D21,specs!$D$5:$H$17,4)/IF(O21<67,(O21/1.03),65) -> 0
C21: amplifier | D21: load | E21: 0 | F21: =B2 -> 62.21690559 | G21: =F21-(F3-$B$2) -> 61.99138695 | H21: 61.99056653 | I21: 61.99056354 | J21: 61.99056353 | K21: 61.99056353 | L21: 61.99056353 | M21: 61.99056353 | N21: 61.99056353 | O21: 61.99056353
F22: =IF(F21<0,1,0) -> 0 | G22: =IF(G21<0,1,0) -> 0 | H22: 0 | I22: 0 | J22: 0 | K22: 0 | L22: 0 | M22: 0 | N22: 0 | O22: 0
C24: User added Branch
M27: =O21 -> 61.99056353
F34: Main Branch Net22

Sheet Net21 (hidden)
B1: =SUM(F22:O22) -> 0 | D1: =IF(O21<'AUX2'!B6,1,0) -> 0 | E1: =+'AUX2'!J5 -> m
B2: =+'AUX2'!M9 -> 62.21690559 | C2: U start, V | D2: =+O5*1 -> 0.4986958603 | F2: 1 | G2: 2 | H2: 3 | I2: 4 | J2: 5 | K2: 6 | L2: 7 | M2: 8 | N2: 9 | O2: iteration10
E3: mult. | F3: =F6+F5*F4 -> 62.47115044 | G3: =G6+G5*G4 -> 62.21794881 | H3: 62.21690989 | I3: 62.21690561 | J3: 62.21690559 | K3: 62.21690559 | L3: 62.21690559 | M3: 62.21690559 | N3: 62.21690559 | O3: 62.21690559
C4: cable type | D4: QR860 | E4: 0 | F4: =VLOOKUP($D4,specs!$K$5:$L$19,2)*IF($E$1="m",$D5,($D5*0.3048))/1000 -> 0.51192 | G4: =VLOOKUP($D4,specs!$K$5:$L$19,2)*IF($E$1="m",$D5,($D5*0.3048))/1000 -> 0.51192 | H4: =VLOOKUP($D4,specs!$K$5:$L$19,2)*IF($E$1="m",$D5,($D5*0.3048))/1000 -> 0.51192 | I4: =VLOOKUP($D4,specs!$K$5:$L$19,2)*IF($E$1="m",$D5,($D5*0.3048))/1000 -> 0.51192 | J4: =VLOOKUP($D4,specs!$K$5:$L$19,2)*IF($E$1="m",$D5,($D5*0.3048))/1000 -> 0.51192 | K4: =VLOOKUP($D4,specs!$K$5:$L$19,2)*IF($E$1="m",$D5,($D5*0.3048))/1000 -> 0.51192 | L4: =VLOOKUP($D4,specs!$K$5:$L$19,2)*IF($E$1="m",$D5,($D5*0.3048))/1000 -> 0.51192 | M4: =VLOOKUP($D4,specs!$K$5:$L$19,2)*IF($E$1="m",$D5,($D5*0.3048))/1000 -> 0.51192 | N4: =VLOOKUP($D4,specs!$K$5:$L$19,2)*IF($E$1="m",$D5,($D5*0.3048))/1000 -> 0.51192 | O4: =VLOOKUP($D4,specs!$K$5:$L$19,2)*IF($E$1="m",$D5,($D5*0.3048))/1000 -> 0.51192
C5: span length,m | D5: 216 | E5: 0 | F5: =VLOOKUP($D6,specs!$D$5:$H$17,4)/IF(F6<67,(F6/1.03),65)*$E6+F8 -> 0.4966495795 | G5: =VLOOKUP($D6,specs!$D$5:$H$17,4)/IF(G6<67,(G6/1.03),65)*$E6+G8 -> 0.4986874294 | H5: =VLOOKUP($D6,specs!$D$5:$H$17,4)/IF(H6<67,(H6/1.03),65)*$E6+H8 -> 0.4986958255 | I5: =VLOOKUP($D6,specs!$D$5:$H$17,4)/IF(I6<67,(I6/1.03),65)*$E6+I8 -> 0.4986958601 | J5: =VLOOKUP($D6,specs!$D$5:$H$17,4)/IF(J6<67,(J6/1.03),65)*$E6+J8 -> 0.4986958603 | K5: =VLOOKUP($D6,specs!$D$5:$H$17,4)/IF(K6<67,(K6/1.03),65)*$E6+K8 -> 0.4986958603 | L5: =VLOOKUP($D6,specs!$D$5:$H$17,4)/IF(L6<67,(L6/1.03),65)*$E6+L8 -> 0.4986958603 | M5: =VLOOKUP($D6,specs!$D$5:$H$17,4)/IF(M6<67,(M6/1.03),65)*$E6+M8 -> 0.4986958603 | N5: =VLOOKUP($D6,specs!$D$5:$H$17,4)/IF(N6<67,(N6/1.03),65)*$E6+N8 -> 0.4986958603 | O5: =VLOOKUP($D6,specs!$D$5:$H$17,4)/IF(O6<67,(O6/1.03),65)*$E6+O8 -> 0.4986958603
C6: amplifier | D6: LEX | E6: 1 | F6: =F9+F8*F7 -> 62.21690559 | G6: =G9+G8*G7 -> 61.96266074 | H6: 61.96161752 | I6: 61.96161322 | J6: 61.96161321 | K6: 61.96161321 | L6: 61.96161321 | M6: 61.96161321 | N6: 61.96161321 | O6: 61.96161321
C7: cable type | D7: cable | E7: 0 | F7: =VLOOKUP($D7,specs!$K$5:$L$19,2)*IF($E$1="m",$D8,($D8*0.3048))/1000 -> 0 | G7: =VLOOKUP($D7,specs!$K$5:$L$19,2)*IF($E$1="m",$D8,($D8*0.3048))/1000 -> 0 | H7: =VLOOKUP($D7,specs!$K$5:$L$19,2)*IF($E$1="m",$D8,($D8*0.3048))/1000 -> 0 | I7: =VLOOKUP($D7,specs!$K$5:$L$19,2)*IF($E$1="m",$D8,($D8*0.3048))/1000 -> 0 | J7: =VLOOKUP($D7,specs!$K$5:$L$19,2)*IF($E$1="m",$D8,($D8*0.3048))/1000 -> 0 | K7: =VLOOKUP($D7,specs!$K$5:$L$19,2)*IF($E$1="m",$D8,($D8*0.3048))/1000 -> 0 | L7: =VLOOKUP($D7,specs!$K$5:$L$19,2)*IF($E$1="m",$D8,($D8*0.3048))/1000 -> 0 | M7: =VLOOKUP($D7,specs!$K$5:$L$19,2)*IF($E$1="m",$D8,($D8*0.3048))/1000 -> 0 | N7: =VLOOKUP($D7,specs!$K$5:$L$19,2)*IF($E$1="m",$D8,($D8*0.3048))/1000 -> 0 | O7: =VLOOKUP($D7,specs!$K$5:$L$19,2)*IF($E$1="m",$D8,($D8*0.3048))/1000 -> 0
C8: span length,m | D8: 0 | E8: 0 | F8: =VLOOKUP($D9,specs!$D$5:$H$17,4)/IF(F9<67,(F9/1.03),65)*$E9+F11 -> 0 | G8: =VLOOKUP($D9,specs!$D$5:$H$17,4)/IF(G9<67,(G9/1.03),65)*$E9+G11 -> 0 | H8: =VLOOKUP($D9,specs!$D$5:$H$17,4)/IF(H9<67,(H9/1.03),65)*$E9+H11 -> 0 | I8: =VLOOKUP($D9,specs!$D$5:$H$17,4)/IF(I9<67,(I9/1.03),65)*$E9+I11 -> 0 | J8: =VLOOKUP($D9,specs!$D$5:$H$17,4)/IF(J9<67,(J9/1.03),65)*$E9+J11 -> 0 | K8: =VLOOKUP($D9,specs!$D$5:$H$17,4)/IF(K9<67,(K9/1.03),65)*$E9+K11 -> 0 | L8: =VLOOKUP($D9,specs!$D$5:$H$17,4)/IF(L9<67,(L9/1.03),65)*$E9+L11 -> 0 | M8: =VLOOKUP($D9,specs!$D$5:$H$17,4)/IF(M9<67,(M9/1.03),65)*$E9+M11 -> 0 | N8: =VLOOKUP($D9,specs!$D$5:$H$17,4)/IF(N9<67,(N9/1.03),65)*$E9+N11 -> 0 | O8: =VLOOKUP($D9,specs!$D$5:$H$17,4)/IF(O9<67,(O9/1.03),65)*$E9+O11 -> 0
C9: amplifier | D9: load | E9: 0 | F9: =F12+F11*F10 -> 62.21690559 | G9: =G12+G11*G10 -> 61.96266074 | H9: 61.96161752 | I9: 61.96161322 | J9: 61.96161321 | K9: 61.96161321 | L9: 61.96161321 | M9: 61.96161321 | N9: 61.96161321 | O9: 61.96161321
C10: cable type | D10: cable | E10: 0 | F10: =VLOOKUP($D10,specs!$K$5:$L$19,2)*IF($E$1="m",$D11,($D11*0.3048))/1000 -> 0 | G10: =VLOOKUP($D10,specs!$K$5:$L$19,2)*IF($E$1="m",$D11,($D11*0.3048))/1000 -> 0 | H10: =VLOOKUP($D10,specs!$K$5:$L$19,2)*IF($E$1="m",$D11,($D11*0.3048))/1000 -> 0 | I10: =VLOOKUP($D10,specs!$K$5:$L$19,2)*IF($E$1="m",$D11,($D11*0.3048))/1000 -> 0 | J10: =VLOOKUP($D10,specs!$K$5:$L$19,2)*IF($E$1="m",$D11,($D11*0.3048))/1000 -> 0 | K10: =VLOOKUP($D10,specs!$K$5:$L$19,2)*IF($E$1="m",$D11,($D11*0.3048))/1000 -> 0 | L10: =VLOOKUP($D10,specs!$K$5:$L$19,2)*IF($E$1="m",$D11,($D11*0.3048))/1000 -> 0 | M10: =VLOOKUP($D10,specs!$K$5:$L$19,2)*IF($E$1="m",$D11,($D11*0.3048))/1000 -> 0 | N10: =VLOOKUP($D10,specs!$K$5:$L$19,2)*IF($E$1="m",$D11,($D11*0.3048))/1000 -> 0 | O10: =VLOOKUP($D10,specs!$K$5:$L$19,2)*IF($E$1="m",$D11,($D11*0.3048))/1000 -> 0
C11: span length,m | D11: 0 | E11: 0 | F11: =VLOOKUP($D12,specs!$D$5:$H$17,4)/IF(F12<67,(F12/1.03),65)*$E12+F14 -> 0 | G11: =VLOOKUP($D12,specs!$D$5:$H$17,4)/IF(G12<67,(G12/1.03),65)*$E12+G14 -> 0 | H11: =VLOOKUP($D12,specs!$D$5:$H$17,4)/IF(H12<67,(H12/1.03),65)*$E12+H14 -> 0 | I11: =VLOOKUP($D12,specs!$D$5:$H$17,4)/IF(I12<67,(I12/1.03),65)*$E12+I14 -> 0 | J11: =VLOOKUP($D12,specs!$D$5:$H$17,4)/IF(J12<67,(J12/1.03),65)*$E12+J14 -> 0 | K11: =VLOOKUP($D12,specs!$D$5:$H$17,4)/IF(K12<67,(K12/1.03),65)*$E12+K14 -> 0 | L11: =VLOOKUP($D12,specs!$D$5:$H$17,4)/IF(L12<67,(L12/1.03),65)*$E12+L14 -> 0 | M11: =VLOOKUP($D12,specs!$D$5:$H$17,4)/IF(M12<67,(M12/1.03),65)*$E12+M14 -> 0 | N11: =VLOOKUP($D12,specs!$D$5:$H$17,4)/IF(N12<67,(N12/1.03),65)*$E12+N14 -> 0 | O11: =VLOOKUP($D12,specs!$D$5:$H$17,4)/IF(O12<67,(O12/1.03),65)*$E12+O14 -> 0
C12: amplifier | D12: load | E12: 0 | F12: =F15+F14*F13 -> 62.21690559 | G12: =G15+G14*G13 -> 61.96266074 | H12: 61.96161752 | I12: 61.96161322 | J12: 61.96161321 | K12: 61.96161321 | L12: 61.96161321 | M12: 61.96161321 | N12: 61.96161321 | O12: 61.96161321
C13: cable type | D13: cable | E13: 0 | F13: =VLOOKUP($D13,specs!$K$5:$L$19,2)*IF($E$1="m",$D14,($D14*0.3048))/1000 -> 0 | G13: =VLOOKUP($D13,specs!$K$5:$L$19,2)*IF($E$1="m",$D14,($D14*0.3048))/1000 -> 0 | H13: =VLOOKUP($D13,specs!$K$5:$L$19,2)*IF($E$1="m",$D14,($D14*0.3048))/1000 -> 0 | I13: =VLOOKUP($D13,specs!$K$5:$L$19,2)*IF($E$1="m",$D14,($D14*0.3048))/1000 -> 0 | J13: =VLOOKUP($D13,specs!$K$5:$L$19,2)*IF($E$1="m",$D14,($D14*0.3048))/1000 -> 0 | K13: =VLOOKUP($D13,specs!$K$5:$L$19,2)*IF($E$1="m",$D14,($D14*0.3048))/1000 -> 0 | L13: =VLOOKUP($D13,specs!$K$5:$L$19,2)*IF($E$1="m",$D14,($D14*0.3048))/1000 -> 0 | M13: =VLOOKUP($D13,specs!$K$5:$L$19,2)*IF($E$1="m",$D14,($D14*0.3048))/1000 -> 0 | N13: =VLOOKUP($D13,specs!$K$5:$L$19,2)*IF($E$1="m",$D14,($D14*0.3048))/1000 -> 0 | O13: =VLOOKUP($D13,specs!$K$5:$L$19,2)*IF($E$1="m",$D14,($D14*0.3048))/1000 -> 0
C14: span length,m | D14: 0 | E14: 0 | F14: =VLOOKUP($D15,specs!$D$5:$H$17,4)/IF(F15<67,(F15/1.03),65)*$E15+F17 -> 0 | G14: =VLOOKUP($D15,specs!$D$5:$H$17,4)/IF(G15<67,(G15/1.03),65)*$E15+G17 -> 0 | H14: =VLOOKUP($D15,specs!$D$5:$H$17,4)/IF(H15<67,(H15/1.03),65)*$E15+H17 -> 0 | I14: =VLOOKUP($D15,specs!$D$5:$H$17,4)/IF(I15<67,(I15/1.03),65)*$E15+I17 -> 0 | J14: =VLOOKUP($D15,specs!$D$5:$H$17,4)/IF(J15<67,(J15/1.03),65)*$E15+J17 -> 0 | K14: =VLOOKUP($D15,specs!$D$5:$H$17,4)/IF(K15<67,(K15/1.03),65)*$E15+K17 -> 0 | L14: =VLOOKUP($D15,specs!$D$5:$H$17,4)/IF(L15<67,(L15/1.03),65)*$E15+L17 -> 0 | M14: =VLOOKUP($D15,specs!$D$5:$H$17,4)/IF(M15<67,(M15/1.03),65)*$E15+M17 -> 0 | N14: =VLOOKUP($D15,specs!$D$5:$H$17,4)/IF(N15<67,(N15/1.03),65)*$E15+N17 -> 0 | O14: =VLOOKUP($D15,specs!$D$5:$H$17,4)/IF(O15<67,(O15/1.03),65)*$E15+O17 -> 0
C15: amplifier | D15: load | E15: 0 | F15: =F18+F17*F16 -> 62.21690559 | G15: =G18+G17*G16 -> 61.96266074 | H15: 61.96161752 | I15: 61.96161322 | J15: 61.96161321 | K15: 61.96161321 | L15: 61.96161321 | M15: 61.96161321 | N15: 61.96161321 | O15: 61.96161321
C16: cable type | D16: cable | E16: 0 | F16: =VLOOKUP($D16,specs!$K$5:$L$19,2)*IF($E$1="m",$D17,($D17*0.3048))/1000 -> 0 | G16: =VLOOKUP($D16,specs!$K$5:$L$19,2)*IF($E$1="m",$D17,($D17*0.3048))/1000 -> 0 | H16: =VLOOKUP($D16,specs!$K$5:$L$19,2)*IF($E$1="m",$D17,($D17*0.3048))/1000 -> 0 | I16: =VLOOKUP($D16,specs!$K$5:$L$19,2)*IF($E$1="m",$D17,($D17*0.3048))/1000 -> 0 | J16: =VLOOKUP($D16,specs!$K$5:$L$19,2)*IF($E$1="m",$D17,($D17*0.3048))/1000 -> 0 | K16: =VLOOKUP($D16,specs!$K$5:$L$19,2)*IF($E$1="m",$D17,($D17*0.3048))/1000 -> 0 | L16: =VLOOKUP($D16,specs!$K$5:$L$19,2)*IF($E$1="m",$D17,($D17*0.3048))/1000 -> 0 | M16: =VLOOKUP($D16,specs!$K$5:$L$19,2)*IF($E$1="m",$D17,($D17*0.3048))/1000 -> 0 | N16: =VLOOKUP($D16,specs!$K$5:$L$19,2)*IF($E$1="m",$D17,($D17*0.3048))/1000 -> 0 | O16: =VLOOKUP($D16,specs!$K$5:$L$19,2)*IF($E$1="m",$D17,($D17*0.3048))/1000 -> 0
C17: span length,m | D17: 0 | E17: 0 | F17: =VLOOKUP($D18,specs!$D$5:$H$17,4)/IF(F18<67,(F18/1.03),65)*$E18+F20 -> 0 | G17: =VLOOKUP($D18,specs!$D$5:$H$17,4)/IF(G18<67,(G18/1.03),65)*$E18+G20 -> 0 | H17: =VLOOKUP($D18,specs!$D$5:$H$17,4)/IF(H18<67,(H18/1.03),65)*$E18+H20 -> 0 | I17: =VLOOKUP($D18,specs!$D$5:$H$17,4)/IF(I18<67,(I18/1.03),65)*$E18+I20 -> 0 | J17: =VLOOKUP($D18,specs!$D$5:$H$17,4)/IF(J18<67,(J18/1.03),65)*$E18+J20 -> 0 | K17: =VLOOKUP($D18,specs!$D$5:$H$17,4)/IF(K18<67,(K18/1.03),65)*$E18+K20 -> 0 | L17: =VLOOKUP($D18,specs!$D$5:$H$17,4)/IF(L18<67,(L18/1.03),65)*$E18+L20 -> 0 | M17: =VLOOKUP($D18,specs!$D$5:$H$17,4)/IF(M18<67,(M18/1.03),65)*$E18+M20 -> 0 | N17: =VLOOKUP($D18,specs!$D$5:$H$17,4)/IF(N18<67,(N18/1.03),65)*$E18+N20 -> 0 | O17: =VLOOKUP($D18,specs!$D$5:$H$17,4)/IF(O18<67,(O18/1.03),65)*$E18+O20 -> 0
C18: amplifier | D18: load | E18: 0 | F18: =F21+F20*F19 -> 62.21690559 | G18: =G21+G20*G19 -> 61.96266074 | H18: 61.96161752 | I18: 61.96161322 | J18: 61.96161321 | K18: 61.96161321 | L18: 61.96161321 | M18: 61.96161321 | N18: 61.96161321 | O18: 61.96161321
C19: cable type | D19: cable | E19: 0 | F19: =VLOOKUP($D19,specs!$K$5:$L$19,2)*IF($E$1="m",$D20,($D20*0.3048))/1000 -> 0 | G19: =VLOOKUP($D19,specs!$K$5:$L$19,2)*IF($E$1="m",$D20,($D20*0.3048))/1000 -> 0 | H19: =VLOOKUP($D19,specs!$K$5:$L$19,2)*IF($E$1="m",$D20,($D20*0.3048))/1000 -> 0 | I19: =VLOOKUP($D19,specs!$K$5:$L$19,2)*IF($E$1="m",$D20,($D20*0.3048))/1000 -> 0 | J19: =VLOOKUP($D19,specs!$K$5:$L$19,2)*IF($E$1="m",$D20,($D20*0.3048))/1000 -> 0 | K19: =VLOOKUP($D19,specs!$K$5:$L$19,2)*IF($E$1="m",$D20,($D20*0.3048))/1000 -> 0 | L19: =VLOOKUP($D19,specs!$K$5:$L$19,2)*IF($E$1="m",$D20,($D20*0.3048))/1000 -> 0 | M19: =VLOOKUP($D19,specs!$K$5:$L$19,2)*IF($E$1="m",$D20,($D20*0.3048))/1000 -> 0 | N19: =VLOOKUP($D19,specs!$K$5:$L$19,2)*IF($E$1="m",$D20,($D20*0.3048))/1000 -> 0 | O19: =VLOOKUP($D19,specs!$K$5:$L$19,2)*IF($E$1="m",$D20,($D20*0.3048))/1000 -> 0
C20: span length,m | D20: 0 | E20: 0 | F20: =$E21*VLOOKUP($D21,specs!$D$5:$H$17,4)/IF(F21<67,(F21/1.03),65) -> 0 | G20: =$E21*VLOOKUP($D21,specs!$D$5:$H$17,4)/IF(G21<67,(G21/1.03),65) -> 0 | H20: =$E21*VLOOKUP($D21,specs!$D$5:$H$17,4)/IF(H21<67,(H21/1.03),65) -> 0 | I20: =$E21*VLOOKUP($D21,specs!$D$5:$H$17,4)/IF(I21<67,(I21/1.03),65) -> 0 | J20: =$E21*VLOOKUP($D21,specs!$D$5:$H$17,4)/IF(J21<67,(J21/1.03),65) -> 0 | K20: =$E21*VLOOKUP($D21,specs!$D$5:$H$17,4)/IF(K21<67,(K21/1.03),65) -> 0 | L20: =$E21*VLOOKUP($D21,specs!$D$5:$H$17,4)/IF(L21<67,(L21/1.03),65) -> 0 | M20: =$E21*VLOOKUP($D21,specs!$D$5:$H$17,4)/IF(M21<67,(M21/1.03),65) -> 0 | N20: =$E21*VLOOKUP($D21,specs!$D$5:$H$17,4)/IF(N21<67,(N21/1.03),65) -> 0 | O20: =$E21*VLOOKUP($D21,specs!$D$5:$H$17,4)/IF(O21<67,(O21/1.03),65) -> 0
C21: amplifier | D21: load | E21: 0 | F21: =B2 -> 62.21690559 | G21: =F21-(F3-$B$2) -> 61.96266074 | H21: 61.96161752 | I21: 61.96161322 | J21: 61.96161321 | K21: 61.96161321 | L21: 61.96161321 | M21: 61.96161321 | N21: 61.96161321 | O21: 61.96161321
F22: =IF(F21<0,1,0) -> 0 | G22: =IF(G21<0,1,0) -> 0 | H22: 0 | I22: 0 | J22: 0 | K22: 0 | L22: 0 | M22: 0 | N22: 0 | O22: 0
C24: User added Branch
M27: =O21 -> 61.96161321
F34: Main Branch Net21

Sheet Net12 (hidden)
B1: =SUM(F22:O22) -> 0 | D1: =IF(O21<'AUX2'!B6,1,0) -> 0 | E1: =+'AUX2'!J5 -> m
B2: =+'AUX2'!M8 -> 61.80188704 | C2: U start, V | D2: =+O5*1 -> 1.009847713 | F2: 1 | G2: 2 | H2: 3 | I2: 4 | J2: 5 | K2: 6 | L2: 7 | M2: 8 | N2: 9 | O2: iteration10
E3: mult. | F3: =F6+F5*F4 -> 62.54265222 | G3: =G6+G5*G4 -> 61.81084779 | H3: 61.80199676 | I3: 61.80188839 | J3: 61.80188706 | K3: 61.80188704 | L3: 61.80188704 | M3: 61.80188704 | N3: 61.80188704 | O3: 61.80188704
C4: cable type | D4: QR540 | E4: 0 | F4: =VLOOKUP($D4,specs!$K$5:$L$19,2)*IF($E$1="m",$D5,($D5*0.3048))/1000 -> 0.45408 | G4: =VLOOKUP($D4,specs!$K$5:$L$19,2)*IF($E$1="m",$D5,($D5*0.3048))/1000 -> 0.45408 | H4: =VLOOKUP($D4,specs!$K$5:$L$19,2)*IF($E$1="m",$D5,($D5*0.3048))/1000 -> 0.45408 | I4: =VLOOKUP($D4,specs!$K$5:$L$19,2)*IF($E$1="m",$D5,($D5*0.3048))/1000 -> 0.45408 | J4: =VLOOKUP($D4,specs!$K$5:$L$19,2)*IF($E$1="m",$D5,($D5*0.3048))/1000 -> 0.45408 | K4: =VLOOKUP($D4,specs!$K$5:$L$19,2)*IF($E$1="m",$D5,($D5*0.3048))/1000 -> 0.45408 | L4: =VLOOKUP($D4,specs!$K$5:$L$19,2)*IF($E$1="m",$D5,($D5*0.3048))/1000 -> 0.45408 | M4: =VLOOKUP($D4,specs!$K$5:$L$19,2)*IF($E$1="m",$D5,($D5*0.3048))/1000 -> 0.45408 | N4: =VLOOKUP($D4,specs!$K$5:$L$19,2)*IF($E$1="m",$D5,($D5*0.3048))/1000 -> 0.45408 | O4: =VLOOKUP($D4,specs!$K$5:$L$19,2)*IF($E$1="m",$D5,($D5*0.3048))/1000 -> 0.45408
C5: span length,m | D5: 86 | E5: 0 | F5: =VLOOKUP($D6,specs!$D$5:$H$17,4)/IF(F6<67,(F6/1.03),65)*$E6+F8 -> 0.9976523129 | G5: =VLOOKUP($D6,specs!$D$5:$H$17,4)/IF(G6<67,(G6/1.03),65)*$E6+G8 -> 1.009698391 | H5: =VLOOKUP($D6,specs!$D$5:$H$17,4)/IF(H6<67,(H6/1.03),65)*$E6+H8 -> 1.009845884 | I5: =VLOOKUP($D6,specs!$D$5:$H$17,4)/IF(I6<67,(I6/1.03),65)*$E6+I8 -> 1.00984769 | J5: =VLOOKUP($D6,specs!$D$5:$H$17,4)/IF(J6<67,(J6/1.03),65)*$E6+J8 -> 1.009847713 | K5: =VLOOKUP($D6,specs!$D$5:$H$17,4)/IF(K6<67,(K6/1.03),65)*$E6+K8 -> 1.009847713 | L5: =VLOOKUP($D6,specs!$D$5:$H$17,4)/IF(L6<67,(L6/1.03),65)*$E6+L8 -> 1.009847713 | M5: =VLOOKUP($D6,specs!$D$5:$H$17,4)/IF(M6<67,(M6/1.03),65)*$E6+M8 -> 1.009847713 | N5: =VLOOKUP($D6,specs!$D$5:$H$17,4)/IF(N6<67,(N6/1.03),65)*$E6+N8 -> 1.009847713 | O5: =VLOOKUP($D6,specs!$D$5:$H$17,4)/IF(O6<67,(O6/1.03),65)*$E6+O8 -> 1.009847713
C6: amplifier | D6: LEX | E6: 1 | F6: =F9+F8*F7 -> 62.08963826 | G6: =G9+G8*G7 -> 61.35236395 | H6: 61.34344595 | I6: 61.34333675 | J6: 61.34333541 | K6: 61.3433354 | L6: 61.3433354 | M6: 61.3433354 | N6: 61.3433354 | O6: 61.3433354
C7: cable type | D7: QR540 | E7: 0 | F7: =VLOOKUP($D7,specs!$K$5:$L$19,2)*IF($E$1="m",$D8,($D8*0.3048))/1000 -> 0.57552 | G7: =VLOOKUP($D7,specs!$K$5:$L$19,2)*IF($E$1="m",$D8,($D8*0.3048))/1000 -> 0.57552 | H7: =VLOOKUP($D7,specs!$K$5:$L$19,2)*IF($E$1="m",$D8,($D8*0.3048))/1000 -> 0.57552 | I7: =VLOOKUP($D7,specs!$K$5:$L$19,2)*IF($E$1="m",$D8,($D8*0.3048))/1000 -> 0.57552 | J7: =VLOOKUP($D7,specs!$K$5:$L$19,2)*IF($E$1="m",$D8,($D8*0.3048))/1000 -> 0.57552 | K7: =VLOOKUP($D7,specs!$K$5:$L$19,2)*IF($E$1="m",$D8,($D8*0.3048))/1000 -> 0.57552 | L7: =VLOOKUP($D7,specs!$K$5:$L$19,2)*IF($E$1="m",$D8,($D8*0.3048))/1000 -> 0.57552 | M7: =VLOOKUP($D7,specs!$K$5:$L$19,2)*IF($E$1="m",$D8,($D8*0.3048))/1000 -> 0.57552 | N7: =VLOOKUP($D7,specs!$K$5:$L$19,2)*IF($E$1="m",$D8,($D8*0.3048))/1000 -> 0.57552 | O7: =VLOOKUP($D7,specs!$K$5:$L$19,2)*IF($E$1="m",$D8,($D8*0.3048))/1000 -> 0.57552
C8: span length,m | D8: 109 | E8: 0 | F8: =VLOOKUP($D9,specs!$D$5:$H$17,4)/IF(F9<67,(F9/1.03),65)*$E9+F11 -> 0.4999847331 | G8: =VLOOKUP($D9,specs!$D$5:$H$17,4)/IF(G9<67,(G9/1.03),65)*$E9+G11 -> 0.5060503157 | H8: =VLOOKUP($D9,specs!$D$5:$H$17,4)/IF(H9<67,(H9/1.03),65)*$E9+H11 -> 0.5061245897 | I8: =VLOOKUP($D9,specs!$D$5:$H$17,4)/IF(I9<67,(I9/1.03),65)*$E9+I11 -> 0.5061254993 | J8: =VLOOKUP($D9,specs!$D$5:$H$17,4)/IF(J9<67,(J9/1.03),65)*$E9+J11 -> 0.5061255105 | K8: =VLOOKUP($D9,specs!$D$5:$H$17,4)/IF(K9<67,(K9/1.03),65)*$E9+K11 -> 0.5061255106 | L8: =VLOOKUP($D9,specs!$D$5:$H$17,4)/IF(L9<67,(L9/1.03),65)*$E9+L11 -> 0.5061255106 | M8: =VLOOKUP($D9,specs!$D$5:$H$17,4)/IF(M9<67,(M9/1.03),65)*$E9+M11 -> 0.5061255106 | N8: =VLOOKUP($D9,specs!$D$5:$H$17,4)/IF(N9<67,(N9/1.03),65)*$E9+N11 -> 0.5061255106 | O8: =VLOOKUP($D9,specs!$D$5:$H$17,4)/IF(O9<67,(O9/1.03),65)*$E9+O11 -> 0.5061255106
C9: amplifier | D9: LEX | E9: 1 | F9: =F12+F11*F10 -> 61.80188704 | G9: =G12+G11*G10 -> 61.06112187 | H9: 61.05216112 | I9: 61.0520514 | J9: 61.05205006 | K9: 61.05205004 | L9: 61.05205004 | M9: 61.05205004 | N9: 61.05205004 | O9: 61.05205004
C10: cable type | D10: cable | E10: 0 | F10: =VLOOKUP($D10,specs!$K$5:$L$19,2)*IF($E$1="m",$D11,($D11*0.3048))/1000 -> 0 | G10: =VLOOKUP($D10,specs!$K$5:$L$19,2)*IF($E$1="m",$D11,($D11*0.3048))/1000 -> 0 | H10: =VLOOKUP($D10,specs!$K$5:$L$19,2)*IF($E$1="m",$D11,($D11*0.3048))/1000 -> 0 | I10: =VLOOKUP($D10,specs!$K$5:$L$19,2)*IF($E$1="m",$D11,($D11*0.3048))/1000 -> 0 | J10: =VLOOKUP($D10,specs!$K$5:$L$19,2)*IF($E$1="m",$D11,($D11*0.3048))/1000 -> 0 | K10: =VLOOKUP($D10,specs!$K$5:$L$19,2)*IF($E$1="m",$D11,($D11*0.3048))/1000 -> 0 | L10: =VLOOKUP($D10,specs!$K$5:$L$19,2)*IF($E$1="m",$D11,($D11*0.3048))/1000 -> 0 | M10: =VLOOKUP($D10,specs!$K$5:$L$19,2)*IF($E$1="m",$D11,($D11*0.3048))/1000 -> 0 | N10: =VLOOKUP($D10,specs!$K$5:$L$19,2)*IF($E$1="m",$D11,($D11*0.3048))/1000 -> 0 | O10: =VLOOKUP($D10,specs!$K$5:$L$19,2)*IF($E$1="m",$D11,($D11*0.3048))/1000 -> 0
C11: span length,m | D11: 0 | E11: 0 | F11: =VLOOKUP($D12,specs!$D$5:$H$17,4)/IF(F12<67,(F12/1.03),65)*$E12+F14 -> 0 | G11: =VLOOKUP($D12,specs!$D$5:$H$17,4)/IF(G12<67,(G12/1.03),65)*$E12+G14 -> 0 | H11: =VLOOKUP($D12,specs!$D$5:$H$17,4)/IF(H12<67,(H12/1.03),65)*$E12+H14 -> 0 | I11: =VLOOKUP($D12,specs!$D$5:$H$17,4)/IF(I12<67,(I12/1.03),65)*$E12+I14 -> 0 | J11: =VLOOKUP($D12,specs!$D$5:$H$17,4)/IF(J12<67,(J12/1.03),65)*$E12+J14 -> 0 | K11: =VLOOKUP($D12,specs!$D$5:$H$17,4)/IF(K12<67,(K12/1.03),65)*$E12+K14 -> 0 | L11: =VLOOKUP($D12,specs!$D$5:$H$17,4)/IF(L12<67,(L12/1.03),65)*$E12+L14 -> 0 | M11: =VLOOKUP($D12,specs!$D$5:$H$17,4)/IF(M12<67,(M12/1.03),65)*$E12+M14 -> 0 | N11: =VLOOKUP($D12,specs!$D$5:$H$17,4)/IF(N12<67,(N12/1.03),65)*$E12+N14 -> 0 | O11: =VLOOKUP($D12,specs!$D$5:$H$17,4)/IF(O12<67,(O12/1.03),65)*$E12+O14 -> 0
C12: amplifier | D12: load | E12: 0 | F12: =F15+F14*F13 -> 61.80188704 | G12: =G15+G14*G13 -> 61.06112187 | H12: 61.05216112 | I12: 61.0520514 | J12: 61.05205006 | K12: 61.05205004 | L12: 61.05205004 | M12: 61.05205004 | N12: 61.05205004 | O12: 61.05205004
C13: cable type | D13: cable | E13: 0 | F13: =VLOOKUP($D13,specs!$K$5:$L$19,2)*IF($E$1="m",$D14,($D14*0.3048))/1000 -> 0 | G13: =VLOOKUP($D13,specs!$K$5:$L$19,2)*IF($E$1="m",$D14,($D14*0.3048))/1000 -> 0 | H13: =VLOOKUP($D13,specs!$K$5:$L$19,2)*IF($E$1="m",$D14,($D14*0.3048))/1000 -> 0 | I13: =VLOOKUP($D13,specs!$K$5:$L$19,2)*IF($E$1="m",$D14,($D14*0.3048))/1000 -> 0 | J13: =VLOOKUP($D13,specs!$K$5:$L$19,2)*IF($E$1="m",$D14,($D14*0.3048))/1000 -> 0 | K13: =VLOOKUP($D13,specs!$K$5:$L$19,2)*IF($E$1="m",$D14,($D14*0.3048))/1000 -> 0 | L13: =VLOOKUP($D13,specs!$K$5:$L$19,2)*IF($E$1="m",$D14,($D14*0.3048))/1000 -> 0 | M13: =VLOOKUP($D13,specs!$K$5:$L$19,2)*IF($E$1="m",$D14,($D14*0.3048))/1000 -> 0 | N13: =VLOOKUP($D13,specs!$K$5:$L$19,2)*IF($E$1="m",$D14,($D14*0.3048))/1000 -> 0 | O13: =VLOOKUP($D13,specs!$K$5:$L$19,2)*IF($E$1="m",$D14,($D14*0.3048))/1000 -> 0
C14: span length,m | D14: 0 | E14: 0 | F14: =VLOOKUP($D15,specs!$D$5:$H$17,4)/IF(F15<67,(F15/1.03),65)*$E15+F17 -> 0 | G14: =VLOOKUP($D15,specs!$D$5:$H$17,4)/IF(G15<67,(G15/1.03),65)*$E15+G17 -> 0 | H14: =VLOOKUP($D15,specs!$D$5:$H$17,4)/IF(H15<67,(H15/1.03),65)*$E15+H17 -> 0 | I14: =VLOOKUP($D15,specs!$D$5:$H$17,4)/IF(I15<67,(I15/1.03),65)*$E15+I17 -> 0 | J14: =VLOOKUP($D15,specs!$D$5:$H$17,4)/IF(J15<67,(J15/1.03),65)*$E15+J17 -> 0 | K14: =VLOOKUP($D15,specs!$D$5:$H$17,4)/IF(K15<67,(K15/1.03),65)*$E15+K17 -> 0 | L14: =VLOOKUP($D15,specs!$D$5:$H$17,4)/IF(L15<67,(L15/1.03),65)*$E15+L17 -> 0 | M14: =VLOOKUP($D15,specs!$D$5:$H$17,4)/IF(M15<67,(M15/1.03),65)*$E15+M17 -> 0 | N14: =VLOOKUP($D15,specs!$D$5:$H$17,4)/IF(N15<67,(N15/1.03),65)*$E15+N17 -> 0 | O14: =VLOOKUP($D15,specs!$D$5:$H$17,4)/IF(O15<67,(O15/1.03),65)*$E15+O17 -> 0
C15: amplifier | D15: load | E15: 0 | F15: =F18+F17*F16 -> 61.80188704 | G15: =G18+G17*G16 -> 61.06112187 | H15: 61.05216112 | I15: 61.0520514 | J15: 61.05205006 | K15: 61.05205004 | L15: 61.05205004 | M15: 61.05205004 | N15: 61.05205004 | O15: 61.05205004
C16: cable type | D16: cable | E16: 0 | F16: =VLOOKUP($D16,specs!$K$5:$L$19,2)*IF($E$1="m",$D17,($D17*0.3048))/1000 -> 0 | G16: =VLOOKUP($D16,specs!$K$5:$L$19,2)*IF($E$1="m",$D17,($D17*0.3048))/1000 -> 0 | H16: =VLOOKUP($D16,specs!$K$5:$L$19,2)*IF($E$1="m",$D17,($D17*0.3048))/1000 -> 0 | I16: =VLOOKUP($D16,specs!$K$5:$L$19,2)*IF($E$1="m",$D17,($D17*0.3048))/1000 -> 0 | J16: =VLOOKUP($D16,specs!$K$5:$L$19,2)*IF($E$1="m",$D17,($D17*0.3048))/1000 -> 0 | K16: =VLOOKUP($D16,specs!$K$5:$L$19,2)*IF($E$1="m",$D17,($D17*0.3048))/1000 -> 0 | L16: =VLOOKUP($D16,specs!$K$5:$L$19,2)*IF($E$1="m",$D17,($D17*0.3048))/1000 -> 0 | M16: =VLOOKUP($D16,specs!$K$5:$L$19,2)*IF($E$1="m",$D17,($D17*0.3048))/1000 -> 0 | N16: =VLOOKUP($D16,specs!$K$5:$L$19,2)*IF($E$1="m",$D17,($D17*0.3048))/1000 -> 0 | O16: =VLOOKUP($D16,specs!$K$5:$L$19,2)*IF($E$1="m",$D17,($D17*0.3048))/1000 -> 0
C17: span length,m | D17: 0 | E17: 0 | F17: =VLOOKUP($D18,specs!$D$5:$H$17,4)/IF(F18<67,(F18/1.03),65)*$E18+F20 -> 0 | G17: =VLOOKUP($D18,specs!$D$5:$H$17,4)/IF(G18<67,(G18/1.03),65)*$E18+G20 -> 0 | H17: =VLOOKUP($D18,specs!$D$5:$H$17,4)/IF(H18<67,(H18/1.03),65)*$E18+H20 -> 0 | I17: =VLOOKUP($D18,specs!$D$5:$H$17,4)/IF(I18<67,(I18/1.03),65)*$E18+I20 -> 0 | J17: =VLOOKUP($D18,specs!$D$5:$H$17,4)/IF(J18<67,(J18/1.03),65)*$E18+J20 -> 0 | K17: =VLOOKUP($D18,specs!$D$5:$H$17,4)/IF(K18<67,(K18/1.03),65)*$E18+K20 -> 0 | L17: =VLOOKUP($D18,specs!$D$5:$H$17,4)/IF(L18<67,(L18/1.03),65)*$E18+L20 -> 0 | M17: =VLOOKUP($D18,specs!$D$5:$H$17,4)/IF(M18<67,(M18/1.03),65)*$E18+M20 -> 0 | N17: =VLOOKUP($D18,specs!$D$5:$H$17,4)/IF(N18<67,(N18/1.03),65)*$E18+N20 -> 0 | O17: =VLOOKUP($D18,specs!$D$5:$H$17,4)/IF(O18<67,(O18/1.03),65)*$E18+O20 -> 0
C18: amplifier | D18: load | E18: 0 | F18: =F21+F20*F19 -> 61.80188704 | G18: =G21+G20*G19 -> 61.06112187 | H18: 61.05216112 | I18: 61.0520514 | J18: 61.05205006 | K18: 61.05205004 | L18: 61.05205004 | M18: 61.05205004 | N18: 61.05205004 | O18: 61.05205004
C19: cable type | D19: cable | E19: 0 | F19: =VLOOKUP($D19,specs!$K$5:$L$19,2)*IF($E$1="m",$D20,($D20*0.3048))/1000 -> 0 | G19: =VLOOKUP($D19,specs!$K$5:$L$19,2)*IF($E$1="m",$D20,($D20*0.3048))/1000 -> 0 | H19: =VLOOKUP($D19,specs!$K$5:$L$19,2)*IF($E$1="m",$D20,($D20*0.3048))/1000 -> 0 | I19: =VLOOKUP($D19,specs!$K$5:$L$19,2)*IF($E$1="m",$D20,($D20*0.3048))/1000 -> 0 | J19: =VLOOKUP($D19,specs!$K$5:$L$19,2)*IF($E$1="m",$D20,($D20*0.3048))/1000 -> 0 | K19: =VLOOKUP($D19,specs!$K$5:$L$19,2)*IF($E$1="m",$D20,($D20*0.3048))/1000 -> 0 | L19: =VLOOKUP($D19,specs!$K$5:$L$19,2)*IF($E$1="m",$D20,($D20*0.3048))/1000 -> 0 | M19: =VLOOKUP($D19,specs!$K$5:$L$19,2)*IF($E$1="m",$D20,($D20*0.3048))/1000 -> 0 | N19: =VLOOKUP($D19,specs!$K$5:$L$19,2)*IF($E$1="m",$D20,($D20*0.3048))/1000 -> 0 | O19: =VLOOKUP($D19,specs!$K$5:$L$19,2)*IF($E$1="m",$D20,($D20*0.3048))/1000 -> 0
C20: span length,m | D20: 0 | E20: 0 | F20: =$E21*VLOOKUP($D21,specs!$D$5:$H$17,4)/IF(F21<67,(F21/1.03),65) -> 0 | G20: =$E21*VLOOKUP($D21,specs!$D$5:$H$17,4)/IF(G21<67,(G21/1.03),65) -> 0 | H20: =$E21*VLOOKUP($D21,specs!$D$5:$H$17,4)/IF(H21<67,(H21/1.03),65) -> 0 | I20: =$E21*VLOOKUP($D21,specs!$D$5:$H$17,4)/IF(I21<67,(I21/1.03),65) -> 0 | J20: =$E21*VLOOKUP($D21,specs!$D$5:$H$17,4)/IF(J21<67,(J21/1.03),65) -> 0 | K20: =$E21*VLOOKUP($D21,specs!$D$5:$H$17,4)/IF(K21<67,(K21/1.03),65) -> 0 | L20: =$E21*VLOOKUP($D21,specs!$D$5:$H$17,4)/IF(L21<67,(L21/1.03),65) -> 0 | M20: =$E21*VLOOKUP($D21,specs!$D$5:$H$17,4)/IF(M21<67,(M21/1.03),65) -> 0 | N20: =$E21*VLOOKUP($D21,specs!$D$5:$H$17,4)/IF(N21<67,(N21/1.03),65) -> 0 | O20: =$E21*VLOOKUP($D21,specs!$D$5:$H$17,4)/IF(O21<67,(O21/1.03),65) -> 0
C21: amplifier | D21: load | E21: 0 | F21: =B2 -> 61.80188704 | G21: =F21-(F3-$B$2) -> 61.06112187 | H21: 61.05216112 | I21: 61.0520514 | J21: 61.05205006 | K21: 61.05205004 | L21: 61.05205004 | M21: 61.05205004 | N21: 61.05205004 | O21: 61.05205004
F22: =IF(F21<0,1,0) -> 0 | G22: =IF(G21<0,1,0) -> 0 | H22: 0 | I22: 0 | J22: 0 | K22: 0 | L22: 0 | M22: 0 | N22: 0 | O22: 0
C24: User added Branch
M27: =O21 -> 61.05205004
F34: Main Branch Net12

Sheet Net11 (hidden)
B1: =SUM(F22:O22) -> 0 | D1: =IF(O21<'AUX2'!B6,1,0) -> 0 | E1: =+'AUX2'!J5 -> m
B2: =+'AUX2'!M7 -> 61.80188704 | C2: U start, V | D2: =+O5*1 -> 1.00558354 | F2: 1 | G2: 2 | H2: 3 | I2: 4 | J2: 5 | K2: 6 | L2: 7 | M2: 8 | N2: 9 | O2: iteration10
E3: mult. | F3: =F6+F5*F4 -> 62.33732943 | G3: =G6+G5*G4 -> 61.80655846 | H3: 61.80192816 | I3: 61.80188741 | J3: 61.80188705 | K3: 61.80188704 | L3: 61.80188704 | M3: 61.80188704 | N3: 61.80188704 | O3: =O6+O5*O4 -> 61.80188704
C4: cable type | D4: QR540 | E4: 0 | F4: =VLOOKUP($D4,specs!$K$5:$L$19,2)*IF($E$1="m",$D5,($D5*0.3048))/1000 -> 0.14784 | G4: =VLOOKUP($D4,specs!$K$5:$L$19,2)*IF($E$1="m",$D5,($D5*0.3048))/1000 -> 0.14784 | H4: =VLOOKUP($D4,specs!$K$5:$L$19,2)*IF($E$1="m",$D5,($D5*0.3048))/1000 -> 0.14784 | I4: =VLOOKUP($D4,specs!$K$5:$L$19,2)*IF($E$1="m",$D5,($D5*0.3048))/1000 -> 0.14784 | J4: =VLOOKUP($D4,specs!$K$5:$L$19,2)*IF($E$1="m",$D5,($D5*0.3048))/1000 -> 0.14784 | K4: =VLOOKUP($D4,specs!$K$5:$L$19,2)*IF($E$1="m",$D5,($D5*0.3048))/1000 -> 0.14784 | L4: =VLOOKUP($D4,specs!$K$5:$L$19,2)*IF($E$1="m",$D5,($D5*0.3048))/1000 -> 0.14784 | M4: =VLOOKUP($D4,specs!$K$5:$L$19,2)*IF($E$1="m",$D5,($D5*0.3048))/1000 -> 0.14784 | N4: =VLOOKUP($D4,specs!$K$5:$L$19,2)*IF($E$1="m",$D5,($D5*0.3048))/1000 -> 0.14784 | O4: =VLOOKUP($D4,specs!$K$5:$L$19,2)*IF($E$1="m",$D5,($D5*0.3048))/1000 -> 0.14784
C5: span length,m | D5: 28 | E5: 0 | F5: =VLOOKUP($D6,specs!$D$5:$H$17,4)/IF(F6<67,(F6/1.03),65)*$E6+F8 -> 0.9968495387 | G5: =VLOOKUP($D6,specs!$D$5:$H$17,4)/IF(G6<67,(G6/1.03),65)*$E6+G8 -> 1.005506675 | H5: =VLOOKUP($D6,specs!$D$5:$H$17,4)/IF(H6<67,(H6/1.03),65)*$E6+H8 -> 1.005582863 | I5: =VLOOKUP($D6,specs!$D$5:$H$17,4)/IF(I6<67,(I6/1.03),65)*$E6+I8 -> 1.005583534 | J5: =VLOOKUP($D6,specs!$D$5:$H$17,4)/IF(J6<67,(J6/1.03),65)*$E6+J8 -> 1.00558354 | K5: =VLOOKUP($D6,specs!$D$5:$H$17,4)/IF(K6<67,(K6/1.03),65)*$E6+K8 -> 1.00558354 | L5: =VLOOKUP($D6,specs!$D$5:$H$17,4)/IF(L6<67,(L6/1.03),65)*$E6+L8 -> 1.00558354 | M5: =VLOOKUP($D6,specs!$D$5:$H$17,4)/IF(M6<67,(M6/1.03),65)*$E6+M8 -> 1.00558354 | N5: =VLOOKUP($D6,specs!$D$5:$H$17,4)/IF(N6<67,(N6/1.03),65)*$E6+N8 -> 1.00558354 | O5: =VLOOKUP($D6,specs!$D$5:$H$17,4)/IF(O6<67,(O6/1.03),65)*$E6+O8 -> 1.00558354
C6: amplifier | D6: LEX | E6: 1 | F6: =F9+F8*F7 -> 62.1899552 | G6: =G9+G8*G7 -> 61.65790436 | H6: 61.65326279 | I6: 61.65322194 | J6: 61.65322158 | K6: 61.65322157 | L6: 61.65322157 | M6: 61.65322157 | N6: 61.65322157 | O6: =O9+O8*O7 -> 61.65322157
C7: cable type | D7: QR540 | E7: 0 | F7: =VLOOKUP($D7,specs!$K$5:$L$19,2)*IF($E$1="m",$D8,($D8*0.3048))/1000 -> 0.77616 | G7: =VLOOKUP($D7,specs!$K$5:$L$19,2)*IF($E$1="m",$D8,($D8*0.3048))/1000 -> 0.77616 | H7: =VLOOKUP($D7,specs!$K$5:$L$19,2)*IF($E$1="m",$D8,($D8*0.3048))/1000 -> 0.77616 | I7: =VLOOKUP($D7,specs!$K$5:$L$19,2)*IF($E$1="m",$D8,($D8*0.3048))/1000 -> 0.77616 | J7: =VLOOKUP($D7,specs!$K$5:$L$19,2)*IF($E$1="m",$D8,($D8*0.3048))/1000 -> 0.77616 | K7: =VLOOKUP($D7,specs!$K$5:$L$19,2)*IF($E$1="m",$D8,($D8*0.3048))/1000 -> 0.77616 | L7: =VLOOKUP($D7,specs!$K$5:$L$19,2)*IF($E$1="m",$D8,($D8*0.3048))/1000 -> 0.77616 | M7: =VLOOKUP($D7,specs!$K$5:$L$19,2)*IF($E$1="m",$D8,($D8*0.3048))/1000 -> 0.77616 | N7: =VLOOKUP($D7,specs!$K$5:$L$19,2)*IF($E$1="m",$D8,($D8*0.3048))/1000 -> 0.77616 | O7: =VLOOKUP($D7,specs!$K$5:$L$19,2)*IF($E$1="m",$D8,($D8*0.3048))/1000 -> 0.77616
C8: span length,m | D8: 147 | E8: 0 | F8: =VLOOKUP($D9,specs!$D$5:$H$17,4)/IF(F9<67,(F9/1.03),65)*$E9+F11 -> 0.4999847331 | G8: =VLOOKUP($D9,specs!$D$5:$H$17,4)/IF(G9<67,(G9/1.03),65)*$E9+G11 -> 0.5043543847 | H8: =VLOOKUP($D9,specs!$D$5:$H$17,4)/IF(H9<67,(H9/1.03),65)*$E9+H11 -> 0.5043928435 | I8: =VLOOKUP($D9,specs!$D$5:$H$17,4)/IF(I9<67,(I9/1.03),65)*$E9+I11 -> 0.504393182 | J8: =VLOOKUP($D9,specs!$D$5:$H$17,4)/IF(J9<67,(J9/1.03),65)*$E9+J11 -> 0.504393185 | K8: =VLOOKUP($D9,specs!$D$5:$H$17,4)/IF(K9<67,(K9/1.03),65)*$E9+K11 -> 0.504393185 | L8: =VLOOKUP($D9,specs!$D$5:$H$17,4)/IF(L9<67,(L9/1.03),65)*$E9+L11 -> 0.504393185 | M8: =VLOOKUP($D9,specs!$D$5:$H$17,4)/IF(M9<67,(M9/1.03),65)*$E9+M11 -> 0.504393185 | N8: =VLOOKUP($D9,specs!$D$5:$H$17,4)/IF(N9<67,(N9/1.03),65)*$E9+N11 -> 0.504393185 | O8: =VLOOKUP($D9,specs!$D$5:$H$17,4)/IF(O9<67,(O9/1.03),65)*$E9+O11 -> 0.504393185
C9: amplifier | D9: LEX | E9: 1 | F9: =F12+F11*F10 -> 61.80188704 | G9: =G12+G11*G10 -> 61.26644466 | H9: 61.26177324 | I9: 61.26173212 | J9: 61.26173176 | K9: 61.26173176 | L9: 61.26173176 | M9: 61.26173176 | N9: 61.26173176 | O9: =O12+O11*O10 -> 61.26173176
C10: cable type | D10: cable | E10: 0 | F10: =VLOOKUP($D10,specs!$K$5:$L$19,2)*IF($E$1="m",$D11,($D11*0.3048))/1000 -> 0 | G10: =VLOOKUP($D10,specs!$K$5:$L$19,2)*IF($E$1="m",$D11,($D11*0.3048))/1000 -> 0 | H10: =VLOOKUP($D10,specs!$K$5:$L$19,2)*IF($E$1="m",$D11,($D11*0.3048))/1000 -> 0 | I10: =VLOOKUP($D10,specs!$K$5:$L$19,2)*IF($E$1="m",$D11,($D11*0.3048))/1000 -> 0 | J10: =VLOOKUP($D10,specs!$K$5:$L$19,2)*IF($E$1="m",$D11,($D11*0.3048))/1000 -> 0 | K10: =VLOOKUP($D10,specs!$K$5:$L$19,2)*IF($E$1="m",$D11,($D11*0.3048))/1000 -> 0 | L10: =VLOOKUP($D10,specs!$K$5:$L$19,2)*IF($E$1="m",$D11,($D11*0.3048))/1000 -> 0 | M10: =VLOOKUP($D10,specs!$K$5:$L$19,2)*IF($E$1="m",$D11,($D11*0.3048))/1000 -> 0 | N10: =VLOOKUP($D10,specs!$K$5:$L$19,2)*IF($E$1="m",$D11,($D11*0.3048))/1000 -> 0 | O10: =VLOOKUP($D10,specs!$K$5:$L$19,2)*IF($E$1="m",$D11,($D11*0.3048))/1000 -> 0
C11: span length,m | D11: 0 | E11: 0 | F11: =VLOOKUP($D12,specs!$D$5:$H$17,4)/IF(F12<67,(F12/1.03),65)*$E12+F14 -> 0 | G11: =VLOOKUP($D12,specs!$D$5:$H$17,4)/IF(G12<67,(G12/1.03),65)*$E12+G14 -> 0 | H11: =VLOOKUP($D12,specs!$D$5:$H$17,4)/IF(H12<67,(H12/1.03),65)*$E12+H14 -> 0 | I11: =VLOOKUP($D12,specs!$D$5:$H$17,4)/IF(I12<67,(I12/1.03),65)*$E12+I14 -> 0 | J11: =VLOOKUP($D12,specs!$D$5:$H$17,4)/IF(J12<67,(J12/1.03),65)*$E12+J14 -> 0 | K11: =VLOOKUP($D12,specs!$D$5:$H$17,4)/IF(K12<67,(K12/1.03),65)*$E12+K14 -> 0 | L11: =VLOOKUP($D12,specs!$D$5:$H$17,4)/IF(L12<67,(L12/1.03),65)*$E12+L14 -> 0 | M11: =VLOOKUP($D12,specs!$D$5:$H$17,4)/IF(M12<67,(M12/1.03),65)*$E12+M14 -> 0 | N11: =VLOOKUP($D12,specs!$D$5:$H$17,4)/IF(N12<67,(N12/1.03),65)*$E12+N14 -> 0 | O11: =VLOOKUP($D12,specs!$D$5:$H$17,4)/IF(O12<67,(O12/1.03),65)*$E12+O14 -> 0
C12: amplifier | D12: load | E12: 0 | F12: =F15+F14*F13 -> 61.80188704 | G12: =G15+G14*G13 -> 61.26644466 | H12: 61.26177324 | I12: 61.26173212 | J12: 61.26173176 | K12: 61.26173176 | L12: 61.26173176 | M12: 61.26173176 | N12: 61.26173176 | O12: =O15+O14*O13 -> 61.26173176
C13: cable type | D13: cable | E13: 0 | F13: =VLOOKUP($D13,specs!$K$5:$L$19,2)*IF($E$1="m",$D14,($D14*0.3048))/1000 -> 0 | G13: =VLOOKUP($D13,specs!$K$5:$L$19,2)*IF($E$1="m",$D14,($D14*0.3048))/1000 -> 0 | H13: =VLOOKUP($D13,specs!$K$5:$L$19,2)*IF($E$1="m",$D14,($D14*0.3048))/1000 -> 0 | I13: =VLOOKUP($D13,specs!$K$5:$L$19,2)*IF($E$1="m",$D14,($D14*0.3048))/1000 -> 0 | J13: =VLOOKUP($D13,specs!$K$5:$L$19,2)*IF($E$1="m",$D14,($D14*0.3048))/1000 -> 0 | K13: =VLOOKUP($D13,specs!$K$5:$L$19,2)*IF($E$1="m",$D14,($D14*0.3048))/1000 -> 0 | L13: =VLOOKUP($D13,specs!$K$5:$L$19,2)*IF($E$1="m",$D14,($D14*0.3048))/1000 -> 0 | M13: =VLOOKUP($D13,specs!$K$5:$L$19,2)*IF($E$1="m",$D14,($D14*0.3048))/1000 -> 0 | N13: =VLOOKUP($D13,specs!$K$5:$L$19,2)*IF($E$1="m",$D14,($D14*0.3048))/1000 -> 0 | O13: =VLOOKUP($D13,specs!$K$5:$L$19,2)*IF($E$1="m",$D14,($D14*0.3048))/1000 -> 0
C14: span length,m | D14: 0 | E14: 0 | F14: =VLOOKUP($D15,specs!$D$5:$H$17,4)/IF(F15<67,(F15/1.03),65)*$E15+F17 -> 0 | G14: =VLOOKUP($D15,specs!$D$5:$H$17,4)/IF(G15<67,(G15/1.03),65)*$E15+G17 -> 0 | H14: =VLOOKUP($D15,specs!$D$5:$H$17,4)/IF(H15<67,(H15/1.03),65)*$E15+H17 -> 0 | I14: =VLOOKUP($D15,specs!$D$5:$H$17,4)/IF(I15<67,(I15/1.03),65)*$E15+I17 -> 0 | J14: =VLOOKUP($D15,specs!$D$5:$H$17,4)/IF(J15<67,(J15/1.03),65)*$E15+J17 -> 0 | K14: =VLOOKUP($D15,specs!$D$5:$H$17,4)/IF(K15<67,(K15/1.03),65)*$E15+K17 -> 0 | L14: =VLOOKUP($D15,specs!$D$5:$H$17,4)/IF(L15<67,(L15/1.03),65)*$E15+L17 -> 0 | M14: =VLOOKUP($D15,specs!$D$5:$H$17,4)/IF(M15<67,(M15/1.03),65)*$E15+M17 -> 0 | N14: =VLOOKUP($D15,specs!$D$5:$H$17,4)/IF(N15<67,(N15/1.03),65)*$E15+N17 -> 0 | O14: =VLOOKUP($D15,specs!$D$5:$H$17,4)/IF(O15<67,(O15/1.03),65)*$E15+O17 -> 0
C15: amplifier | D15: load | E15: 0 | F15: =F18+F17*F16 -> 61.80188704 | G15: =G18+G17*G16 -> 61.26644466 | H15: 61.26177324 | I15: 61.26173212 | J15: 61.26173176 | K15: 61.26173176 | L15: 61.26173176 | M15: 61.26173176 | N15: 61.26173176 | O15: =O18+O17*O16 -> 61.26173176
C16: cable type | D16: cable | E16: 0 | F16: =VLOOKUP($D16,specs!$K$5:$L$19,2)*IF($E$1="m",$D17,($D17*0.3048))/1000 -> 0 | G16: =VLOOKUP($D16,specs!$K$5:$L$19,2)*IF($E$1="m",$D17,($D17*0.3048))/1000 -> 0 | H16: =VLOOKUP($D16,specs!$K$5:$L$19,2)*IF($E$1="m",$D17,($D17*0.3048))/1000 -> 0 | I16: =VLOOKUP($D16,specs!$K$5:$L$19,2)*IF($E$1="m",$D17,($D17*0.3048))/1000 -> 0 | J16: =VLOOKUP($D16,specs!$K$5:$L$19,2)*IF($E$1="m",$D17,($D17*0.3048))/1000 -> 0 | K16: =VLOOKUP($D16,specs!$K$5:$L$19,2)*IF($E$1="m",$D17,($D17*0.3048))/1000 -> 0 | L16: =VLOOKUP($D16,specs!$K$5:$L$19,2)*IF($E$1="m",$D17,($D17*0.3048))/1000 -> 0 | M16: =VLOOKUP($D16,specs!$K$5:$L$19,2)*IF($E$1="m",$D17,($D17*0.3048))/1000 -> 0 | N16: =VLOOKUP($D16,specs!$K$5:$L$19,2)*IF($E$1="m",$D17,($D17*0.3048))/1000 -> 0 | O16: =VLOOKUP($D16,specs!$K$5:$L$19,2)*IF($E$1="m",$D17,($D17*0.3048))/1000 -> 0
C17: span length,m | D17: 0 | E17: 0 | F17: =VLOOKUP($D18,specs!$D$5:$H$17,4)/IF(F18<67,(F18/1.03),65)*$E18+F20 -> 0 | G17: =VLOOKUP($D18,specs!$D$5:$H$17,4)/IF(G18<67,(G18/1.03),65)*$E18+G20 -> 0 | H17: =VLOOKUP($D18,specs!$D$5:$H$17,4)/IF(H18<67,(H18/1.03),65)*$E18+H20 -> 0 | I17: =VLOOKUP($D18,specs!$D$5:$H$17,4)/IF(I18<67,(I18/1.03),65)*$E18+I20 -> 0 | J17: =VLOOKUP($D18,specs!$D$5:$H$17,4)/IF(J18<67,(J18/1.03),65)*$E18+J20 -> 0 | K17: =VLOOKUP($D18,specs!$D$5:$H$17,4)/IF(K18<67,(K18/1.03),65)*$E18+K20 -> 0 | L17: =VLOOKUP($D18,specs!$D$5:$H$17,4)/IF(L18<67,(L18/1.03),65)*$E18+L20 -> 0 | M17: =VLOOKUP($D18,specs!$D$5:$H$17,4)/IF(M18<67,(M18/1.03),65)*$E18+M20 -> 0 | N17: =VLOOKUP($D18,specs!$D$5:$H$17,4)/IF(N18<67,(N18/1.03),65)*$E18+N20 -> 0 | O17: =VLOOKUP($D18,specs!$D$5:$H$17,4)/IF(O18<67,(O18/1.03),65)*$E18+O20 -> 0
C18: amplifier | D18: load | E18: 0 | F18: =F21+F20*F19 -> 61.80188704 | G18: =G21+G20*G19 -> 61.26644466 | H18: 61.26177324 | I18: 61.26173212 | J18: 61.26173176 | K18: 61.26173176 | L18: 61.26173176 | M18: 61.26173176 | N18: 61.26173176 | O18: =O21+O20*O19 -> 61.26173176
C19: cable type | D19: cable | E19: 0 | F19: =VLOOKUP($D19,specs!$K$5:$L$19,2)*IF($E$1="m",$D20,($D20*0.3048))/1000 -> 0 | G19: =VLOOKUP($D19,specs!$K$5:$L$19,2)*IF($E$1="m",$D20,($D20*0.3048))/1000 -> 0 | H19: =VLOOKUP($D19,specs!$K$5:$L$19,2)*IF($E$1="m",$D20,($D20*0.3048))/1000 -> 0 | I19: =VLOOKUP($D19,specs!$K$5:$L$19,2)*IF($E$1="m",$D20,($D20*0.3048))/1000 -> 0 | J19: =VLOOKUP($D19,specs!$K$5:$L$19,2)*IF($E$1="m",$D20,($D20*0.3048))/1000 -> 0 | K19: =VLOOKUP($D19,specs!$K$5:$L$19,2)*IF($E$1="m",$D20,($D20*0.3048))/1000 -> 0 | L19: =VLOOKUP($D19,specs!$K$5:$L$19,2)*IF($E$1="m",$D20,($D20*0.3048))/1000 -> 0 | M19: =VLOOKUP($D19,specs!$K$5:$L$19,2)*IF($E$1="m",$D20,($D20*0.3048))/1000 -> 0 | N19: =VLOOKUP($D19,specs!$K$5:$L$19,2)*IF($E$1="m",$D20,($D20*0.3048))/1000 -> 0 | O19: =VLOOKUP($D19,specs!$K$5:$L$19,2)*IF($E$1="m",$D20,($D20*0.3048))/1000 -> 0
C20: span length,m | D20: 0 | E20: 0 | F20: =$E21*VLOOKUP($D21,specs!$D$5:$H$17,4)/IF(F21<67,(F21/1.03),65)+F23 -> 0 | G20: =$E21*VLOOKUP($D21,specs!$D$5:$H$17,4)/IF(G21<67,(G21/1.03),65)+G23 -> 0 | H20: =$E21*VLOOKUP($D21,specs!$D$5:$H$17,4)/IF(H21<67,(H21/1.03),65)+H23 -> 0 | I20: =$E21*VLOOKUP($D21,specs!$D$5:$H$17,4)/IF(I21<67,(I21/1.03),65)+I23 -> 0 | J20: =$E21*VLOOKUP($D21,specs!$D$5:$H$17,4)/IF(J21<67,(J21/1.03),65)+J23 -> 0 | K20: =$E21*VLOOKUP($D21,specs!$D$5:$H$17,4)/IF(K21<67,(K21/1.03),65)+K23 -> 0 | L20: =$E21*VLOOKUP($D21,specs!$D$5:$H$17,4)/IF(L21<67,(L21/1.03),65)+L23 -> 0 | M20: =$E21*VLOOKUP($D21,specs!$D$5:$H$17,4)/IF(M21<67,(M21/1.03),65)+M23 -> 0 | N20: =$E21*VLOOKUP($D21,specs!$D$5:$H$17,4)/IF(N21<67,(N21/1.03),65)+N23 -> 0 | O20: =$E21*VLOOKUP($D21,specs!$D$5:$H$17,4)/IF(O21<67,(O21/1.03),65)+O23 -> 0
C21: amplifier | D21: load | E21: 0 | F21: =B2 -> 61.80188704 | G21: =F21-(F3-$B$2) -> 61.26644466 | H21: 61.26177324 | I21: 61.26173212 | J21: 61.26173176 | K21: 61.26173176 | L21: 61.26173176 | M21: 61.26173176 | N21: 61.26173176 | O21: 61.26173176
F22: =IF(F21<0,1,0) -> 0 | G22: =IF(G21<0,1,0) -> 0 | H22: 0 | I22: 0 | J22: 0 | K22: 0 | L22: 0 | M22: 0 | N22: 0 | O22: 0
C24: User added Branch
M27: =O21 -> 61.26173176
F34: Main Branch Net11

Sheet AUX (hidden)
D2: R,Ohm | H2: Vdrop,V
B3: length,m | C3: I,A | D3: 540 | E3: 860 | F3: 750 | G3: 3x10 | H3: 540 | I3: 860 | J3: 750 | K3: 3x10 | L3: amp type | M3: Inom,A | N3: Vnom,V | O3: Pnom,W | P3: factor_i | Q3: cable | R3: loop_res | AA3: LIST
A4: 1 | D4: =B4*$R$4 -> 0 | E4: =B4*$R$5 -> 0 | F4: =B4*$R$6 -> 0 | G4: =+B4*$R$7 -> 0 | H4: =$C4*D4 -> 0 | I4: =$C4*E4 -> 0 | J4: =$C4*F4 -> 0 | K4: =$C4*G4 -> 0 | L4: HLN | M4: 1.4 | N4: 60 | O4: 84 | P4: =M4/(O4/N4) -> 1 | Q4: QR540 | R4: =S4/1000 -> 0.00528 | S4: 5.28 | T4: C500 | U4: =V4/1000 -> 0.00564 | V4: 5.64 | AA4: Net11
A5: 2 | D5: 0 | E5: 0 | F5: 0 | G5: =+B5*$R$7 -> 0 | H5: =$C5*D5 -> 0 | I5: =$C5*E5 -> 0 | J5: =$C5*F5 -> 0 | K5: =$C5*G5 -> 0 | L5: TNA | M5: 1 | N5: 60 | O5: 60 | P5: =M5/(O5/N5) -> 1 | Q5: QR860 | R5: =S5/1000 -> 0.00237 | S5: 2.37 | T5: C625 | U5: =V5/1000 -> 0.00361 | V5: 3.61 | AA5: Net12
A6: 3 | D6: 0 | E6: 0 | F6: 0 | G6: =+B6*$R$7 -> 0 | H6: 0 | I6: 0 | J6: 0 | K6: 0 | L6: LEX | M6: 0.5 | N6: 60 | O6: 36 | P6: =M6/(O6/N6) -> 0.8333333333 | Q6: C750 | R6: =S6/1000 -> 0.00249 | S6: 2.49 | AA6: Net21
A7: 4 | D7: 0 | E7: 0 | F7: 0 | G7: 0 | H7: 0 | I7: 0 | J7: 0 | K7: 0 | L7: DBLE | M7: 0.6 | N7: 60 | O7: 24 | P7: =M7/(O7/N7) -> 1.5 | Q7: 3x10 | R7: =+S7/1000 -> 0.0025 | S7: 2.5 | AA7: Net22
A8: 5 | D8: 0 | E8: 0 | F8: 0 | G8: 0 | H8: =$C8*D8 -> 0 | I8: =$C8*E8 -> 0 | J8: 0 | K8: 0 | L8: GNA | M8: 1 | N8: 60 | O8: 60 | P8: =M8/(O8/N8) -> 1 | Q8: C500 | R8: =S8/1000 -> 0.00564 | S8: 5.64 | AA8: Net31
A9: 6 | D9: 0 | E9: 0 | F9: 0 | G9: 0 | H9: =$C9*D9 -> 0 | I9: =$C9*E9 -> 0 | J9: 0 | K9: 0 | Q9: C625 | R9: 0.00361 | S9: 3.61 | AA9: Net32
A10: 7 | D10: 0 | E10: 0 | F10: 0 | G10: 0 | H10: 0 | I10: 0 | J10: 0 | K10: 0 | Q10: 2x10 | R10: 0.00366 | S10: 3.66 | AA10: Net41
A11: 8 | D11: 0 | E11: 0 | F11: 0 | G11: 0 | H11: 0 | I11: 0 | J11: 0 | K11: 0 | Q11: 2x6 | R11: 0.006 | S11: 6 | AA11: Net42
A12: 9 | D12: 0 | E12: 0 | F12: 0 | G12: 0 | H12: 0 | I12: 0 | J12: 0 | K12: 0 | Q12: 4x10 | R12: 0.00183 | S12: 1.83
A13: 10 | D13: 0 | E13: 0 | F13: 0 | G13: 0 | H13: 0 | I13: 0 | J13: 0 | K13: 0 | Q13: 4x6 | R13: 0.003 | S13: 3

Sheet specs
D3: 1 | E3: 2 | F3: 3 | G3: 4 | H3: 5 | K3: 1 | L3: 2
C4: amp type | D4: sorted | E4: Inom,A | F4: Vnom,V | G4: Pnom,W | I4: original | J4: cable | K4: sorted | L4: loop_res | O4: original
C5: load | D5: DBLE | F5: 60 | G5: 30 | H5: 1 | I5: 30 | J5: cable | K5: 2x10 | L5: 3.66 | M5: cable | N5: 1 | O5: 3.66
C6: HLN | D6: future1 | F6: 60 | G6: 0 | H6: 1 | I6: 0 | J6: QR860 | K6: 2x6 | L6: 6 | M6: QR860 | N6: 2 | O6: 6
C7: TNA | D7: future2 | F7: 60 | G7: 0 | H7: 1 | I7: 0 | J7: C750 | K7: 3x10 | L7: 2.5 | M7: C750 | N7: 3 | O7: 2.5
C8: GNA | D8: future3 | F8: 60 | G8: 0 | H8: 1 | I8: 0 | J8: QR715 | K8: 4x10 | L8: 1.83 | M8: QR715 | N8: 4 | O8: 1.83
C9: LEX | D9: future4 | F9: 60 | G9: 0 | H9: 1 | I9: 0 | J9: C625 | K9: 4x6 | L9: 3 | M9: C625 | N9: 5 | O9: 3
C10: DBLE | D10: future5 | F10: 60 | G10: 0 | H10: 1 | I10: 0 | J10: C565 | K10: C500 | L10: 5.64 | M10: C565 | N10: 6 | O10: 5.64
C11: future1 | D11: future6 | F11: 60 | G11: 0 | H11: 1 | I11: 0 | J11: QR540 | K11: C565 | L11: 4.26 | M11: QR540 | N11: 7 | O11: 4.26
C12: future2 | D12: future7 | F12: 60 | G12: 0 | H12: 1 | I12: 0 | J12: C500 | K12: C625 | L12: 3.61 | M12: C500 | N12: 8 | O12: 3.61
C13: future3 | D13: GNA | F13: 60 | G13: 48 | H13: 1 | I13: 48 | J13: QR1125 | K13: C750 | L13: 2.49 | M13: QR1125 | N13: 9 | O13: 2.49
C14: future4 | D14: HLN | F14: 60 | G14: 84 | H14: 1 | I14: 84 | J14: 3x10 | K14: cable | L14: 0 | M14: 2x10 | N14: 10 | O14: 0
C15: future5 | D15: LEX | F15: 60 | G15: 30 | H15: 1 | I15: 24 | J15: 4x10 | K15: QR1125 | L15: 1.3 | M15: 2x6 | N15: 11 | O15: 1.3
C16: future6 | D16: load | F16: 1 | G16: 0 | H16: 0 | I16: 0 | J16: 2x10 | K16: QR540 | L16: 5.28 | M16: 3x10 | N16: 12 | O16: 5.28
C17: future7 | D17: TNA | F17: 60 | G17: 52 | H17: 1 | I17: 52 | J17: 2x6 | K17: QR715 | L17: 3.27 | M17: 4x10 | N17: 13 | O17: 3.27
J18: 4x6 | K18: QR860 | L18: 2.37 | M18: 4x6 | N18: 14 | O18: 2.37
F19: Range $D$5:$H$17 | J19: type | K19: spare | L19: 0 | O19: 0
D22: Efficiency | F22: tangens alpha | K22: Range $K$5:$L$19 | M22: Cable type | N22: ρ (Ω/Km)
C23: Load,% | D23: Super2M-90 | E23: T-former | F23: Super2M-90 | G23: T-former | H23: load span | I23: SpanN | M23: QR-540 | N23: 5.28
B24: L0 | C24: 4 | D24: 36.55806621 | E24: 62.08372093 | F24: =(D25-D24)/($C25-$C24) -> 4.260676312 | G24: =+(E25-E24)/($C25-$C24) -> 3.48933788 | H24: =+C25-C24 -> 4 | I24: 1 | M24: QR-715 | N24: 3.27
B25: L1 | C25: 8 | D25: 53.60077146 | E25: 76.04107245 | F25: =(D26-D25)/($C26-$C25) -> 2.444555993 | G25: 1.576814017 | H25: =+C26-C25 -> 4 | I25: 2 | M25: QR-860 | N25: 2.37
B26: L2 | C26: 12 | D26: 63.37899543 | E26: 82.34832852 | F26: 1.445186705 | G26: 0.795816365 | H26: 8 | I26: 3 | M26: P3-500 | N26: 5.64
B27: L3 | C27: 20 | D27: 74.94048907 | E27: 88.71485944 | F27: 0.715539049 | G27: 0.271305184 | H27: 10 | I27: 4 | M27: P3-565 | N27: 4.26
B28: L4 | C28: 30 | D28: 82.09587956 | E28: 91.42791128 | F28: 0.484873774 | G28: 0.129423258 | H28: 10 | I28: 5 | M28: P3-625 | N28: 3.61
B29: L5 | C29: 40 | D29: 86.9446173 | E29: 92.72214386 | F29: 0.17963341 | G29: 0.111739769 | H29: 10 | I29: 6
B30: L6 | C30: 50 | D30: 88.7409514 | E30: 93.83954155 | F30: 0.112770009 | G30: 0.036879178 | H30: 10 | I30: 7
B31: L7 | C31: 60 | D31: 89.86865149 | E31: 94.20833333 | F31: 0.089180478 | G31: 0.038966667 | H31: 10 | I31: 8
B32: L8 | C32: 70 | D32: 90.76045627 | E32: 94.598 | F32: 0.051471152 | G32: -0.005637724 | H32: 10 | I32: 9
B33: L9 | C33: 80 | D33: 91.27516779 | E33: 94.54162276 | F33: 0.000400636 | G33: -0.03817227 | H33: 10 | I33: 10
B34: L10 | C34: 90 | D34: 91.27917415 | E34: 94.15990006 | F34: 0.036039225 | G34: -0.087130946 | H34: 10 | I34: 11
B35: L11 | C35: 100 | D35: 91.6395664 | E35: 93.2885906
